date,department,beneficiary,amount,summary of purpose,category,Transaction number,SAP vendor number
26.04.2024,Collection Fund,GREATER LONDON AUTHORITY,"11,194,490.00",NNDR ACCOUNT - GLA SHARE,EXTERNAL AGENCIES AND BODIES,5902633837,1000015827
26.04.2024,Collection Fund,MINISTRY OF HOUSING COMMUNITIES & LOCAL GOVERNMENT,"5,834,237.00",NNDR CLG SHARE,EXTERNAL AGENCIES AND BODIES,5902633839,1000081809
18.04.2024,Housing,BY DEVELOPMENT LTD,"5,190,558.78",CAPITAL PS (HRA),CONSTRUCTION MAIN CONTRACT -CERTIFICATED,2103858475,3000002255
15.04.2024,Collection Fund,GREATER LONDON AUTHORITY,"5,185,793.00",GLA PRECEPT,LEVIES,5902632272,1000015827
19.04.2024,Suspense,HM REVENUE & CUSTOMS,"3,018,105.41",SUSPENSE ACCOUNT (COMPANY CODE 1000),INLAND REVENUE,2103843228,1016231
19.04.2024,Suspense,HM REVENUE & CUSTOMS,"2,725,989.21",SUSPENSE ACCOUNT (COMPANY CODE 1000),INLAND REVENUE,2103843227,1016231
03.04.2024,Environment Neighbourhoods and Growth,VEOLIA ES SOUTHWARK LTD,"2,452,897.93",WASTE PFI,PFI/PPP PAYMENTS,5902630493,1000056979
16.04.2024,Housing,BY DEVELOPMENT LTD,"2,382,191.62",CAPITAL PS (HRA),CONSTRUCTION MAIN CONTRACT -CERTIFICATED,2103856767,3000002255
22.04.2024,Housing,HILL PARTNERSHIP LTD,"2,001,954.20",CAPITAL PS (HRA),CONSTRUCTION MAIN CONTRACT -CERTIFICATED,2103858101,3000002185
01.04.2024,Housing,KENT COUNTY COUNCIL - LASER,"1,824,044.68",HEATING ACCOUNT,GAS,5902629572,1000012926
05.04.2024,Environment Neighbourhoods and Growth,APCOA PARKING (UK) LTD,"1,801,957.36",PARKING OVERHEADS,OTHER CONTRACTORS,5902631034,1718645
11.04.2024,Children and Adults,TEACHERS' PENSIONS,"1,464,431.62",TEACHERS PENSION MONTHLY RETURN,PAYROLL CREDITORS - TEACHERS PENSIONS & AVCS,5902631925,1000015184
22.04.2024,Governance and Assurance,MATRIX SCM LIMITED,"1,114,315.42",WEEKLY PAYMENTS,AGENCY STAFF,5902633155,1000089740
24.04.2024,Environment Neighbourhoods and Growth,GUILDMORE LTD,"990,923.11",CAPITAL PS (REGEN),CONSTRUCTION MAIN CONTRACT -CERTIFICATED,2103859762,3000002150
30.04.2024,Governance and Assurance,MATRIX SCM LIMITED,"910,387.13",WEEKLY PAYMENTS,AGENCY STAFF,5902633971,1000089740
12.04.2024,Governance and Assurance,MATRIX SCM LIMITED,"907,661.87",WEEKLY PAYMENTS,AGENCY STAFF,5902632116,1000089740
04.04.2024,Children and Adults,HATS GROUP LTD,"887,393.00",SCH TRANS � TRAVEL,EXTERNAL AGENCIES AND BODIES,5902630760,1000042743
15.04.2024,Housing,OCO LIMITED,"859,213.74",PAYMENTS CONTROL ACCOUNT - OCO,I-WORLD CONTRACTORS HOLDING ACCOUNT,5902632249,1006066
18.04.2024,Children and Adults,NEILCOTT SPECIAL WORKS LTD,"852,087.19",CAPITAL PS (EDUCATION),CONSTRUCTION,2103856573,3000000770
09.04.2024,Children and Adults,THE ST THOMAS THE APOSTLE COLLEGE,"825,699.00",THE ST THOMAS THE APOSTLE COLLEGE,SCHOOLS CAPITATION,5902631439,5001000074
30.04.2024,Collection Fund,GREATER LONDON AUTHORITY,"808,078.00",GLA CROSSRAIL BUSINESS RATE SUPPLEMENT,LEVIES,5902634326,1000015827
05.04.2024,Governance and Assurance,MATRIX SCM LIMITED,"756,751.04",WEEKLY PAYMENTS,AGENCY STAFF,5902631005,1000089740
10.04.2024,Housing,SMITH & BYFORD LTD,"746,037.04",SMITH AND BYFORD,I-WORLD CONTRACTORS HOLDING ACCOUNT,2103855460,3000000520
14.04.2024,Housing,EQUANS REGENERATION LTD,"703,250.00",CAPITAL PS (HRA),CONSTRUCTION MAIN CONTRACT -CERTIFICATED,2103855388,3000002035
09.04.2024,Housing,GLENMAN CORPORATION LTD,"685,477.56",CAPITAL PS (HRA),CONSTRUCTION MAIN CONTRACT -CERTIFICATED,2103855142,3000002230
05.04.2024,Children and Adults,ALLPAY LTD (0-25),"600,000.00",SCH TRANS � TRAVEL,OTHER PAYMENTS FOR CLIENTS,5902631105,1000083062
09.04.2024,Children and Adults,ST SAVIOURS & ST OLAVES SCHOOL,"589,361.00",ST SAVIOUR & OLAVE'S CE,SCHOOLS CAPITATION,5902631446,5001000084
22.04.2024,Housing,GUILDMORE LTD,"496,398.56",CAPITAL PS (HRA),CONSTRUCTION MAIN CONTRACT -CERTIFICATED,2103858619,3000002150
28.04.2024,Environment Neighbourhoods and Growth,BOUYGUES (UK) LTD,"486,157.18",CAPITAL PS (REGEN),CONSTRUCTION MAIN CONTRACT -CERTIFICATED,2103858726,3000002179
11.04.2024,Housing,BUILDTRUST LTD,"470,153.46",BUILD TRUST,I-WORLD CONTRACTORS HOLDING ACCOUNT,2103856176,3000002010
15.04.2024,Housing,SPOKEMEAD MAINTENANCE LTD,"464,184.10",PAYMENTS CONTROL ACCOUNT - SPOKEMEAD,I-WORLD CONTRACTORS HOLDING ACCOUNT,5902632172,1000059211
16.04.2024,Children and Adults,NOTTINGHAM REHAB LTD,"389,155.41",ICES CONTRACT,EQUIPMENT PURCHASE & REPAIR,5902632407,1000066462
10.04.2024,Governance and Assurance,ATALIAN SERVEST LTD,"380,373.82",FM SERVICES BY INTERSERVE,INTEGRATED FACILITIES MANAGEMENT CONTRACT,5902631724,1000088775
07.04.2024,Environment Neighbourhoods and Growth,F M CONWAY LTD,"374,545.46",CAPITAL PS (LEISURE),CONSTR'N SUB CONTRACT - NON CERTIFICATED,2103852190,4001384
26.04.2024,Children and Adults,NOTTINGHAM REHAB LTD,"352,000.94",ICES CONTRACT,EQUIPMENT PURCHASE & REPAIR,5902633910,1000066462
12.04.2024,Housing,LEATHERMARKET JMB HOUSING,"349,575.66",LEATHERMARKET CO-OP,M&M ALLOWANCE CO-OPS,5902632062,11182872
22.04.2024,Children and Adults,SOUTH LONDON & MAUDSLEY HOSPITAL,"348,912.00",SLAM SPOT MH RES,EXTERNAL AGENCIES AND BODIES,5902632820,1000013096
09.04.2024,Children and Adults,PHOENIX PRIMARY SCHOOL,"347,836.00",PHOENIX PRIMARY SCHOOL,SCHOOLS CAPITATION,5902631401,5001000032
12.04.2024,Housing,ZFA ACCOMMODATION LTD,"339,605.00",NIGHTLY TA (NSC),EXTERNAL AGENCIES AND BODIES,5902632044,1000082620
18.04.2024,Housing,SPOKEMEAD MAINTENANCE LTD,"337,575.00",PAYMENTS CONTROL ACCOUNT - SPOKEMEAD,I-WORLD CONTRACTORS HOLDING ACCOUNT,5902632594,1000059211
14.04.2024,Housing,BCS (ELECTRICAL & BUILDING SERVICES LTD),"335,921.61",BCS,I-WORLD CONTRACTORS HOLDING ACCOUNT,5902632170,1000062321
09.04.2024,Children and Adults,CAMELOT PRIMARY SCHOOL,"335,275.00",CAMELOT PRIMARY SCHOOL,SCHOOLS CAPITATION,5902631384,5001000014
22.04.2024,Children and Adults,SOUTH LONDON & MAUDSLEY HOSPITAL,"331,290.00",SLAM SPOT MH RES,EXTERNAL AGENCIES AND BODIES,5902632824,1000013096
09.04.2024,Children and Adults,BESSEMER GRANGE PRIMARY SCHOOL,"314,959.00",BESSEMER GRANGE PRIMARY SCHOOL,SCHOOLS CAPITATION,5902631379,5001000009
16.04.2024,Children and Adults,NOTTINGHAM REHAB LTD,"312,625.83",ICES CONTRACT,EQUIPMENT PURCHASE & REPAIR,5902632408,1000066462
09.04.2024,Children and Adults,JOHN RUSKIN PRIMARY SCHOOL,"306,544.00",JOHN RUSKIN PRIMARY SCHOOL,SCHOOLS CAPITATION,5902631410,5001000040
09.04.2024,Children and Adults,NEILCOTT SPECIAL WORKS LTD,"294,360.37",CAPITAL PS (EDUCATION),CONSTRUCTION MAIN CONTRACT -CERTIFICATED,2103855146,3000000770
04.04.2024,Children and Adults,REDRIFF PRIMARY SCHOOL,"289,946.42",AC & FREE - MSTREAM,STATEMENTED FEES,2103851802,1000067877
09.04.2024,Children and Adults,MICHAEL FARADAY PRIMARY SCHOOL,"282,828.00",MICHAEL FARADAY PRIMARY SCHOOL,SCHOOLS CAPITATION,5902631415,5001000048
09.04.2024,Children and Adults,ALBION PRIMARY SCHOOL,"280,840.00",ALBION PRIMARY SCHOOL,SCHOOLS CAPITATION,5902631373,5001000000
09.04.2024,Children and Adults,ST JAMES CE PRIMARY SCHOOL,"277,555.00",ST JAMES' CE PRIMARY SCHOOL,SCHOOLS CAPITATION,5902631434,5001000070
09.04.2024,Children and Adults,DULWICH WOOD PRIMARY SCHOOL,"276,759.00",DULWICH WOOD PRIMARY SCHOOL,SCHOOLS CAPITATION,5902631414,5001000042
09.04.2024,Children and Adults,OLIVER GOLDSMITH PRIMARY SCHOOL,"276,581.00",OLIVER GOLDSMITH PRIMARY SCHOOL,SCHOOLS CAPITATION,5902631419,5001000051
09.04.2024,Children and Adults,SOUTHWARK PARK PRIMARY SCHOOL,"275,553.00",SOUTHWARK PARK PRIMARY SCHOOL,SCHOOLS CAPITATION,5902631429,5001000062
09.04.2024,Children and Adults,IVYDALE PRIMARY SCHOOL,"271,631.00",IVYDALE PRIMARY SCHOOL,SCHOOLS CAPITATION,5902631408,5001000038
09.04.2024,Children and Adults,GOODRICH PRIMARY SCHOOL,"270,096.00",GOODRICH PRIMARY SCHOOL,SCHOOLS CAPITATION,5902631395,5001000028
26.04.2024,Children and Adults,NOTTINGHAM REHAB LTD,"266,510.52",ICES CONTRACT,EQUIPMENT PURCHASE & REPAIR,5902633909,1000066462
16.04.2024,Children and Adults,NOTTINGHAM REHAB LTD,"262,685.67",ICES CONTRACT,EQUIPMENT PURCHASE & REPAIR,5902632409,1000066462
18.04.2024,Children and Adults,CAPITA BUSINESS SERVICES LTD,"260,452.01",C&AS SOFTWARE APPS,SOFTWARE,5902632870,1000006291
09.04.2024,Children and Adults,ENGLISH MARTYRS RC PRIMARY SCHOOL,"259,117.00",ENGLISH MARTYRS RC PRIMARY SCHOOL,SCHOOLS CAPITATION,5902631399,5001000030
19.04.2024,Housing,ARJ CONSTRUCTION LTD,"256,947.78",CAPITAL PS (HRA),CONSTRUCTION MAIN CONTRACT,2103857021,3000002232
09.04.2024,Children and Adults,BRUNSWICK PARK PRIMARY SCHOOL,"255,757.00",BRUNSWICK PARK PRIMARY SCHOOL,SCHOOLS CAPITATION,5902631382,5001000013
09.04.2024,Children and Adults,ALFRED SALTER PRIMARY SCHOOL,"252,795.00",ALFRED SALTER PRIMARY SCHOOL,SCHOOLS CAPITATION,5902631375,5001000005
24.04.2024,Children and Adults,BETHLEM & MAUDSLEY HOSPITAL SCHOOL,"251,292.00",LBS SPECIAL AND HOSP SCHLS,HIGH NEEDS - BASE FUNDING,5902633454,5001000010
09.04.2024,Children and Adults,CRAWFORD PRIMARY SCHOOL,"250,008.00",CRAWFORD PRIMARY SCHOOL,SCHOOLS CAPITATION,5902631392,5001000024
10.04.2024,Housing,VEOLIA ES (UK)LTD,"249,093.90",HEATING ACCOUNT,GAS,5902631696,1824835
09.04.2024,Children and Adults,HEBER PRIMARY SCHOOL,"244,723.00",HEBER PRIMARY SCHOOL,SCHOOLS CAPITATION,5902631404,5001000035
04.04.2024,Children and Adults,HATS GROUP LTD,"239,146.18",SCH TRANS � TRAVEL,HIRED VEHICLES,5902630771,1000042743
12.04.2024,Housing,A & E ELKINS LTD,"236,675.51",A&E ELKINS,I-WORLD CONTRACTORS HOLDING ACCOUNT,2103856396,4012501
16.04.2024,Children and Adults,OCTAVIA HOUSE SCHOOLS LTD,"233,333.34",NMSS/ INDEP SPECIAL,STATEMENTED FEES,2103856773,1000073579
09.04.2024,Children and Adults,ST JOHNS & ST CLEMENTS CE SCHOOL,"232,069.00",ST JOHN'S & ST CLEMENT'S CE PRIMARY SCHO,SCHOOLS CAPITATION,5902631438,5001000073
17.04.2024,Housing,WILLOW ESTATE AGENTS (LONDON) LTD,"232,049.71",NIGHTLY TA (NSC),EXTERNAL AGENCIES AND BODIES,5902632723,1000060607
24.04.2024,Children and Adults,HIGHSHORE SCHOOL,"231,576.00",LBS SPECIAL AND HOSP SCHLS,HIGH NEEDS - TOP UP FUNDING,5902633480,5001000046
09.04.2024,Children and Adults,KEYWORTH PRIMARY SCHOOL,"228,052.00",KEYWORTH PRIMARY SCHOOL,SCHOOLS CAPITATION,5902631412,5001000041
22.04.2024,Children and Adults,SOUTH LONDON & MAUDSLEY HOSPITAL,"227,046.00",SLAM SPOT MH RES,EXTERNAL AGENCIES AND BODIES,5902632826,1000013096
24.04.2024,Children and Adults,CHERRY GARDEN SCHOOL,"222,431.00",LBS SPECIAL AND HOSP SCHLS,HIGH NEEDS - TOP UP FUNDING,5902633462,5001000020
24.04.2024,Children and Adults,TUKE SCHOOL,"219,551.00",LBS SPECIAL AND HOSP SCHLS,HIGH NEEDS - TOP UP FUNDING,5902633515,5001000097
09.04.2024,Children and Adults,GRANGE PRIMARY SCHOOL,"218,851.00",GRANGE PRIMARY SCHOOL,SCHOOLS CAPITATION,5902631397,5001000029
11.04.2024,Housing,TKC HOUSING LIMITED,"213,677.87",PSL PLACEMENTS,EXTERNAL AGENCIES AND BODIES,5902631782,1000088199
04.04.2024,Children and Adults,UNLOCKING LANGUAGE LTD,"212,160.00",SALT,CONSULTANTS SERVICES,2103850312,1000081107
07.04.2024,Environment Neighbourhoods and Growth,F M CONWAY LTD,"209,271.85",HIGHWAY MAINTENANCE OVERHEADS,HIGHWAYS TERM CONTRACT,2103852197,4001384
04.04.2024,Environment Neighbourhoods and Growth,WALWORTH HOMES LTD,"206,406.00",CAPITAL PS (REGEN),CONST'N MAIN CONTRACT - NON CERTIFICATED,5902630840,1000079197
09.04.2024,Children and Adults,RIVERSIDE PRIMARY SCHOOL,"201,541.00",RIVERSIDE PRIMARY SCHOOL,SCHOOLS CAPITATION,5902631424,5001000056
04.04.2024,Children and Adults,ST ANTHONYS RC SCHOOL,"201,331.00",ST ANTHONY'S CATHOLIC PRIMARY SCHOOL,EARLY YEARS - 3 AND 4 YEAR OLDS,2103852102,5001000064
19.04.2024,Housing,GUILDMORE LTD,"198,771.10",CAPITAL PS (HRA),CONSTRUCTION MAIN CONTRACT -CERTIFICATED,2103858565,3000002150
01.04.2024,Housing,KENT COUNTY COUNCIL - LASER,"191,475.89",HEATING ACCOUNT,ELECTRICITY,5902629570,1000012926
09.04.2024,Children and Adults,ST FRANCIS'S RC PRIMARY SCHOOL,"190,595.00",ST FRANCIS RC PRIMARY SCHOOL,SCHOOLS CAPITATION,5902631431,5001000067
24.04.2024,Children and Adults,THE SALVATION ARMY,"190,531.00",SEMI-IND CONTRACTS,EXTERNAL AGENCIES AND BODIES,5902633601,1000016253
10.04.2024,Housing,SMITH & BYFORD LTD,"187,776.98",CAPITAL PS (HRA),CONSTRUCTION,2103855463,3000000520
25.04.2024,Children and Adults,TUKE SCHOOL,"182,506.37",LBS SPECIAL AND HOSP SCHLS,SCHOOLS CAPITATION,2103859144,5001000097
24.04.2024,Children and Adults,HIGHSHORE SCHOOL,"179,167.00",LBS SPECIAL AND HOSP SCHLS,HIGH NEEDS - BASE FUNDING,5902633479,5001000046
09.04.2024,Children and Adults,RYE OAK PRIMARY SCHOOL,"177,469.00",RYE OAK  DFES,SCHOOLS CAPITATION,5902631426,5001000059
09.04.2024,Children and Adults,DULWICH VILLAGE CE INFANTS SCHOOL,"173,055.00",DULWICH VILLAGE CE INFANTS' SCHOOL,SCHOOLS CAPITATION,5902631394,5001000027
16.04.2024,Housing,KIND & COMPANY (BUILDERS) LTD,"172,757.00",CAPITAL PS (HRA),CONSTRUCTION SITE COSTS,2103856739,3000001608
26.04.2024,DSO,CRATUS BUILDING SERVICES LIMITED,"171,875.21",SR - VOIDS TEAM,OTHER CONTRACTORS,2103859937,3000001055
25.04.2024,Housing,OCO LIMITED,"171,734.41",STANDAGE,I-WORLD CONTRACTORS HOLDING ACCOUNT,5902633590,1006066
10.04.2024,Housing,PRB ESTATES LTD,"168,844.74",PRBE,I-WORLD CONTRACTORS HOLDING ACCOUNT,2103856126,3000001691
26.04.2024,Children and Adults,FAITHFUL & GOULD,"166,679.47",CAPITAL PS (EDUCATION),CONSTRUCTION FEES,5902633901,1000061390
12.04.2024,Housing,BROWNING EST MGMT ASSN,"163,454.00",BROWNING EMB,M&M ALLOWANCE CO-OPS,5902631160,1000059362
24.04.2024,Children and Adults,EVELINA HOSPITAL SCHOOL,"162,840.00",LBS SPECIAL AND HOSP SCHLS,HIGH NEEDS - BASE FUNDING,5902633466,5001000031
21.04.2024,Housing,STACK LONDON LTD,"161,978.29",CAPITAL PS (HRA),CONSTRUCTION MAIN CONTRACT -CERTIFICATED,2103858096,3000002216
26.04.2024,DSO,ARMINA LTD,"161,379.86",SR TEMPORARY ACCOMMODATION DD,OTHER CONTRACTORS,2103860514,3000002121
30.04.2024,Housing,LETTING INTERNATIONAL LTD,"161,300.00",NIGHTLY TA (NSC),EXTERNAL AGENCIES AND BODIES,5902634187,1000070102
09.04.2024,Children and Adults,ST JOSEPHS RC JUNIOR  SCHOOL,"161,013.00",ST JOSEPHS RC JUNIOR(5203) SCHOOL,SCHOOLS CAPITATION,5902631387,5001000017
11.04.2024,Strategy and Communities,SOUTHWARK CITIZENS ADVICE,"159,000.00",LEGAL GRANTS,EXTERNAL AGENCIES AND BODIES,5902631961,1874379
24.04.2024,Children and Adults,HAYMERLE SCHOOL,"157,792.00",LBS SPECIAL AND HOSP SCHLS,HIGH NEEDS - TOP UP FUNDING,5902633478,5001000045
03.04.2024,Children and Adults,HATS GROUP LTD,"156,860.20",SCH TRANS � TRAVEL,CAB FARES,5902630664,1000042743
24.04.2024,Children and Adults,THE ST THOMAS THE APOSTLE COLLEGE,"156,116.00",YPLA SCHL SIXTH FORM,SCHOOLS CAPITATION,5902633506,5001000074
10.04.2024,Housing,PRB ESTATES LTD,"155,560.44",PRBE,I-WORLD CONTRACTORS HOLDING ACCOUNT,2103856114,3000001691
17.04.2024,Children and Adults,KINTORE WAY CHILDRENS CENTRE,"155,162.49",SCHOOLS IN FINANCIAL DIFFICULTY,SCHOOLS CAPITATION,2103858012,5001000047
16.04.2024,Suspense,INLAND REVENUE,"154,119.83",SUSPENSE ACCOUNT (COMPANY CODE 1000),CONSTRUCTION INDUSTRY TAX,2103857020,4003039
29.04.2024,Housing,SILK & MACKMAN SERVICES LTD,"154,058.14",PAYMENTS CONTROL ACCOUNT SILK & MACKMAN,I-WORLD CONTRACTORS HOLDING ACCOUNT,5902633947,1000035282
09.04.2024,Children and Adults,ST JAMES THE GREAT RC SCHOOL,"153,759.00",ST JAMES THE GREAT RC PRIMARY SCHOOL,SCHOOLS CAPITATION,5902631436,5001000071
18.04.2024,Housing,THEORI HOUSING MANAGEMENT SERVICES,"153,549.46",PSL PLACEMENTS,EXTERNAL AGENCIES AND BODIES,5902632832,1000079264
09.04.2024,Children and Adults,BOUCHER C OF E PRIMARY SCHOOL,"153,401.00",BOUTCHER CE PRIMARY SCHOOL,SCHOOLS CAPITATION,5902631381,5001000011
09.04.2024,Children and Adults,ROBERT BROWNING PRIMARY SCHOOL,"153,384.00",ROBERT BROWNING PRIMARY SCHOOL,SCHOOLS CAPITATION,5902631425,5001000057
09.04.2024,Children and Adults,CRAMPTON PRIMARY SCHOOL,"152,453.00",CRAMPTON PRIMARY SCHOOL,SCHOOLS CAPITATION,5902631391,5001000023
15.04.2024,Corporate,GREATER LONDON AUTHORITY,"152,354.90",LONDON PENSION FUND,LEVIES,5902632271,1000015827
29.04.2024,Housing,RNS HOMES LTD,"150,814.48",NIGHTLY TA (NSC),EXTERNAL AGENCIES AND BODIES,5902633957,1000090648
09.04.2024,Children and Adults,ILDERTON PRIMARY SCHOOL,"149,801.00",ILDERTON PRIMARY SCHOOL,SCHOOLS CAPITATION,5902631407,5001000037
29.04.2024,Children and Adults,NEILCOTT SPECIAL WORKS LTD,"149,724.40",CAPITAL PS (EDUCATION),CONSTRUCTION MAIN CONTRACT -CERTIFICATED,2103861425,3000000770
09.04.2024,Children and Adults,ST JOSEPHS CATHOLIC PRIMARY SCHOOL,"149,401.00",ST JOSEPHS RC (3476) PRIMARY SCHOOL,SCHOOLS CAPITATION,5902631443,5001000078
24.04.2024,Housing,SMITH & BYFORD LTD,"147,542.61",SMITH AND BYFORD,I-WORLD CONTRACTORS HOLDING ACCOUNT,5902633591,11212119
09.04.2024,Children and Adults,ST JOHNS RC PRIMARY SCHOOL,"146,784.00",ST JOHN'S RC PRIMARY SCHOOL,SCHOOLS CAPITATION,5902631440,5001000075
15.04.2024,Housing,BCS (ELECTRICAL & BUILDING SERVICES LTD),"146,465.93",BCS,I-WORLD CONTRACTORS HOLDING ACCOUNT,5902632242,1000062321
10.04.2024,Children and Adults,IVYDALE PRIMARY SCHOOL,"145,684.25",CHILD & FAM CENTRES,EXTERNAL AGENCIES AND BODIES,2103856168,5001000038
10.04.2024,Housing,RNS HOMES LTD,"145,311.50",NIGHTLY TA (NSC),EXTERNAL AGENCIES AND BODIES,5902631678,1000090648
12.04.2024,Housing,FAIR COMMUNITY HSG SERVICES LTD,"143,643.50",FAIR CHS TMO,M&M ALLOWANCE CO-OPS,5902631156,1000039650
26.04.2024,DSO,BCS (ELECTRICAL & BUILDING) LTD,"143,593.66",SR - VOIDS TEAM,OTHER CONTRACTORS,2103859936,3000001471
09.04.2024,Children and Adults,CATHEDRAL SCHOOL OF ST SAVIOUR & MARY,"143,131.00",THE CATHEDRAL OF ST. SAVIOUR & ST OLAVES,SCHOOLS CAPITATION,5902631447,5001000088
09.04.2024,Children and Adults,PILGRIM'S WAY PRIMARY SCHOOL,"142,715.00",PILGRIMS WAY PRIMARY SCHOOL,SCHOOLS CAPITATION,5902631422,5001000054
24.04.2024,Environment Neighbourhoods and Growth,KENT COUNTY COUNCIL - LASER,"142,314.76",STREET LIGHTING REACTIVE,ELECTRICITY,5902633592,1000012926
08.04.2024,Housing,GLOUCESTER GROVE ESTATE TMO,"142,060.25",GLOUCESTER GROVE ESTATE,M&M ALLOWANCE CO-OPS,5902631143,1000073072
09.04.2024,Children and Adults,BELLENDEN PRIMARY SCHOOL,"141,985.00",BELLENDEN PRIMARY SCHOOL,SCHOOLS CAPITATION,5902631377,5001000007
09.04.2024,Children and Adults,TOWER BRIDGE PRIMARY SCHOOL,"139,297.00",TOWER BRIDGE PRIMARY SCHOOL,SCHOOLS CAPITATION,5902631449,5001000095
09.04.2024,Children and Adults,SNOWSFIELDS PRIMARY SCHOOL,"138,888.00",SNOWSFIELDS PRIMARY SCHOOL,SCHOOLS CAPITATION,5902631428,5001000061
23.04.2024,Housing,ZFA ACCOMMODATION LTD,"137,460.11",PSL PLACEMENTS,EXTERNAL AGENCIES AND BODIES,5902633337,1000082620
25.04.2024,Children and Adults,THE PARK COLLEGE,"133,464.52",SPECIALIST POST-16,STATEMENTED FEES,2103859781,1000088955
23.04.2024,Suspense,LONDON MUTUAL CREDIT UNION,"133,030.22",SUSPENSE ACCOUNT (COMPANY CODE 1000),PAYROLL - 3RD PARTY DEDUCTIONS,2103859009,1000015860
22.04.2024,Housing,DUCTCLEAN (UK) LTD,"133,000.00",DUCTCLEAN,I-WORLD CONTRACTORS HOLDING ACCOUNT,2103858607,3000001635
10.04.2024,Children and Adults,DULWICH WOOD CHILDRENS CENTRE,"132,803.25",CHILD & FAM CENTRES,EXTERNAL AGENCIES AND BODIES,2103856169,5001000099
09.04.2024,Children and Adults,FRIARS PRIMARY (FOUNDATION) SCHOOL,"131,825.00",FRIARS FOUNDATION PRIMARY SCHOOL,SCHOOLS CAPITATION,5902631403,5001000033
09.04.2024,Children and Adults,ST JOSEPHS CATHOLIC SCHOOL,"130,909.00",ST JOSEPHS RC (3484) SCHOOL,SCHOOLS CAPITATION,5902631442,5001000076
22.04.2024,Children and Adults,SOUTH LONDON & MAUDSLEY HOSPITAL,"128,662.00",SLAM SPOT MH RES,EXTERNAL AGENCIES AND BODIES,5902632826,1000013096
28.04.2024,Strategy and Communities,LONDON COUNCILS,"127,294.00",CORPORATE & DEPARTMENTAL EXPENDITURE,MISCELLANEOUS RECEIPTS,5902633636,11237079
10.04.2024,Housing,GLENMAN CORPORATION LTD,"126,456.36",CAPITAL PS (HRA),CONSTRUCTION MAIN CONTRACT -CERTIFICATED,2103856112,3000002230
17.04.2024,Environment Neighbourhoods and Growth,CENTRAL BUILDERS & SCAFFOLDING SERVICES LTD,"125,000.00",CAPITAL PS (LEISURE),CONSTRUCTION MAIN CONTRACT,2103857023,3000002247
26.04.2024,Housing,KENT COUNTY COUNCIL - LASER,"124,955.28",RESIDENT SERVICES BUSINESS SUPPORT,ELECTRICITY,5902633876,1000012926
09.04.2024,Children and Adults,CHARLOTTE  SHARMAN PRIMARY SCHOOL,"124,945.00",CHARLOTTE SHARMAN PRIMARY SCHOOL,SCHOOLS CAPITATION,5902631386,5001000016
24.04.2024,Housing,GUILDMORE LTD,"124,429.39",CAPITAL PS (HRA),CONSTRUCTION MAIN CONTRACT -CERTIFICATED,2103859179,3000002150
09.04.2024,Children and Adults,ST GEORGES CE SCHOOL,"124,189.00",ST GEORGE'S CE PRIMARY SCHOOL,SCHOOLS CAPITATION,5902631433,5001000069
30.04.2024,Corporate,SAP (UK) LTD,"123,188.77",ERP PROGRAMME BUDGET,SOFTWARE,5902634001,1000002550
24.04.2024,Children and Adults,SOUTHWARK INCLUSIVE LEARNING SERVICE,"122,761.00",LBS PRU,HIGH NEEDS - TOP UP FUNDING,5902633518,5001000105
09.04.2024,Children and Adults,ST GEORGES RC SCHOOL,"121,919.00",ST GEORGE'S CATHEDRAL RC PRIMARY SCHOOL,SCHOOLS CAPITATION,5902631432,5001000068
26.04.2024,DSO,PROPERTY FACILITIES GROUP PLC,"121,530.58",SR COMMUNAL - DELIVERY TEAM,OTHER CONTRACTORS,2103859938,3000001420
09.04.2024,Housing,KENT COUNTY COUNCIL - LASER,"121,255.66",RESIDENT SERVICES BUSINESS SUPPORT,ELECTRICITY,5902631461,1000012926
09.04.2024,Finance,TRANSPORT FOR LONDON GROUP PLANNING,"120,705.43",MAYORAL CIL,LEVIES,5902631480,1000065130
08.04.2024,Children and Adults,GROVE CARE PARTNERSHIP LIMITED,"119,352.46",LD LTS 18-64,RESIDENTIAL CARE,2103854400,1000052893
10.04.2024,Children and Adults,PILGRIM'S WAY PRIMARY SCHOOL,"119,058.75",CHILD & FAM CENTRES,EXTERNAL AGENCIES AND BODIES,2103856170,5001000054
19.04.2024,Children and Adults,MIHOMECARE LTD,"118,230.00",REABLEMENT CONTRACT,HOMECARE - IC,5902632241,1000042594
09.04.2024,Children and Adults,HOLLYDALE PRIMARY SCHOOL,"117,469.00",HOLLYDALE PRIMARY SCHOOL,SCHOOLS CAPITATION,5902631406,5001000036
11.04.2024,Housing,BRIDGEWATER ROOFING CONTRACTORS LTD,"117,389.84",A&E ELKINS,I-WORLD CONTRACTORS HOLDING ACCOUNT,2103856188,3000001482
09.04.2024,Children and Adults,ST PETERS CE SCHOOL,"117,037.00",ST PETER'S CE PRIMARY SCHOOL,SCHOOLS CAPITATION,5902631445,5001000083
10.04.2024,Housing,SMITH & BYFORD LTD,"116,596.78",CAPITAL PS (HRA),CONSTRUCTION,2103855464,3000000520
04.04.2024,Environment Neighbourhoods and Growth,WALWORTH HOMES LTD,"115,190.03",CAPITAL PS (REGEN),CONST'N MAIN CONTRACT - NON CERTIFICATED,5902630841,1000079197
29.04.2024,Housing,DUCTCLEAN (UK) LTD,"113,917.30",DUCTCLEAN,I-WORLD CONTRACTORS HOLDING ACCOUNT,2103860556,3000001635
03.04.2024,Housing,BRIDGEWATER ROOFING CONTRACTORS LTD,"113,806.63",BRC,I-WORLD CONTRACTORS HOLDING ACCOUNT,2103849340,3000001482
24.04.2024,Children and Adults,TUKE SCHOOL,"112,223.00",LBS SPECIAL AND HOSP SCHLS,HIGH NEEDS - BASE FUNDING,5902633514,5001000097
16.04.2024,Housing,STAR PEOPLE LTD,"110,597.80",NIGHTLY TA (NSC),EXTERNAL AGENCIES AND BODIES,5902632394,1000088790
04.04.2024,Housing,SEVILLE DEVELOPMENTS LIMITED,"109,894.89",CAPITAL PS (HRA),CONSTRUCTION MAIN CONTRACT -CERTIFICATED,5902630122,1000090393
29.04.2024,Finance,WE ARE WATERLOO LTD,"107,537.59",WATERLOO QUARTER,EXTERNAL AGENCIES AND BODIES,5902633916,1000057618
10.04.2024,Governance and Assurance,CORPORATE DOCUMENT SERVICES LTD,"107,475.52",GLA ELECTIONS,POSTAGES,2103856141,11324274
23.04.2024,Finance,BETTER BANKSIDE,"106,868.69",BETTER BANKSIDE,EXTERNAL AGENCIES AND BODIES,5902633357,1000036227
09.04.2024,Children and Adults,VICTORY SCHOOL,"106,765.00",VICTORY PRIMARY SCHOOL,SCHOOLS CAPITATION,5902631450,5001000098
24.04.2024,Children and Adults,ANN BERNADT NURSERY SCHOOL,"106,131.00",ANN BERNADT (SUMNER),EARLY YEARS - 3 AND 4 YEAR OLDS,5902633511,5001000085
24.04.2024,Children and Adults,SOUTHWARK INCLUSIVE LEARNING SERVICE,"105,556.00",LBS PRU,HIGH NEEDS - BASE FUNDING,5902633517,5001000105
04.04.2024,Children and Adults,HATS GROUP LTD,"104,839.28",SCH TRANS � TRAVEL,HIRED VEHICLES,5902630767,1000042743
24.04.2024,Children and Adults,CHERRY GARDEN SCHOOL,"102,777.00",LBS SPECIAL AND HOSP SCHLS,HIGH NEEDS - BASE FUNDING,5902633461,5001000020
29.04.2024,Housing,EQUANS REGENERATION LTD,"101,935.94",CAPITAL PS (HRA),CONSTRUCTION MAIN CONTRACT -CERTIFICATED,2103860558,3000002035
09.04.2024,Children and Adults,COMBER GROVE PRIMARY SCHOOL,"100,921.00",COMBER GROVE PRIMARY SCHOOL,SCHOOLS CAPITATION,5902631390,5001000022
22.04.2024,Housing,APPLEYARD & TREW,"100,750.00",HOME OWNERSHIP,PROPERTY INSURANCE COSTS,5902633171,1000029065
12.04.2024,Strategy and Communities,COMMUNITY SOUTHWARK,"100,320.75",CVS & VOLUNTEERING,GRANTS,5902632157,1000018147
16.04.2024,Children and Adults,SPA EDUCATION TRUST,"100,000.00",AC & FREE - SPECIAL,STATEMENTED FEES,2103856774,1000081600
09.04.2024,Children and Adults,PETER HILLS CE SCHOOL,"99,213.00",PETER HILLS CE PRIMARY SCHOOL,SCHOOLS CAPITATION,5902631421,5001000053
08.04.2024,Children and Adults,GREEN CARE AND SUPPORT LIMITED,"99,000.00",LD LTS 18-64,SUPPORTED LIVING,2103854441,1000087661
26.04.2024,Housing,MX ESTATES LTD,"98,664.16",NIGHTLY TA (NSC),EXTERNAL AGENCIES AND BODIES,5902633827,1000083639
18.04.2024,Corporate,ACHIEVE TOGETHER SERVICES LIMITED,"97,234.35",VAT INPUTS - ADJUSTMENTS,VAT CONTROL ACCOUNT,2103858095,1000089975
22.04.2024,Housing,BLOOM PROCUREMENT SERVICES LTD,"96,943.70",LEDBURY ESTATE,SECURITY SERVICES,5902633180,1000082531
17.04.2024,Housing,NATIONWIDE ACCOMMODATION,"96,218.74",PSL PLACEMENTS,EXTERNAL AGENCIES AND BODIES,5902632673,1000076112
05.04.2024,Environment Neighbourhoods and Growth,ESTATE LIGHTING SOLUTIONS LTD,"96,037.50",PUBLIC LIGHTING,OTHER CONTRACTORS,2103852144,3000002130
11.04.2024,Housing,BUILDTRUST LTD,"95,107.65",BUILD TRUST,I-WORLD CONTRACTORS HOLDING ACCOUNT,2103856176,3000002010
10.04.2024,Children and Adults,1ST PLACE CHILDREN & PARENTS CENTRE,"93,865.75",CHILD & FAM CENTRES,EXTERNAL AGENCIES AND BODIES,2103856167,1000049952
05.04.2024,Environment Neighbourhoods and Growth,ALLPAY LTD,"92,806.00",NO RECOURSE TO PUBLIC FUNDS,OTHER PAYMENTS FOR CLIENTS,5902631103,1000078859
26.04.2024,DSO,BCS (ELECTRICAL & BUILDING) LTD,"91,331.88",SR - VOIDS TEAM,OTHER CONTRACTORS,2103859927,3000001471
13.04.2024,Finance,LONDON BRIDGE BUSINESS IMPROVEMENT,"91,262.14",TEAM LONDON BRIDGE,EXTERNAL AGENCIES AND BODIES,5902632176,1000050879
18.04.2024,Housing,FINEFAIR LTD,"90,228.17",PSL PLACEMENTS,EXTERNAL AGENCIES AND BODIES,5902632858,1000075570
19.04.2024,Housing,SITTARA LTD,"89,842.54",NIGHTLY TA (NSC),EXTERNAL AGENCIES AND BODIES,5902633094,1000080857
22.04.2024,Housing,BLOOM PROCUREMENT SERVICES LTD,"89,359.20",LEDBURY ESTATE,SECURITY SERVICES,5902633181,1000082531
14.04.2024,Strategy and Communities,SOUTHWARK LAW CENTRE,"89,040.00",LEGAL GRANTS,EXTERNAL AGENCIES AND BODIES,5902631060,1981325
24.04.2024,Children and Adults,ST SAVIOURS & ST OLAVES SCHOOL,"88,496.00",YPLA SCHL SIXTH FORM,SCHOOLS CAPITATION,5902633510,5001000084
09.04.2024,Children and Adults,ST JOSEPHS CATHOLIC INFANTS SCHOOL,"87,699.00",ST JOSEPHS RC INFANT(5204),SCHOOLS CAPITATION,5902631388,5001000018
05.04.2024,Finance,MACMUNNIS LIMITED,"87,069.43",PROPERTY SERVICES,SOFTWARE,5902631049,1000086846
11.04.2024,Housing,TKC HOUSING LIMITED,"86,581.24",PSL PLACEMENTS,EXTERNAL AGENCIES AND BODIES,5902631878,1000088199
30.04.2024,Housing,VALUATION OFFICE AGENCY,"86,500.00",HOME OWNERSHIP,PROPERTY INSURANCE COSTS,5902634128,1000065901
24.04.2024,Children and Adults,KENT COUNTY COUNCIL,"84,688.50",SCH TRANS � TRAVEL,M&M ALLOWANCE CO-OPS,5902633596,1000053817
10.04.2024,Housing,APCOA PARKING (UK) LTD,"84,566.35",PARKING CONTROL,OTHER CONTRACTORS,5902631177,1718645
29.04.2024,DSO,SANDERSONS BUILDING SERVICES LTD,"84,481.16",SR - VOIDS TEAM,OTHER CONTRACTORS,2103860560,3000002065
24.04.2024,Children and Adults,HAYMERLE SCHOOL,"84,167.00",LBS SPECIAL AND HOSP SCHLS,HIGH NEEDS - BASE FUNDING,5902633477,5001000045
26.04.2024,DSO,GC CONSTRUCT LTD,"83,670.54",SR - VOIDS TEAM,OTHER CONTRACTORS,2103859926,3000002106
05.04.2024,Children and Adults,ACCESS MOBILITY TRANSPORT LTD,"82,805.00",SCH TRANS � TRAVEL,CAB FARES,5902631052,1000074637
07.04.2024,Children and Adults,1ST PLACE CHILDREN & PARENTS CENTRE,"80,920.00",FAMILY HUBS GRANT,PROFESSIONAL FEES,5902630824,1000049952
19.04.2024,Children and Adults,IVYDALE PRIMARY SCHOOL,"80,920.00",FAMILY HUBS GRANT,PROFESSIONAL FEES,5902633073,5001000038
03.04.2024,Environment Neighbourhoods and Growth,MARWOOD ELECTRICAL COMPANY LTD,"80,283.20",PUBLIC LIGHTING,MATERIALS,5902630543,1001874
11.04.2024,Children and Adults,STONEGROVE LIMITED,"79,990.98",CAPITAL PS (SOC SERV),CONSTRUCTION MAIN CONTRACT,2103856175,3000001525
09.04.2024,Children and Adults,ST MARY MAGDALENE CE SCHOOL,"79,640.00",ST MARY MAGDALENE CE PRIMARY SCHOOL,SCHOOLS CAPITATION,5902631444,5001000080
25.04.2024,Corporate,LUMESSE LTD,"79,547.25",ERP PROGRAMME BUDGET,SOFTWARE,5902632827,1000069981
03.04.2024,Housing,LIFTEC LIFTS LTD,"78,820.17",PAYMENTS CONTROL ACCOUNT - LIFTEC,I-WORLD CONTRACTORS HOLDING ACCOUNT,5902630504,1000057278
22.04.2024,Housing,DUCTCLEAN (UK) LTD,"77,258.94",DUCTCLEAN,I-WORLD CONTRACTORS HOLDING ACCOUNT,2103858608,3000001635
07.04.2024,Environment Neighbourhoods and Growth,F M CONWAY LTD,"77,207.89",HWAY MINOR WKS NON PRINC RD,HIGHWAYS TERM CONTRACT,2103852189,4001384
12.04.2024,Environment Neighbourhoods and Growth,J C CONSULTANT SERVICES LTD,"75,000.00",CHIEF EXECUTIVE'S OFFICE,EXTERNAL AGENCIES AND BODIES,5902631006,1000042476
11.04.2024,Children and Adults,FLEET TUTORS,"74,906.00",AP & HOSPITAL SCHLS,STATEMENTED FEES,2103856177,1000044820
10.04.2024,Housing,A & E ELKINS LTD,"74,495.79",A&E ELKINS,I-WORLD CONTRACTORS HOLDING ACCOUNT,2103856116,4012501
22.04.2024,Housing,NORBURY PROPERTY SERVICES (LONDON) LTD,"74,170.30",NIGHTLY TA (NSC),EXTERNAL AGENCIES AND BODIES,5902633138,1000075566
04.04.2024,Children and Adults,ST SAVIOURS & ST OLAVES SCHOOL,"73,800.00",PUPIL PREMIUM,SCHOOLS CAPITATION,2103852088,5001000084
11.04.2024,Children and Adults,FLEET TUTORS,"73,725.00",AP & HOSPITAL SCHLS,STATEMENTED FEES,2103856178,1000044820
19.04.2024,Corporate,HM REVENUE & CUSTOMS,"72,540.88",APPRENTICESHIP LEVY,APPRENTICESHIP LEVY,2103843243,1016231
29.04.2024,Children and Adults,ALLPAY LTD (APPOINTEESHIPS - ADULTS,"72,000.00",APPOINTEESHIPS,EXTERNAL AGENCIES AND BODIES,2103861268,1000079890
07.04.2024,Finance,AGY CONSULTANTS LTD,"71,499.96",GIS,PROFESSIONAL FEES,5902630631,1000002277
26.04.2024,DSO,CRATUS BUILDING SERVICES LIMITED,"70,631.33",SR - VOIDS TEAM,OTHER CONTRACTORS,2103859935,3000001055
09.04.2024,Housing,KENT COUNTY COUNCIL - LASER,"70,557.41",RESIDENT SERVICES BUSINESS SUPPORT,ELECTRICITY,5902631499,1000012926
07.04.2024,Environment Neighbourhoods and Growth,F M CONWAY LTD,"70,206.53",HWAY MINOR WKS NON PRINC RD,HIGHWAYS TERM CONTRACT,2103852192,4001384
23.04.2024,Environment Neighbourhoods and Growth,BRIGHTLY SOFTWARE LTD,"70,200.00",OPE. F & A INFORMATION TECHNOLOGY,SOFTWARE,5902633247,1000088840
12.04.2024,Children and Adults,PRIORS COURT SERVICES LTD,"67,989.40",DISABILITIES LAC,RESIDENTIAL CARE,2103856458,1000085127
22.04.2024,Children and Adults,PRIORS COURT SERVICES LTD,"67,989.40",DISABILITIES LAC,RESIDENTIAL CARE,2103858684,1000085127
29.04.2024,Corporate,ENVIRONMENT AGENCY,"66,777.67",ENVIRONMENT AGENCY,LEVIES,5902633972,1000007201
13.04.2024,Housing,A & E ELKINS LTD,"66,624.24",CAPITAL PS (HRA),CONSTRUCTION MAIN CONTRACT -CERTIFICATED,2103855144,4012501
09.04.2024,Children and Adults,ST JUDES CHURCH OF ENGLAND PRIMARY,"66,139.00",ST JUDE'S CE PRIMARY SCHOOL,SCHOOLS CAPITATION,5902631389,5001000019
18.04.2024,Housing,DUCTCLEAN (UK) LTD,"65,477.70",DUCTCLEAN,I-WORLD CONTRACTORS HOLDING ACCOUNT,2103858099,3000001635
18.04.2024,Housing,FRANKLYN SHAW ASSOCIATES LTD,"64,454.76",FRANKLIN SHAW ASSOCIATES,I-WORLD CONTRACTORS HOLDING ACCOUNT,2103858103,3000001465
13.04.2024,Housing,WILLOWBROOK TENANT MANAGEMENT CO-OP LTD,"64,091.00",WILLOWBROOK CO-OP,M&M ALLOWANCE CO-OPS,5902631163,11311402
24.04.2024,Children and Adults,BEORMUND PRIMARY SCHOOL,"63,861.00",LBS SPECIAL AND HOSP SCHLS,HIGH NEEDS - TOP UP FUNDING,5902633452,5001000008
29.04.2024,Housing,HOMES 2 LET UK LTD,"63,676.40",NIGHTLY TA (NSC),EXTERNAL AGENCIES AND BODIES,5902633932,1000079868
24.04.2024,Environment Neighbourhoods and Growth,GUILDMORE LTD,"63,556.17",CAPITAL PS (REGEN),CONSTRUCTION MAIN CONTRACT -CERTIFICATED,2103859764,3000002150
18.04.2024,Housing,PROPERTYPLACEBOOK LTD,"62,259.70",NIGHTLY TA (NSC),EXTERNAL AGENCIES AND BODIES,5902632806,1000077817
23.04.2024,Housing,WALWORTH HOMES LTD,"62,172.84",CAPITAL PS (HRA),CONSTRUCTION FEES  - EXTERNAL,5902633291,1000079197
25.04.2024,Children and Adults,LONDON BOROUGH OF EALING,"61,500.00",C & F PLACEMENT TEAM,OTHER LOCAL AUTHORITIES,5902633769,1000033322
07.04.2024,Environment Neighbourhoods and Growth,F M CONWAY LTD,"61,457.53",HIGHWAY MAINTENANCE OVERHEADS,HIGHWAYS TERM CONTRACT,2103852184,4001384
12.04.2024,Children and Adults,THE VILLA SCHOOL & NURSERY LTD,"61,434.00",NURSERY ED GRANT 3 AND 4 YR OLDS,GRANTS,2103856388,1000003742
04.04.2024,Children and Adults,KEYWORTH PRIMARY SCHOOL,"61,100.00",PUPIL PREMIUM,SCHOOLS CAPITATION,2103852096,5001000041
26.04.2024,Housing,MX ESTATES LTD,"60,726.09",NIGHTLY TA (NSC),EXTERNAL AGENCIES AND BODIES,5902633827,1000083639
04.04.2024,Children and Adults,GRANGE PRIMARY SCHOOL,"60,700.00",PUPIL PREMIUM,SCHOOLS CAPITATION,2103852095,5001000029
17.04.2024,Environment Neighbourhoods and Growth,CENTRAL BUILDERS & SCAFFOLDING SERVICES LTD,"60,000.00",CAPITAL PS (LEISURE),CONSTRUCTION MAIN CONTRACT,2103857022,3000002247
26.04.2024,Children and Adults,AEGIS 24/7 LTD,"59,965.50",CHILDREN�S RESID,RESIDENTIAL CARE,2103860052,1000089533
15.04.2024,Children and Adults,LOOK AHEAD CARE AND SUPPORT LTD,"59,591.50",S75 SUPHSG SCH LBS LEAD,EXTERNAL AGENCIES AND BODIES,5902632234,1000047299
15.04.2024,Strategy and Communities,LONDON COUNCILS,"58,647.00",LONDON COUNCILS,OTHER LOCAL AUTHORITIES,5902631881,11237079
05.04.2024,Environment Neighbourhoods and Growth,F M CONWAY LTD,"58,459.34",CAPITAL PS (LEISURE),CONSTRUCTION,2103852206,4001384
28.04.2024,Housing,HADDON HALL RESIDENTS TMO,"58,351.50",HADDON HALL CO-OP,M&M ALLOWANCE CO-OPS,5902633326,1040504
22.04.2024,Housing,TAAKSVALE HOUSING LTD,"58,062.29",NIGHTLY TA (NSC),EXTERNAL AGENCIES AND BODIES,5902633147,1000073665
26.04.2024,DSO,SANDERSONS BUILDING SERVICES LTD,"57,468.35",SR - VOIDS TEAM,OTHER CONTRACTORS,2103859934,3000002065
12.04.2024,Children and Adults,TIGERS CHILDCARE LTD,"57,394.80",NURSERY ED GRANT 3 AND 4 YR OLDS,GRANTS,2103856389,1000084290
11.04.2024,Children and Adults,STONEGROVE LIMITED,"57,113.31",CAPITAL PS (SOC SERV),CONSTRUCTION MAIN CONTRACT,2103856185,3000001525
11.04.2024,Housing,KENT COUNTY COUNCIL - LASER,"56,691.34",HEATING ACCOUNT,GAS,5902631844,1000012926
19.04.2024,Children and Adults,AGINCARE (SOUTHWARK) LIMITED,"56,606.48",PHY LTS 65+,RESIDENTIAL CARE,5902633097,1000089635
12.04.2024,Housing,LETTING INTERNATIONAL LTD,"56,547.16",PSL PLACEMENTS,EXTERNAL AGENCIES AND BODIES,5902631131,1000070102
16.04.2024,Environment Neighbourhoods and Growth,WATER PLUS LTD,"55,906.12",THE CASTLE CENTRE,WATER,5902632487,1000087903
07.04.2024,Environment Neighbourhoods and Growth,F M CONWAY LTD,"55,355.75",CAPITAL PS (LEISURE),CONSTRUCTION FEES,2103852182,4001384
24.04.2024,Children and Adults,NELL GWYNN NURSERY SCHOOL,"55,227.00",NELL GWYNN CHILDRENS CENTRE,EARLY YEARS - 3 AND 4 YEAR OLDS,5902633483,5001000049
08.04.2024,Environment Neighbourhoods and Growth,GLENMAN CORPORATION LTD,"55,091.48",CAPITAL PS (REGEN),CONSTRUCTION MAIN CONTRACT -CERTIFICATED,2103853749,3000002230
12.04.2024,Children and Adults,SMART START NURSERY,"55,065.60",NURSERY ED GRANT 3 AND 4 YR OLDS,GRANTS,2103856377,1000056317
24.04.2024,DSO,BCS (ELECTRICAL & BUILDING) LTD,"54,645.90",DAMP & MOULD TEAM,OTHER CONTRACTORS,2103859779,3000001471
11.04.2024,Housing,TAAKSVALE HOUSING LTD,"54,584.86",NIGHTLY TA (NSC),EXTERNAL AGENCIES AND BODIES,5902631963,1000073665
04.04.2024,Environment Neighbourhoods and Growth,SYD BISHOP & SONS(DEMOLITION) LTD,"53,706.59",CAPITAL PS (REGEN),CONSTRUCTION MAIN CONTRACT,2103851792,3000000990
26.04.2024,Children and Adults,SOLACE CARE PARTNERS LTD,"53,662.71",CHILDREN�S RESID,RESIDENTIAL CARE,2103860046,1000090499
26.04.2024,DSO,GC CONSTRUCT LTD,"53,468.08",SR - VOIDS TEAM,OTHER CONTRACTORS,2103859925,3000002106
22.04.2024,Finance,MACCREANOR LAVINGTON LTD (ROTTERDAM,"50,203.00",OKR MASTER PLANNING,PROFESSIONAL FEES,5902633203,1000091012
07.04.2024,Children and Adults,GGI PARTNERS LIMITED,"50,000.00",HEALTHY WEIGHT,EXTERNAL AGENCIES AND BODIES,5902631058,1000090842
15.04.2024,Environment Neighbourhoods and Growth,ALFRED SALTER PRIMARY SCHOOL,"50,000.00",CAPITAL PS (LEISURE),CAPITAL GRANTS,5902631854,5001000005
26.04.2024,Children and Adults,FAITHFUL & GOULD,"49,986.64",CAPITAL PS (EDUCATION),CONSTRUCTION FEES,5902633901,1000061390
05.04.2024,Finance,WATES PROPERTY SERVICES LTD,"49,564.33",DANGEROUS STRUCTURES,OTHER CONTRACTORS,5902631032,11322039
24.04.2024,Housing,LTA DIRECT LTD,"49,506.00",NIGHTLY TA (NSC),EXTERNAL AGENCIES AND BODIES,5902633600,1000085314
08.04.2024,Children and Adults,GROVE CARE PARTNERSHIP LIMITED,"49,055.79",LD LTS 18-64,RESIDENTIAL CARE,2103854493,1000052893
10.04.2024,Housing,LONDON & QUADRANT HOUSING TRUST,"48,869.37",MANOR PLACE HOSTEL,EXTERNAL AGENCIES AND BODIES,5902630698,1000014718
25.04.2024,Housing,DIAMOND PROPERTY MANAGEMENT LTD,"48,845.10",NIGHTLY TA (NSC),EXTERNAL AGENCIES AND BODIES,5902633727,1000088789
26.04.2024,Children and Adults,PCS SERVICES LIMITED,"48,428.00",CHILDREN�S RESID,RESIDENTIAL CARE,2103860053,1000087059
19.04.2024,Housing,UK POWER NETWORKS (OPERATIONS) LTD,"48,252.43",CAPITAL PS (HRA),CONSTRUCTION,5902632997,1000016085
22.04.2024,Housing,STANDAGE & CO LTD,"48,169.00",AYLESBURY,SECURITY SERVICES,2103858602,4002817
10.04.2024,Housing,TKC HOUSING LIMITED,"48,000.00",PSL PLACEMENTS,GRANTS,5902631770,1000088199
04.04.2024,Children and Adults,THE CHARTER SCHOOLS EDUCATIONAL TRUST,"46,729.30",FREE HEALTHY SCHOOL MEALS,SCHOOLS CAPITATION,2103851814,1000066949
22.04.2024,Housing,STANDAGE & CO LTD,"46,711.00",AYLESBURY,SECURITY SERVICES,2103858600,4002817
23.04.2024,DSO,SPECTRA-GLAZE SERVICES,"46,242.78",SR COMMUNAL - DELIVERY TEAM,OTHER CONTRACTORS,5902633251,1000077605
26.04.2024,DSO,ARMINA LTD,"45,783.16",CAMBERWELL DD,OTHER CONTRACTORS,2103860513,3000002121
15.04.2024,Children and Adults,ANN BERNADT NURSERY SCHOOL,"45,560.00",NURSERY ED GRANT 3 AND 4 YR OLDS,EARLY YEARS - 3 AND 4 YEAR OLDS,5902632306,5001000085
22.04.2024,Housing,STANDAGE & CO LTD,"45,045.00",AYLESBURY,SECURITY SERVICES,2103858603,4002817
18.04.2024,Housing,LEATHERMARKET COMMUNITY BENEFIT SOCIETY LTD,"45,000.00",CAPITAL PS (HRA),CONSTRUCTION FEES  - EXTERNAL,5902632861,1000076870
18.04.2024,Corporate,HIGHSHORE SCHOOL,"44,959.63",EDUCATION VAT INPUTS,VAT CONTROL ACCOUNT,2103858386,5001000046
11.04.2024,Children and Adults,FLEET TUTORS,"44,137.00",AP & HOSPITAL SCHLS,STATEMENTED FEES,2103856181,1000044820
12.04.2024,Children and Adults,1ST PLACE CHILDREN & PARENTS CENTRE,"44,100.00",NURSERY ED GRANT 3 AND 4 YR OLDS,GRANTS,2103856296,1000049952
28.04.2024,Housing,FALCON POINT MANAGEMENT GROUP LTD,"43,820.25",FALCON POINT TMO,M&M ALLOWANCE CO-OPS,5902633322,11117573
04.04.2024,Environment Neighbourhoods and Growth,WALWORTH HOMES LTD,"43,522.90",CAPITAL PS (REGEN),CONST'N MAIN CONTRACT - NON CERTIFICATED,5902630843,1000079197
04.04.2024,Environment Neighbourhoods and Growth,WALWORTH HOMES LTD,"42,948.32",CAPITAL PS (REGEN),CONST'N MAIN CONTRACT - NON CERTIFICATED,5902630842,1000079197
19.04.2024,Strategy and Communities,COPYRIGHT LICENSING AGENCY LTD,"42,806.14",MEDIA & E-COMMUNICATIONS,OFFICE EXPENSES,5902632023,11252504
12.04.2024,Children and Adults,REDRIFF PRIMARY SCHOOL,"42,476.40",NURSERY ED GRANT 3 AND 4 YR OLDS,GRANTS,2103856369,1000067877
28.04.2024,Housing,TWO TOWERS HOUSING CO-OP LTD,"42,370.25",TWO TOWERS,M&M ALLOWANCE CO-OPS,5902633336,1000006843
05.04.2024,Environment Neighbourhoods and Growth,C S G (USHERS) LTD,"42,311.00",TREES TERM CONTRACT,TREE MAINTENANCE,5902630246,1000073203
08.04.2024,Environment Neighbourhoods and Growth,CONSTELLIA PUBLIC LIMITED,"42,055.20",CAPITAL PS (LEISURE),CONSTRUCTION FEES,5902631185,1000088137
27.04.2024,Housing,JUDGE AND PRIESTLEY SOLICITORS,"41,924.00",DISREPAIR,BUILDING R&M,5902633144,1472217
26.04.2024,Housing,KENT COUNTY COUNCIL - LASER,"41,835.60",HEATING ACCOUNT,GAS,5902633353,1000012926
18.04.2024,Housing,STACK LONDON LTD,"41,696.99",CAPITAL PS (HRA),CONSTRUCTION MAIN CONTRACT -CERTIFICATED,2103858098,3000002216
18.04.2024,Corporate,ALBION PRIMARY SCHOOL,"41,064.36",EDUCATION VAT INPUTS,VAT CONTROL ACCOUNT,2103858316,5001000000
18.04.2024,Housing,DMS PROPERTIES SERVICES LTD,"40,951.25",NIGHTLY TA (NSC),EXTERNAL AGENCIES AND BODIES,5902632974,1000081522
18.04.2024,Housing,STENFORD PROPERTY LTD,"40,850.25",NIGHTLY TA (NSC),EXTERNAL AGENCIES AND BODIES,5902632868,1000074759
04.04.2024,Children and Adults,GOODRICH PRIMARY SCHOOL,"40,600.00",PUPIL PREMIUM,SCHOOLS CAPITATION,2103852089,5001000028
16.04.2024,Environment Neighbourhoods and Growth,PRIDE DEVELOPMENTS,"40,441.80",CAPITAL PS (REGEN),CONSTRUCTION MAIN CONTRACT,5902632410,1000083203
26.04.2024,Children and Adults,CEDAR HOUSE (KENT) LTD,"40,395.21",CHILDREN�S RESID,RESIDENTIAL CARE,2103860054,1000090433
15.04.2024,Environment Neighbourhoods and Growth,BUXTON BUILDING CONTRACTORS LTD,"40,137.00",CAPITAL PS (LEISURE),CONSTRUCTION MAIN CONTRACT -CERTIFICATED,2103856186,3000000830
11.04.2024,Corporate,SHELTER THE NATIONAL CAMPAIGN FOR HOMELESS PEOPLE LTD,"39,900.00",VAT INPUTS - ADJUSTMENTS,VAT CONTROL ACCOUNT,2103856284,1000083539
25.04.2024,Housing,KENT COUNTY COUNCIL - LASER,"39,769.14",RESIDENT SERVICES BUSINESS SUPPORT,ELECTRICITY,5902633704,1000012926
10.04.2024,Finance,PRECISELY SOFTWARE LIMITED,"39,422.61",APPLICATIONS,SUBSCRIPTIONS,5902631538,1000088954
05.04.2024,Housing,BUILDING ASSOCIATES LTD,"39,308.30",CAPITAL PS (HRA),CONSTRUCTION MAIN CONTRACT,2103849274,3000002218
25.04.2024,Environment Neighbourhoods and Growth,INDO LIGHTING LTD,"39,120.00",PUBLIC LIGHTING,MATERIALS,5902633244,1000063084
17.04.2024,Environment Neighbourhoods and Growth,VEOLIA ES SOUTHWARK LTD,"39,111.99",WASTE PFI,VEHICLE FUEL,5902632676,1000056979
04.04.2024,Children and Adults,VANGUARD SCHOOL,"38,954.24",AC & FREE - SPECIAL,STATEMENTED FEES,2103850419,1000090446
24.04.2024,Children and Adults,BEORMUND PRIMARY SCHOOL,"38,889.00",LBS SPECIAL AND HOSP SCHLS,HIGH NEEDS - BASE FUNDING,5902633451,5001000008
12.04.2024,Strategy and Communities,COMMUNITY SOUTHWARK,"38,750.00",HEALTHWATCH,GRANTS,5902632162,1000018147
30.04.2024,Environment Neighbourhoods and Growth,FORGE LEISURE UK LIMITED,"38,697.00",CAPITAL PS (LEISURE),"PLANT, MACHINERY & EQUIPMENT ACQUISITION",5902634148,1000090019
25.04.2024,Children and Adults,CORAL COMMUNITY ASSESSMENTS LTD,"38,666.80",FAMILY ASSESSMENTS,RESIDENTIAL CARE,2103859802,1000056464
07.04.2024,Environment Neighbourhoods and Growth,F M CONWAY LTD,"38,630.00",HIGHWAY MAINTENANCE OVERHEADS,HIGHWAYS TERM CONTRACT,2103852188,4001384
11.04.2024,Children and Adults,NEWLANDS ACADEMY,"38,392.22",AP & HOSPITAL SCHLS,STATEMENTED FEES,2103856184,1000072567
12.04.2024,Finance,SHARPE PRITCHARD LLP,"38,336.60",CANADA WATER,LEGAL FEES & COURT COSTS,5902632019,1790085
25.04.2024,Housing,ATKINS LIMITED,"38,134.00",COMMERCIAL PROPERTIES,PROFESSIONAL FEES,5902633697,1000088478
22.04.2024,Housing,STANDAGE & CO LTD,"37,957.00",AYLESBURY,SECURITY SERVICES,2103858601,4002817
17.04.2024,Housing,CROMWOOD HOUSING,"37,637.50",NIGHTLY TA (NSC),EXTERNAL AGENCIES AND BODIES,5902632699,1000071450
04.04.2024,Children and Adults,FLEET TUTORS,"37,113.10",ALTERNATIVE PROVISION,EXTERNAL AGENCIES AND BODIES,5902630794,1000044820
12.04.2024,Finance,WE ARE WATERLOO LTD,"36,820.77",WATERLOO QUARTER,EXTERNAL AGENCIES AND BODIES,5902632185,1000057618
11.04.2024,Governance and Assurance,KENT COUNTY COUNCIL - LASER,"36,744.76",160 TOOLEY ST.,ELECTRICITY,5902631896,1000012926
05.04.2024,Housing,CRS DRAWING AND DESIGN LTD,"36,740.00",CAPITAL PS (HRA),CONSTRUCTION,5902630299,1000085835
24.04.2024,Children and Adults,CHAILEY HERITAGE FOUNDATION,"36,362.67",NMSS/ INDEP SPECIAL,STATEMENTED FEES,2103859169,1000045082
12.04.2024,Children and Adults,LITTLE RABBIT DAY NURSERY,"36,316.35",NURSERY ED GRANT 3 AND 4 YR OLDS,GRANTS,2103856352,1000084320
15.04.2024,Housing,CENTRAL & CECIL HOUSING TRUST,"36,263.74",NORTHCOTT HOUSE,RENTS,2103856578,1809267
26.04.2024,Housing,KENT COUNTY COUNCIL - LASER,"36,103.04",RESIDENT SERVICES BUSINESS SUPPORT,ELECTRICITY,5902633791,1000012926
19.04.2024,Housing,RS REAL ESTATE LTD,"35,913.50",NIGHTLY TA (NSC),EXTERNAL AGENCIES AND BODIES,5902633110,1000072485
16.04.2024,Environment Neighbourhoods and Growth,HIGGINS PARTNERSHIPS,"35,728.89",CAPITAL PS (REGEN),CONSTRUCTION,2103856740,4000859
12.04.2024,Children and Adults,DULWICH OAKS MONTESSORI NURSERY SCHOOL,"35,570.25",NURSERY ED GRANT 3 AND 4 YR OLDS,GRANTS,2103856318,1000070726
12.04.2024,Children and Adults,CHARLES DICKENS PRIMARY SCHOOL,"35,557.20",NURSERY ED GRANT 3 AND 4 YR OLDS,GRANTS,2103856313,1000085158
09.04.2024,Housing,MX ESTATES LTD,"35,530.90",PSL PLACEMENTS,EXTERNAL AGENCIES AND BODIES,5902631469,1000083639
12.04.2024,Children and Adults,SURREY SQUARE PRIMARY SCHOOL,"35,397.90",NURSERY ED GRANT 3 AND 4 YR OLDS,GRANTS,2103856386,1000082648
22.04.2024,Children and Adults,RIVERSIDE,"35,100.00",S75 SUPHSG SCH LBS LEAD,EXTERNAL AGENCIES AND BODIES,5902632558,11134939
19.04.2024,Housing,JUDGE AND PRIESTLEY SOLICITORS,"35,000.00",DISREPAIR,BUILDING R&M,5902633033,1472217
10.04.2024,Governance and Assurance,CIVICA UK LTD,"34,957.35",ELECTORAL REGISTRATION,SOFTWARE,2103856139,1730625
26.04.2024,DSO,ARMINA LTD,"34,845.76",DAMP & MOULD TEAM,OTHER CONTRACTORS,2103860513,3000002121
04.04.2024,Children and Adults,FLEET TUTORS,"34,525.00",ALTERNATIVE PROVISION,EXTERNAL AGENCIES AND BODIES,5902630792,1000044820
04.04.2024,Children and Adults,HATS GROUP LTD,"34,441.60",SCH TRANS � TRAVEL,CAB FARES,5902630681,1000042743
10.04.2024,Housing,KARAKUSEVIC CARSON ARCHITECTS,"34,170.00",CAPITAL PS (HRA),CONSTRUCTION FEES - ARCHITECT,5902630769,1000055150
04.04.2024,Environment Neighbourhoods and Growth,LONDON COUNCILS,"34,137.00",ALG ACCOUNT,PROFESSIONAL FEES,5902630806,11237079
24.04.2024,Children and Adults,KINTORE WAY CHILDRENS CENTRE,"34,095.00",KINTORE WAY CHILDRENS CENTRE,EARLY YEARS - 3 AND 4 YEAR OLDS,5902633481,5001000047
04.04.2024,Children and Adults,BELLENDEN PRIMARY SCHOOL,"34,000.00",PUPIL PREMIUM,SCHOOLS CAPITATION,2103852093,5001000007
23.04.2024,Environment Neighbourhoods and Growth,KINDLY PROPERTIES LTD,"34,000.00",NO RECOURSE TO PUBLIC FUNDS,ACCOMMODATION CHARGES,5902633283,1000060734
23.04.2024,Children and Adults,CRESSEY OASIS EDUCATION LTD,"33,999.94",NMSS/ INDEP SPECIAL,STATEMENTED FEES,2103859087,1000068133
12.04.2024,Children and Adults,LOGICOUS LTD,"33,933.60",NURSERY ED GRANT 3 AND 4 YR OLDS,GRANTS,2103856303,1000073852
22.04.2024,DSO,SER CONTRACTOR LTD,"33,883.23",SR - VOIDS TEAM,OTHER CONTRACTORS,2103858707,3000002234
26.04.2024,Housing,HITACHI SOLUTIONS EUROPE LIMITED,"33,813.13",CAPITAL PS (HOUSING GF),ICT ACQUISITION,5902633788,1000084180
24.04.2024,Children and Adults,DULWICH WOOD CHILDRENS CENTRE,"33,716.00",DULWICH WOOD NURSERY SCHOOL,EARLY YEARS - 3 AND 4 YEAR OLDS,5902633516,5001000099
09.04.2024,Environment Neighbourhoods and Growth,SITTARA LTD,"33,651.00",NO RECOURSE TO PUBLIC FUNDS,ACCOMMODATION CHARGES,5902631325,1000080857
04.04.2024,Environment Neighbourhoods and Growth,FAITHFUL & GOULD,"33,574.50",CAPITAL PS (REGEN),CONSTRUCTION MAIN CONTRACT,5902630684,1000061390
11.04.2024,Housing,KENT COUNTY COUNCIL - LASER,"33,568.48",HEATING ACCOUNT,GAS,5902631836,1000012926
04.04.2024,Children and Adults,BESSEMER GRANGE PRIMARY SCHOOL,"33,206.35",FREE HEALTHY SCHOOL MEALS,SCHOOLS CAPITATION,2103851805,5001000009
10.04.2024,Children and Adults,NETPEX LTD CORPORATE SERVICES,"33,170.00",CHILDREN�S RESID,RESIDENTIAL CARE,2103855864,1000076073
18.04.2024,Housing,TEATREE PROPERTY LIMITED,"33,047.00",NIGHTLY TA (NSC),EXTERNAL AGENCIES AND BODIES,5902632807,1000089741
08.04.2024,Environment Neighbourhoods and Growth,CONSTELLIA PUBLIC LIMITED,"32,929.09",CAPITAL PS (LEISURE),CONSTRUCTION FEES,5902631185,1000088137
24.04.2024,Children and Adults,THE SALVATION ARMY,"32,778.94",SEMI-IND CONTRACTS,EXTERNAL AGENCIES AND BODIES,5902633601,1000016253
05.04.2024,Environment Neighbourhoods and Growth,CYCLE CONFIDENT LTD,"32,650.28",NON LCN CYCLE TRAINING,PROFESSIONAL FEES,5902630179,1000070228
12.04.2024,Children and Adults,CHARTER SCHOOLS EDUCATIONAL TRUST T/A LYNDHURST PRIMARY SCHOOL,"32,639.76",NURSERY ED GRANT 3 AND 4 YR OLDS,GRANTS,2103856354,1000086766
04.04.2024,Environment Neighbourhoods and Growth,LONDON COUNCILS,"32,544.00",ALG ACCOUNT,PROFESSIONAL FEES,5902630675,11237079
03.04.2024,Environment Neighbourhoods and Growth,VEOLIA ES SOUTHWARK LTD,"32,500.75",WASTE PFI,VEHICLE FUEL,5902630621,1000056979
29.04.2024,Environment Neighbourhoods and Growth,BEAM UP LTD,"32,500.00",ASYLUM DISPERSAL,MATERIALS,5902633964,1000083178
04.04.2024,Housing,JON MILLER IT LTD,"32,400.00",CAPITAL PS (HOUSING GF),ICT ACQUISITION,5902629955,1000088937
03.04.2024,Environment Neighbourhoods and Growth,VEOLIA ES SOUTHWARK LTD,"32,397.52",WASTE PFI,VEHICLE FUEL,5902630618,1000056979
26.04.2024,Finance,FAMILY FUND TRADING LTD,"32,240.71",SESS,OTHER PAYMENTS FOR CLIENTS,5902633814,1000071092
24.04.2024,Children and Adults,JOHN RUSKIN PRIMARY SCHOOL,"32,239.00",LBS MAINSTREAM,HIGH NEEDS - TOP UP FUNDING,5902633474,5001000040
12.04.2024,Children and Adults,1ST PLACE CHILDREN & PARENTS CENTRE,"32,083.05",NURSERY ED GRANT 3 AND 4 YR OLDS,GRANTS,2103856297,1000049952
30.04.2024,Finance,DIGNITY FUNERALS LTD,"32,050.00",CORONER'S,OTHER CONTRACTORS,5902634265,1000041373
11.04.2024,Children and Adults,FLEET TUTORS,"31,982.00",AP & HOSPITAL SCHLS,STATEMENTED FEES,2103856180,1000044820
07.04.2024,Environment Neighbourhoods and Growth,F M CONWAY LTD,"31,844.56",HIGHWAY MAINTENANCE OVERHEADS,HIGHWAYS TERM CONTRACT,2103852179,4001384
04.04.2024,Children and Adults,ST GEORGES CE SCHOOL,"31,800.00",PUPIL PREMIUM,SCHOOLS CAPITATION,2103852094,5001000069
03.04.2024,Environment Neighbourhoods and Growth,VEOLIA ES SOUTHWARK LTD,"31,525.32",WASTE PFI,VEHICLE FUEL,5902630623,1000056979
04.04.2024,Housing,JON MILLER IT LTD,"31,500.00",CAPITAL PS (HOUSING GF),ICT ACQUISITION,5902629956,1000088937
09.04.2024,Children and Adults,DULWICH WOOD CHILDRENS CENTRE,"31,420.00",NURSERY ED GRANT 3 AND 4 YR OLDS,EARLY YEARS - 3 AND 4 YEAR OLDS,5902631451,5001000099
12.04.2024,Children and Adults,LONDON EARLY YEARS FOUNDATION,"31,339.35",NURSERY ED GRANT 3 AND 4 YR OLDS,GRANTS,2103856308,1000077919
04.04.2024,Children and Adults,IVYDALE PRIMARY SCHOOL,"30,900.00",PUPIL PREMIUM,SCHOOLS CAPITATION,2103852090,5001000038
29.04.2024,Finance,SOUTH BANK BID LTD,"30,794.89",SOUTH BANK,EXTERNAL AGENCIES AND BODIES,5902633934,1000075023
07.04.2024,Environment Neighbourhoods and Growth,F M CONWAY LTD,"30,610.64",HIGHWAY MAINTENANCE OVERHEADS,HIGHWAYS TERM CONTRACT,2103852194,4001384
08.04.2024,Children and Adults,SPECTRA CARE LTD,"30,590.00",LD LTS 18-64,SUPPORTED LIVING,2103854563,1000086280
22.04.2024,Children and Adults,SOUTH LONDON & MAUDSLEY HOSPITAL,"30,484.00",SLAM SPOT MH RES,EXTERNAL AGENCIES AND BODIES,5902632815,1000013096
11.04.2024,Environment Neighbourhoods and Growth,PROPERTYPLACEBOOK LTD,"30,467.00",NO RECOURSE TO PUBLIC FUNDS,ACCOMMODATION CHARGES,5902631511,1000077817
25.04.2024,Housing,BRENCHLEY GARDENS MANAGEMENT ASSOCIATION,"30,327.00",BRENCHLEY GARDENS,M&M ALLOWANCE CO-OPS,5902633696,11324247
04.04.2024,Children and Adults,IVYDALE PRIMARY SCHOOL,"30,201.25",FREE HEALTHY SCHOOL MEALS,SCHOOLS CAPITATION,2103851819,5001000038
12.04.2024,Children and Adults,1ST PLACE CHILDREN & PARENTS CENTRE,"30,168.00",NURSERY ED GRANT 3 AND 4 YR OLDS,GRANTS,2103856298,1000049952
08.04.2024,Housing,NEW HOMES LAW LTD,"30,000.00",CAPITAL PS (HRA),CAPITAL GRANTS,2103849335,1000079479
30.04.2024,Housing,PARIS SMITH LLP,"30,000.00",CAPITAL PS (HRA),CAPITAL GRANTS,2103860515,1000008059
09.04.2024,Housing,MX ESTATES LTD,"30,000.00",PSL PLACEMENTS,EXTERNAL AGENCIES AND BODIES,5902631469,1000083639
11.04.2024,Children and Adults,GOLD SEAL PROJECT,"30,000.00",YJS MGMT & SUPPORT,EXTERNAL AGENCIES AND BODIES,5902631610,1000050352
08.04.2024,Finance,BDO LLP,"29,936.08",INTERNAL AUDIT CONTRACTS,PAYMENTS FOR FINANCIAL SERVICES,5902631165,1000057898
03.04.2024,Housing,SPOKEMEAD MAINTENANCE LTD,"29,849.58",PAYMENTS CONTROL ACCOUNT - SPOKEMEAD,I-WORLD CONTRACTORS HOLDING ACCOUNT,2103849341,4002791
18.04.2024,Corporate,THE ST THOMAS THE APOSTLE COLLEGE,"29,744.52",EDUCATION VAT INPUTS,VAT CONTROL ACCOUNT,2103858367,5001000074
15.04.2024,Environment Neighbourhoods and Growth,SITTARA LTD,"29,735.00",NO RECOURSE TO PUBLIC FUNDS,ACCOMMODATION CHARGES,5902632217,1000080857
03.04.2024,Children and Adults,OWNLIFE RESIDENTIAL LTD,"29,728.57",CHILDREN�S RESID,RESIDENTIAL CARE,2103850253,1000085398
03.04.2024,Children and Adults,LONDON BOROUGH OF HAVERING,"29,700.00",ALS INTER AGENCY,EXTERNAL AGENCIES AND BODIES,5902630581,1000002681
18.04.2024,Corporate,TUKE SCHOOL,"29,693.89",EDUCATION VAT INPUTS,VAT CONTROL ACCOUNT,2103858342,5001000097
24.04.2024,Corporate,SCOTTISH EQUITABLE PLC,"29,681.64",A. V. C. TO OTHER PENSION,PAYROLL CREDITORS - EXTERNAL AVCS (LOCAL GOVT),2103859176,1000026367
22.04.2024,Children and Adults,RIVERSIDE,"29,640.00",S75 SUPHSG SCH LBS LEAD,EXTERNAL AGENCIES AND BODIES,5902632560,11134939
04.04.2024,Children and Adults,WANDSWORTH COUNCIL,"29,475.76",SPECIALIST CARE,PLACEMENTS - RESPITE,2103851980,1000020692
25.04.2024,Housing,KENT COUNTY COUNCIL - LASER,"29,336.47",RESIDENT SERVICES BUSINESS SUPPORT,ELECTRICITY,5902633773,1000012926
24.04.2024,Children and Adults,THE GROVE CHILDRENS CENTRE,"29,261.00",THE GROVE NURSERY SCHOOL,EARLY YEARS - 3 AND 4 YEAR OLDS,5902633512,5001000090
18.04.2024,Corporate,CHERRY GARDEN SCHOOL,"29,008.82",EDUCATION VAT INPUTS,VAT CONTROL ACCOUNT,2103858380,5001000020
22.04.2024,Housing,STANDAGE & CO LTD,"29,003.00",AYLESBURY,SECURITY SERVICES,2103858605,4002817
18.04.2024,Children and Adults,THE KENNEDY AND ELLIOTT PARTNERSHIP,"28,800.00",CHILDREN�S RESID,RESIDENTIAL CARE,2103858233,1000089711
29.04.2024,Children and Adults,ELIALI MPC LTD,"28,785.71",CHILDREN�S RESID,RESIDENTIAL CARE,2103860996,1000089944
09.04.2024,Children and Adults,BESSEMER GRANGE PRIMARY SCHOOL,"28,772.00",NURSERY ED GRANT 3 AND 4 YR OLDS,EARLY YEARS - 3 AND 4 YEAR OLDS,5902631380,5001000009
03.04.2024,Housing,LIFTEC LIFTS LTD,"28,744.74",PAYMENTS CONTROL ACCOUNT - LIFTEC,I-WORLD CONTRACTORS HOLDING ACCOUNT,5902630505,1000057278
11.04.2024,Strategy and Communities,SOUTHWARK PENSIONERS CENTRE,"28,475.42",VCS GRANTS,GRANTS,5902632086,1000027831
19.04.2024,Housing,SEVILLE DEVELOPMENTS LIMITED,"28,336.13",CAPITAL PS (HRA),CONSTRUCTION MAIN CONTRACT -CERTIFICATED,5902632614,1000090393
07.04.2024,Environment Neighbourhoods and Growth,F M CONWAY LTD,"28,267.54",HIGHWAY MAINTENANCE OVERHEADS,HIGHWAYS TERM CONTRACT,2103852207,4001384
04.04.2024,Children and Adults,JUDITH KERR PRIMARY SCHOOL,"28,097.68",FREE HEALTHY SCHOOL MEALS,SCHOOLS CAPITATION,2103851821,1000073200
19.04.2024,Children and Adults,AGINCARE (SOUTHWARK) LIMITED,"27,881.04",PHY LTS 65+,RESIDENTIAL CARE,5902633100,1000089635
17.04.2024,Housing,EASYMOVE EA LIMITED,"27,656.28",PSL PLACEMENTS,EXTERNAL AGENCIES AND BODIES,5902632677,1000066859
22.04.2024,Environment Neighbourhoods and Growth,KENT COUNTY COUNCIL - LASER,"27,617.19",THE CASTLE CENTRE,ELECTRICITY,5902633126,1000012926
04.04.2024,Children and Adults,VANGUARD SCHOOL,"27,538.28",AC & FREE - SPECIAL,STATEMENTED FEES,2103850420,1000090446
04.04.2024,Children and Adults,VANGUARD SCHOOL,"27,538.28",AC & FREE - SPECIAL,STATEMENTED FEES,2103850424,1000090446
04.04.2024,Children and Adults,CRAMPTON PRIMARY SCHOOL,"27,500.00",PUPIL PREMIUM,SCHOOLS CAPITATION,2103852092,5001000023
04.04.2024,Children and Adults,HEBER PRIMARY SCHOOL,"27,496.66",FREE HEALTHY SCHOOL MEALS,SCHOOLS CAPITATION,2103851817,5001000035
04.04.2024,Environment Neighbourhoods and Growth,WALWORTH HOMES LTD,"27,481.30",CAPITAL PS (REGEN),CONSTRUCTION FEES,5902630843,1000079197
10.04.2024,Housing,1ST ACE SECURITY LTD,"27,422.40",LAKANAL (TENANCY),SECURITY SERVICES,5902630499,1000006992
18.04.2024,Corporate,RYE OAK PRIMARY SCHOOL,"27,366.18",EDUCATION VAT INPUTS,VAT CONTROL ACCOUNT,2103858424,5001000059
12.04.2024,Children and Adults,LITTLE ME CANADA WATER LTD,"27,326.93",NURSERY ED GRANT 3 AND 4 YR OLDS,GRANTS,2103856350,1000083348
04.04.2024,Children and Adults,KINTORE WAY CHILDRENS CENTRE,"27,143.27",KINTORE WAY CHILDRENS CENTRE,EARLY YEARS - 3 AND 4 YEAR OLDS,2103852099,5001000047
04.04.2024,Children and Adults,VANGUARD SCHOOL,"27,104.61",AC & FREE - SPECIAL,STATEMENTED FEES,2103850422,1000090446
04.04.2024,Children and Adults,ST ANTHONYS RC SCHOOL,"27,045.90",FREE HEALTHY SCHOOL MEALS,SCHOOLS CAPITATION,2103851831,5001000064
06.04.2024,Children and Adults,PRIVATE PUBLIC LTD,"27,000.00",COMMISSIONING TEAM,CONSULTANTS SERVICES,5902630952,1000081569
26.04.2024,Children and Adults,TUTELAGE CARE GROUP LTD,"26,845.44",CHILDREN�S RESID,RESIDENTIAL CARE,2103860059,1000088232
18.04.2024,Environment Neighbourhoods and Growth,NATIONWIDE ACCOMMODATION,"26,601.42",NO RECOURSE TO PUBLIC FUNDS,ACCOMMODATION CHARGES,5902632831,1000076112
04.04.2024,Children and Adults,CHARLOTTE  SHARMAN PRIMARY SCHOOL,"26,600.00",PUPIL PREMIUM,SCHOOLS CAPITATION,2103852098,5001000016
09.04.2024,Environment Neighbourhoods and Growth,TAAKSVALE HOUSING LTD,"26,445.65",NO RECOURSE TO PUBLIC FUNDS,ACCOMMODATION CHARGES,5902631534,1000073665
04.04.2024,Children and Adults,PHOENIX PRIMARY SCHOOL,"26,444.88",FREE HEALTHY SCHOOL MEALS,SCHOOLS CAPITATION,2103851825,5001000032
12.04.2024,Children and Adults,LITTLE ACORNS DAY NURSERY,"26,386.80",NURSERY ED GRANT 3 AND 4 YR OLDS,GRANTS,2103856343,1000015844
12.04.2024,Children and Adults,LITTLE JUNGLE (U.K.) LIMITED,"26,268.30",NURSERY ED GRANT 3 AND 4 YR OLDS,GRANTS,2103856349,1000067064
17.04.2024,Housing,KINDLY PROPERTIES LTD,"26,246.25",NIGHTLY TA (NSC),EXTERNAL AGENCIES AND BODIES,5902632788,1000060734
11.04.2024,Housing,PRB ESTATES LTD,"26,243.94",DUCTCLEAN,I-WORLD CONTRACTORS HOLDING ACCOUNT,2103856187,3000001691
04.04.2024,Environment Neighbourhoods and Growth,WATERMAN INFRASTRUCTURE & ENVIRONMENT LTD,"26,105.04",STRUCTURES MINOR ROADS,HIGHWAYS TERM CONTRACT,5902630669,1000060529
22.04.2024,DSO,E & E BUILDING SERVICES LTD,"26,075.35",SR - VOIDS TEAM,OTHER CONTRACTORS,2103858703,3000001176
30.04.2024,Housing,BUGLER DEVELOPMENTS LIMITED,"25,996.40",CAPITAL PS (HRA),CONSTRUCTION MAIN CONTRACT -CERTIFICATED,2103863069,3000002217
04.04.2024,Children and Adults,VANGUARD SCHOOL,"25,979.52",AC & FREE - SPECIAL,STATEMENTED FEES,2103850416,1000090446
04.04.2024,Children and Adults,VANGUARD SCHOOL,"25,979.52",AC & FREE - SPECIAL,STATEMENTED FEES,2103850423,1000090446
04.04.2024,Children and Adults,VANGUARD SCHOOL,"25,979.42",AC & FREE - SPECIAL,STATEMENTED FEES,2103850421,1000090446
19.04.2024,Children and Adults,AGINCARE (SOUTHWARK) LIMITED,"25,896.87",PHY LTS 65+,RESIDENTIAL CARE,5902633100,1000089635
26.04.2024,Children and Adults,CHILDHOOD FIRST,"25,877.14",CHILDREN�S RESID,RESIDENTIAL CARE,2103860051,1000076330
08.04.2024,Strategy and Communities,CITIZENLAB NV,"25,860.00",COMMUNITIES PROJECTS,PROFESSIONAL FEES,5902631087,1000090928
26.04.2024,Children and Adults,ASPIRE HOUSE LTD,"25,714.28",CHILDREN�S RESID,RESIDENTIAL CARE,2103860048,1000080373
12.04.2024,Children and Adults,GOOSE GREEN PRIMARY AND NURSERY SCHOOL,"25,709.40",NURSERY ED GRANT 3 AND 4 YR OLDS,GRANTS,2103856330,1000070613
25.04.2024,Children and Adults,WALWORTH GARDEN LTD,"25,544.00",ADULT SKILLS BUDGET,GRANTS,5902633544,1000042204
08.04.2024,Environment Neighbourhoods and Growth,ETC SPORTS SURFACES LTD,"25,515.90",CAPITAL PS (LEISURE),FURNITURE & FITTINGS ACQUISITION,2103853752,3000001845
16.04.2024,Housing,GT STEWART LTD,"25,375.00",DISREPAIR,PAYMENTS FOR LEGAL SERVICES,2103856775,1000061213
17.04.2024,Children and Adults,KIDS,"25,000.00",PORTAGE,CONSULTANTS SERVICES,2103858076,1000030036
17.04.2024,Children and Adults,KIDS,"25,000.00",PORTAGE,CONSULTANTS SERVICES,2103858077,1000030036
17.04.2024,Children and Adults,KIDS,"25,000.00",PORTAGE,CONSULTANTS SERVICES,2103858078,1000030036
10.04.2024,Housing,CREATION SOUTHWARK CIC,"25,000.00",CAPITAL PS (HRA),CONSTRUCTION FEES  - EXTERNAL,5902631737,1000084232
25.04.2024,Finance,CAPITA BUSINESS SERVICES LTD,"24,997.70",CAPITA,OTHER CONTRACTORS,5902633687,1000006291
10.04.2024,Housing,STYLES HOUSE TMO,"24,995.00",STYLES HOUSE TMO,M&M ALLOWANCE CO-OPS,5902631663,1000072012
30.04.2024,Environment Neighbourhoods and Growth,FORGE LEISURE UK LIMITED,"24,924.00",CAPITAL PS (LEISURE),"PLANT, MACHINERY & EQUIPMENT ACQUISITION",5902634165,1000090019
26.04.2024,Children and Adults,TUTELAGE CARE HARTLEY LTD,"24,905.22",CHILDREN�S RESID,RESIDENTIAL CARE,2103860047,1000088664
07.04.2024,Environment Neighbourhoods and Growth,F M CONWAY LTD,"24,811.23",HWAY MINOR WKS NON PRINC RD,HIGHWAYS TERM CONTRACT,2103852191,4001384
12.04.2024,Children and Adults,ROCKINGHAM COMMUNITY DAY NURSERY,"24,664.58",NURSERY ED GRANT 3 AND 4 YR OLDS,GRANTS,2103856370,1095826
09.04.2024,Children and Adults,THE GROVE CHILDRENS CENTRE,"24,579.00",NURSERY ED GRANT 3 AND 4 YR OLDS,EARLY YEARS - 3 AND 4 YEAR OLDS,5902631448,5001000090
26.04.2024,Children and Adults,YOUTH INK AT THE HEART OF THE COMMUNITY,"24,500.00",YJS MGMT & SUPPORT,EXTERNAL AGENCIES AND BODIES,5902633784,1000079226
26.04.2024,Children and Adults,ACORN HOMES (UK) LTD,"24,428.70",CHILDREN�S RESID,RESIDENTIAL CARE,2103860050,1000080423
22.04.2024,Housing,STANDAGE & CO LTD,"24,386.00",AYLESBURY,SECURITY SERVICES,2103858604,4002817
04.04.2024,Children and Adults,CHARTER SCHOOLS EDUCATIONAL TRUST T/A LYNDHURST PRIMARY SCHOOL,"24,341.31",FREE HEALTHY SCHOOL MEALS,SCHOOLS CAPITATION,2103851823,1000086766
16.04.2024,Environment Neighbourhoods and Growth,WEBBER AND QUENTIN LTD,"24,305.18",CAPITAL PS (LEISURE),CAPITAL GRANTS,5902632514,1000077088
18.04.2024,Housing,SK HOUSING LTD,"24,265.20",NIGHTLY TA (NSC),EXTERNAL AGENCIES AND BODIES,5902632895,1000070716
24.04.2024,Children and Adults,RYE OAK PRIMARY SCHOOL,"24,264.00",LBS RB / SEN UNIT,HIGH NEEDS - TOP UP FUNDING,5902633493,5001000059
05.04.2024,Housing,LONDON CARE LTD,"24,154.20",CAPITAL PS (HRA),CONSTRUCTION MAIN CONTRACT -CERTIFICATED,5902630619,1000003398
23.04.2024,Environment Neighbourhoods and Growth,LEE VALLEY REGIONAL PARK AUTHORITY,"24,149.47",LEE VALLEY LEVY,LEVIES,5902633303,11020407
11.04.2024,Governance and Assurance,KENT COUNTY COUNCIL - LASER,"24,136.16",160 TOOLEY ST.,ELECTRICITY,5902631896,1000012926
12.04.2024,Children and Adults,LONDON EARLY YEARS FOUNDATION,"24,054.58",NURSERY ED GRANT 3 AND 4 YR OLDS,GRANTS,2103856378,1000077919
30.04.2024,Children and Adults,CRESSEY OASIS EDUCATION LTD,"24,016.72",NMSS/ INDEP SPECIAL,STATEMENTED FEES,2103862131,1000068133
18.04.2024,Corporate,PHOENIX PRIMARY SCHOOL,"23,980.37",EDUCATION VAT INPUTS,VAT CONTROL ACCOUNT,2103858398,5001000032
08.04.2024,Children and Adults,HEALTH PERSONNEL LTD,"23,900.78",LD LTS 18-64,SUPPORTED LIVING,2103854348,1000076377
12.04.2024,Children and Adults,S R C COMMUNITY NURSERY,"23,873.40",NURSERY ED GRANT 3 AND 4 YR OLDS,GRANTS,2103856380,1414681
26.04.2024,DSO,ARMINA LTD,"23,851.77",ROTHERHITHE & BERMONDSEY DD,OTHER CONTRACTORS,2103860513,3000002121
09.04.2024,Children and Adults,NELL GWYNN NURSERY SCHOOL,"23,794.00",NURSERY ED GRANT 3 AND 4 YR OLDS,EARLY YEARS - 3 AND 4 YEAR OLDS,5902631417,5001000049
24.04.2024,Children and Adults,ALL BEHAVIOUR CONSULTANCY LIMITED,"23,775.00",NMSS/ INDEP SPECIAL,STATEMENTED FEES,2103859085,1000091075
08.04.2024,Environment Neighbourhoods and Growth,CONSTELLIA PUBLIC LIMITED,"23,657.76",TREES TERM CONTRACT,TREE MAINTENANCE,5902631135,1000088137
08.04.2024,Environment Neighbourhoods and Growth,CONSTELLIA PUBLIC LIMITED,"23,657.76",TREES TERM CONTRACT,TREE MAINTENANCE,5902631178,1000088137
10.04.2024,Environment Neighbourhoods and Growth,GLENDALE COUNTRYSIDE LTD,"23,516.49",TREES TERM CONTRACT,TREE MAINTENANCE,5902631741,1000070980
09.04.2024,Environment Neighbourhoods and Growth,HOMELY HOUSING LETS LTD,"23,501.52",NO RECOURSE TO PUBLIC FUNDS,ACCOMMODATION CHARGES,5902631522,1000050013
09.04.2024,Children and Adults,NELL GWYNN NURSERY SCHOOL,"23,438.00",NURSERY ED GRANT 2YR OLDS,EARLY YEARS - 2 YEAR OLD,5902631418,5001000049
04.04.2024,Children and Adults,VANGUARD SCHOOL,"23,428.82",AC & FREE - SPECIAL,STATEMENTED FEES,2103850417,1000090446
04.04.2024,Children and Adults,VANGUARD SCHOOL,"23,428.82",AC & FREE - SPECIAL,STATEMENTED FEES,2103850426,1000090446
11.04.2024,Environment Neighbourhoods and Growth,CITYGLEN LTD,"23,377.10",NO RECOURSE TO PUBLIC FUNDS,ACCOMMODATION CHARGES,5902631265,1000026239
04.04.2024,Children and Adults,BLANDFORD HOUSE UK LTD,"23,330.00",DISABILITIES LAC,EXTERNAL AGENCIES AND BODIES,2103852009,1000088662
04.04.2024,Children and Adults,LONDON SOUTH EAST COLLEGES,"23,008.91",FURTHER EDUCATION,STATEMENTED FEES,2103850414,11249372
04.04.2024,Children and Adults,LONDON SOUTH EAST COLLEGES,"23,008.91",FURTHER EDUCATION,STATEMENTED FEES,2103850415,11249372
12.04.2024,Finance,POST OFFICE LTD,"22,968.67",COST OF LIVING FUND,EXTERNAL AGENCIES AND BODIES,5902632000,1000069858
03.04.2024,Housing,DSI BILLING SERVICES LTD,"22,902.95",HOME OWNERSHIP,POSTAGES,5902630632,1000058640
02.04.2024,Children and Adults,KINTORE WAY CHILDRENS CENTRE,"22,838.00",NURSERY ED GRANT 3 AND 4 YR OLDS,EARLY YEARS - 3 AND 4 YEAR OLDS,2103838785,5001000047
23.04.2024,Children and Adults,CRESSEY OASIS EDUCATION LTD,"22,803.82",NMSS/ INDEP SPECIAL,STATEMENTED FEES,2103859088,1000068133
09.04.2024,Children and Adults,GOODRICH PRIMARY SCHOOL,"22,784.00",NURSERY ED GRANT 3 AND 4 YR OLDS,EARLY YEARS - 3 AND 4 YEAR OLDS,5902631396,5001000028
24.04.2024,Environment Neighbourhoods and Growth,PRIDE DEVELOPMENTS,"22,657.00",CAPITAL PS (REGEN),CONSTRUCTION MAIN CONTRACT,2103859771,3000002126
10.04.2024,Environment Neighbourhoods and Growth,FRASER BROWN MACKENNA LTD,"22,617.25",CAPITAL PS (REGEN),CONSTRUCTION FEES,5902631711,1000081651
30.04.2024,Environment Neighbourhoods and Growth,DECONSTRUCT (UK) LTD,"22,365.96",CAPITAL PS (REGEN),CONSTRUCTION SITE COSTS,5902634118,1000087952
12.04.2024,Finance,SOUTH BANK BID LTD,"22,272.14",SOUTH BANK,EXTERNAL AGENCIES AND BODIES,5902632184,1000075023
04.04.2024,Children and Adults,COMBER GROVE PRIMARY SCHOOL,"22,200.00",PUPIL PREMIUM,SCHOOLS CAPITATION,2103852097,5001000022
12.04.2024,Children and Adults,THE FRUIT TREE DAY NURSERY,"22,196.70",NURSERY ED GRANT 3 AND 4 YR OLDS,GRANTS,2103856387,1000072492
04.04.2024,Children and Adults,STEPHEN HAWKING SCHOOL,"22,178.22",OTHER LA SPECIAL,STATEMENTED FEES,2103850313,1000071455
04.04.2024,Children and Adults,STEPHEN HAWKING SCHOOL,"22,178.22",OTHER LA SPECIAL,STATEMENTED FEES,2103850314,1000071455
04.04.2024,Children and Adults,STEPHEN HAWKING SCHOOL,"22,178.22",OTHER LA SPECIAL,STATEMENTED FEES,2103850315,1000071455
09.04.2024,Children and Adults,JOHN RUSKIN PRIMARY SCHOOL,"22,127.00",NURSERY ED GRANT 3 AND 4 YR OLDS,EARLY YEARS - 3 AND 4 YEAR OLDS,5902631411,5001000040
04.04.2024,Children and Adults,LONDON SOUTH EAST COLLEGES,"22,103.23",FURTHER EDUCATION,STATEMENTED FEES,2103850413,11249372
12.04.2024,DSO,CASTLETON TECHNOLOGY LTD,"22,096.00",ICT & COMMUNICATIONS,SOFTWARE,5902632005,1000059550
12.04.2024,DSO,CASTLETON TECHNOLOGY LTD,"22,096.00",ICT & COMMUNICATIONS,SOFTWARE,5902632006,1000059550
12.04.2024,DSO,CASTLETON TECHNOLOGY LTD,"22,096.00",ICT & COMMUNICATIONS,SOFTWARE,5902632007,1000059550
04.04.2024,Children and Adults,LIONCARE LIMITED,"21,926.67",NMSS/ INDEP SPECIAL,STATEMENTED FEES,2103850361,1000065330
08.04.2024,Children and Adults,HESLEY GROUP LIMITED,"21,880.68",LD LTS 18-64,SUPPORTED LIVING,2103854742,1000089729
12.04.2024,Strategy and Communities,DWC CONSULTING SERVICES LTD,"21,850.00",CORPORATE & DEPARTMENTAL EXPENDITURE,CONSULTANTS SERVICES,5902632002,1000086072
27.04.2024,Housing,JUDGE AND PRIESTLEY SOLICITORS,"21,814.35",DISREPAIR,BUILDING R&M,5902633060,1472217
11.04.2024,Housing,DSI BILLING SERVICES LTD,"21,796.94",OPERATIONAL TEAM,POSTAGES,5902631964,1000058640
24.04.2024,Children and Adults,LEWISHAM AND GREENWICH NHS TRUST,"21,765.34",SEXUAL HEALTH - STI,MEDICAL / HEALTH & SAFETY SERVICES,5902633436,1000076183
12.04.2024,Housing,DELAWYK RESIDENTS MGT ORG LTD,"21,674.75",DELAWYK RMO RENT INCOME,M&M ALLOWANCE CO-OPS,5902631158,1000052920
12.04.2024,Environment Neighbourhoods and Growth,TRAFFIC MANAGEMENT PRODUCTS LTD,"21,625.00",PUBLIC LIGHTING,MATERIALS,5902632144,1000062435
04.04.2024,Children and Adults,THE BECKMEAD TRUST,"21,565.94",OTHER LA SPECIAL,STATEMENTED FEES,2103850444,1000082684
26.04.2024,DSO,ARMINA LTD,"21,492.49",WALWORTH DD,OTHER CONTRACTORS,2103860513,3000002121
24.04.2024,Children and Adults,INTERPRETING DIRECT CO (UK) LTD,"21,462.00",CENTRAL SUPPORT,INTERPRETING SERVICES,5902633583,1000070133
26.04.2024,Children and Adults,KITES CHILDREN'S SERVICES LIMITED,"21,407.14",CHILDREN�S RESID,RESIDENTIAL CARE,2103860045,1000085930
05.04.2024,Environment Neighbourhoods and Growth,METIS CONSULTANTS LIMITED,"21,336.00",CAPITAL PS (LEISURE),CONSTR'N SUB CONTRACT - NON CERTIFICATED,5902631071,1000086330
18.04.2024,Housing,NEC SOFTWARE SOLUTIONS UK LTD,"21,250.00",HOME OWNERSHIP,SOFTWARE,5902632862,1000087043
18.04.2024,Housing,NEC SOFTWARE SOLUTIONS UK LTD,"21,250.00",HOME OWNERSHIP,SOFTWARE,5902632863,1000087043
12.04.2024,Children and Adults,THE BEECHES NURSERY GROUP LTD,"21,238.20",NURSERY ED GRANT 3 AND 4 YR OLDS,GRANTS,2103856324,11215743
12.04.2024,Children and Adults,ST. JOSEPH'S RC PRIMARY SCHOOL,"21,238.20",NURSERY ED GRANT 3 AND 4 YR OLDS,GRANTS,2103856383,1000089163
18.04.2024,Corporate,ALBION PRIMARY SCHOOL,"21,215.78",EDUCATION VAT INPUTS,VAT CONTROL ACCOUNT,2103858423,5001000000
03.04.2024,Children and Adults,OWNLIFE RESIDENTIAL LTD,"21,171.43",CHILDREN�S RESID,RESIDENTIAL CARE,2103850252,1000085398
10.04.2024,Housing,DURKAN LTD,"21,115.07",CAPITAL PS (HRA),CONSTRUCTION FEES  - EXTERNAL,2103855462,3000000960
04.04.2024,Children and Adults,ANN BERNADT NURSERY SCHOOL,"20,901.58",ANN BERNADT (SUMNER),EARLY YEARS - 3 AND 4 YEAR OLDS,2103852100,5001000085
11.04.2024,Housing,LTA DIRECT LTD,"20,864.50",NIGHTLY TA (NSC),EXTERNAL AGENCIES AND BODIES,5902631950,1000085314
12.04.2024,Children and Adults,MAGIC ROUNDABOUT NURSERIES LTD,"20,826.00",NURSERY ED GRANT 3 AND 4 YR OLDS,GRANTS,2103856355,1000045128
03.04.2024,Children and Adults,MCRAE RESIDENTIAL CARE SERVICES LTD,"20,815.26",CHILDREN�S RESID,RESIDENTIAL CARE,2103850258,1000050558
26.04.2024,Children and Adults,HEADSTART RESIDENTIAL CARE LIMITED,"20,785.80",CHILDREN�S RESID,RESIDENTIAL CARE,2103860055,1000088836
30.04.2024,Children and Adults,ALDABA LTD,"20,755.00",FHSM INNOVATION,EXTERNAL AGENCIES AND BODIES,5902634430,1000090238
24.04.2024,Corporate,GROUP FINANCE SOLUTIONS CONSULTING,"20,710.00",ERP PROGRAMME BUDGET,PROFESSIONAL FEES,5902633612,1000090315
17.04.2024,Environment Neighbourhoods and Growth,DIAMOND PROPERTY MANAGEMENT LTD,"20,686.50",NO RECOURSE TO PUBLIC FUNDS,ACCOMMODATION CHARGES,5902632797,1000088789
12.04.2024,Children and Adults,JOHN DONNE PRIMARY SCHOOL,"20,679.30",NURSERY ED GRANT 3 AND 4 YR OLDS,GRANTS,2103856336,1000073253
26.04.2024,Children and Adults,THE CALDECOTT FOUNDATION,"20,678.57",CHILDREN�S RESID,RESIDENTIAL CARE,2103860057,1000074757
18.04.2024,Environment Neighbourhoods and Growth,NATIONWIDE ACCOMMODATION,"20,664.58",NO RECOURSE TO PUBLIC FUNDS,ACCOMMODATION CHARGES,5902632831,1000076112
04.04.2024,Children and Adults,VANGUARD SCHOOL,"20,660.88",AC & FREE - SPECIAL,STATEMENTED FEES,2103850425,1000090446
05.04.2024,Children and Adults,REDACTED PERSONAL DATA,"20,483.65",PHY LTS 65+,PAYMENTS TO CLIENTS (DIRECT PAYMENTS),2103852559,1000066344
12.04.2024,Children and Adults,PLAYDAYS UK LTD,"20,396.10",NURSERY ED GRANT 3 AND 4 YR OLDS,GRANTS,2103856375,11210767
26.04.2024,Children and Adults,ROCKSTEADY CARE LTD,"20,366.67",CHILDREN�S RESID,RESIDENTIAL CARE,2103860044,1000089573
29.04.2024,Housing,ROOFF LTD,"20,276.13",CAPITAL PS (HRA),CONSTRUCTION MAIN CONTRACT -CERTIFICATED,2103860561,3000001090
12.04.2024,Children and Adults,SUCCESS ASSOCIATES LIMITED,"20,267.10",NURSERY ED GRANT 3 AND 4 YR OLDS,GRANTS,2103856342,1000060300
18.04.2024,Corporate,HAYMERLE SCHOOL,"20,164.98",EDUCATION VAT INPUTS,VAT CONTROL ACCOUNT,2103858403,5001000045
12.04.2024,Children and Adults,JUDITH KERR PRIMARY SCHOOL,"20,120.40",NURSERY ED GRANT 3 AND 4 YR OLDS,GRANTS,2103856339,1000073200
12.04.2024,Children and Adults,LITTLE BEARS 4 LMITED T/A LITTLE BEARS IN ELEPHANT CENTRE,"20,065.62",NURSERY ED GRANT 3 AND 4 YR OLDS,GRANTS,2103856347,1000082505
12.04.2024,Children and Adults,TRINITY CHILD CARE,"20,064.15",NURSERY ED GRANT 3 AND 4 YR OLDS,GRANTS,2103856391,1151305
19.04.2024,Housing,APEX HOUSING SOLUTIONS LTD,"20,060.70",NIGHTLY TA (NSC),EXTERNAL AGENCIES AND BODIES,5902633077,1000079786
08.04.2024,Children and Adults,ALLPAY LTD (CHILDREN - PETTY CASH),"20,000.00",C & F FINANCE TEAM,OTHER PAYMENTS FOR CLIENTS,5902631288,1000079888
09.04.2024,Housing,NEC SOFTWARE SOLUTIONS UK LTD,"20,000.00",HOUSING STRATEGY (HRA),SOFTWARE,5902631454,1000087043
11.04.2024,Strategy and Communities,SOUTHWARK CITIZENS ADVICE,"20,000.00",LEGAL GRANTS,EXTERNAL AGENCIES AND BODIES,5902631961,1874379
21.04.2024,Finance,HITACHI SOLUTIONS EUROPE LIMITED,"20,000.00",CAPITAL PS (STRAT SERV),ICT ACQUISITION,5902632684,1000084180
19.04.2024,Children and Adults,ALLPAY LTD (CHILDREN - INSTANT ISSU,"20,000.00",C & F FINANCE TEAM,OTHER PAYMENTS FOR CLIENTS,5902633080,1000079883
19.04.2024,Children and Adults,ALLPAY LTD (CHILDREN - PETTY CASH),"20,000.00",C & F FINANCE TEAM,OTHER PAYMENTS FOR CLIENTS,5902633081,1000079888
22.04.2024,Corporate,KENNEDYS LAW LLP,"20,000.00",LIABILITY RELATED INSURANCE,COMPENSATION,5902633239,1000087953
08.04.2024,Housing,APPLEGARTH HOUSE COOPERATIVE LTD,"19,994.50",APPLEGARTH HOUSE CO-OP,M&M ALLOWANCE CO-OPS,5902631161,1296074
12.04.2024,Children and Adults,LONDON EARLY YEARS FOUNDATION,"19,934.10",NURSERY ED GRANT 3 AND 4 YR OLDS,GRANTS,2103856310,1000077919
24.04.2024,Children and Adults,ALL BEHAVIOUR CONSULTANCY LIMITED,"19,922.50",NMSS/ INDEP SPECIAL,STATEMENTED FEES,2103859084,1000091075
18.04.2024,Corporate,COMBER GROVE PRIMARY SCHOOL,"19,917.69",EDUCATION VAT INPUTS,VAT CONTROL ACCOUNT,2103858361,5001000022
30.04.2024,Children and Adults,BEST BEGINNINGS,"19,885.75",FAMILY HUBS GRANT,EXTERNAL AGENCIES AND BODIES,5902634399,1000090282
11.04.2024,Finance,PECKHAM LEVELS LTD,"19,860.00",PROFESSIONAL SERVICES GENERAL,GRANTS,5902631889,1000084365
04.04.2024,Children and Adults,CHARLES DICKENS PRIMARY SCHOOL,"19,833.66",FREE HEALTHY SCHOOL MEALS,SCHOOLS CAPITATION,2103851807,1000085158
04.04.2024,DSO,EXACTLY TECH LTD,"19,800.00",REORGANISATION COSTS,CONSULTANTS SERVICES,5902630730,1000083655
12.04.2024,Children and Adults,GALAXY EXPLORERS DAY NURSERY LIMITED,"19,747.80",NURSERY ED GRANT 3 AND 4 YR OLDS,GRANTS,2103856326,1000085260
15.04.2024,Environment Neighbourhoods and Growth,POTTERS FIELDS PARK MANAGEMENT TRUST,"19,742.00",CLIENT SERV(GRNS MAIN),SERVICE CHARGES,2103856579,1000053530
24.04.2024,Environment Neighbourhoods and Growth,GUILDMORE LTD,"19,658.71",CAPITAL PS (REGEN),CONSTRUCTION MAIN CONTRACT -CERTIFICATED,2103859764,3000002150
18.04.2024,Corporate,SOUTHWARK INCLUSIVE LEARNING SERVICE,"19,630.70",EDUCATION VAT INPUTS,VAT CONTROL ACCOUNT,2103858446,5001000105
12.04.2024,Children and Adults,LONDON EARLY YEARS FOUNDATION,"19,561.50",NURSERY ED GRANT 3 AND 4 YR OLDS,GRANTS,2103856362,1000077919
18.04.2024,Corporate,HIGHSHORE SCHOOL,"19,560.52",EDUCATION VAT INPUTS,VAT CONTROL ACCOUNT,2103858332,5001000046
17.04.2024,Children and Adults,KINTORE WAY CHILDRENS CENTRE,"19,548.00",EY SENDIF,STATEMENTED FEES,2103858059,5001000047
04.04.2024,Children and Adults,MICHAEL FARADAY PRIMARY SCHOOL,"19,533.15",FREE HEALTHY SCHOOL MEALS,SCHOOLS CAPITATION,2103851824,5001000048
04.04.2024,Children and Adults,ST JOSEPHS RC JUNIOR  SCHOOL,"19,533.15",FREE HEALTHY SCHOOL MEALS,SCHOOLS CAPITATION,2103851836,5001000017
12.04.2024,Children and Adults,EXCEL CHILD CARE SERVICES LTD,"19,519.80",NURSERY ED GRANT 3 AND 4 YR OLDS,GRANTS,2103856323,1000060429
15.04.2024,Corporate,FINANCIAL SERVICES COMPENSATION,"19,511.19",LIABILITY RELATED INSURANCE,COMPENSATION,5902632323,1000091020
22.04.2024,DSO,BUDMAX CONSTRUCTION LTD,"19,396.68",SR COMMUNAL - DELIVERY TEAM,OTHER CONTRACTORS,2103858708,3000001936
03.04.2024,Housing,A & E ELKINS LTD,"19,349.88",DESIGN & DELIVERY,PLANNED MAINTENANCE,2103849333,4012501
18.04.2024,Corporate,COMBER GROVE PRIMARY SCHOOL,"19,344.47",EDUCATION VAT INPUTS,VAT CONTROL ACCOUNT,2103858372,5001000022
04.04.2024,Children and Adults,VANGUARD SCHOOL,"19,323.76",AC & FREE - SPECIAL,STATEMENTED FEES,2103850430,1000090446
26.04.2024,Children and Adults,LIONCARE LIMITED,"19,295.57",CHILDREN�S RESID,RESIDENTIAL CARE,2103860058,1000065330
17.04.2024,Environment Neighbourhoods and Growth,TYCO INTEGRATED FIRE & SECURITY,"19,259.20",TEAMS 1 TO 12,OP LEASE/HIRE CHARGES:PLANT/EQUIP/FURNIT,5902632702,1000077948
24.04.2024,DSO,CRATUS BUILDING SERVICES LIMITED,"19,238.43",SR TEMPORARY ACCOMMODATION DD,OTHER CONTRACTORS,2103859178,3000001055
09.04.2024,Children and Adults,ALBION PRIMARY SCHOOL,"19,219.00",NURSERY ED GRANT 3 AND 4 YR OLDS,EARLY YEARS - 3 AND 4 YEAR OLDS,5902631374,5001000000
24.04.2024,Children and Adults,ST JAMES CE PRIMARY SCHOOL,"19,153.00",LBS MAINSTREAM,HIGH NEEDS - TOP UP FUNDING,5902633501,5001000070
04.04.2024,Environment Neighbourhoods and Growth,WALWORTH HOMES LTD,"19,095.04",CAPITAL PS (REGEN),CONSTRUCTION FEES,5902630840,1000079197
12.04.2024,Children and Adults,EAST DULWICH GROVE NURSERY LTD,"19,068.15",NURSERY ED GRANT 3 AND 4 YR OLDS,GRANTS,2103856322,1000077140
17.04.2024,Environment Neighbourhoods and Growth,ST GILES TRUST,"19,055.00",SOUTHWARK ANTI VIOLENCE UNIT,GRANTS,5902632574,1013828
25.04.2024,Children and Adults,CHARLES DICKENS PRIMARY SCHOOL,"19,040.00",TRADE UNIONS,SCHOOLS CAPITATION,2103859145,1000085158
23.04.2024,Environment Neighbourhoods and Growth,KENT COUNTY COUNCIL - LASER,"18,994.70",PECKHAM PULSE LEISURE CENTRE,GAS,5902633292,1000012926
11.04.2024,Housing,BETHEL ROCK LTD,"18,935.14",PSL PLACEMENTS,EXTERNAL AGENCIES AND BODIES,5902631894,1000080864
04.04.2024,Finance,TRANSUNION INTERNATIONAL UK LTD,"18,925.87",ANTI-FRAUD AND INVESTIGATIONS,SUBSCRIPTIONS,5902630886,1000069615
04.04.2024,Children and Adults,ST MARY MAGDALENE CE SCHOOL,"18,900.00",PUPIL PREMIUM,SCHOOLS CAPITATION,2103852091,5001000080
24.04.2024,Children and Adults,BRUNSWICK PARK PRIMARY SCHOOL,"18,872.00",LBS RB / SEN UNIT,HIGH NEEDS - TOP UP FUNDING,5902633457,5001000013
24.04.2024,Children and Adults,SNOWSFIELDS PRIMARY SCHOOL,"18,872.00",LBS RB / SEN UNIT,HIGH NEEDS - TOP UP FUNDING,5902633496,5001000061
10.04.2024,Housing,DURKAN LTD,"18,859.68",CAPITAL PS (HRA),CONSTRUCTION FEES  - EXTERNAL,2103855461,3000000960
13.04.2024,Finance,THE BLUE BERMONDSEY BID CO LTD,"18,841.42",BERMONDSEY BID,EXTERNAL AGENCIES AND BODIES,5902632177,1000074877
12.04.2024,Children and Adults,SMART KIDS DAY NURSERY LTD,"18,840.15",NURSERY ED GRANT 3 AND 4 YR OLDS,GRANTS,2103856376,1000074580
08.04.2024,Children and Adults,CHOICE CARE GROUP,"18,804.44",LD LTS 18-64,RESIDENTIAL CARE,2103854427,1572506
12.04.2024,Children and Adults,CTY NURSERY LTD,"18,743.63",NURSERY ED GRANT 3 AND 4 YR OLDS,GRANTS,2103856315,1000063131
04.04.2024,DSO,EXACTLY TECH LTD,"18,700.00",REORGANISATION COSTS,CONSULTANTS SERVICES,5902630724,1000083655
22.04.2024,Environment Neighbourhoods and Growth,KENT COUNTY COUNCIL - LASER,"18,676.46",PECKHAM PULSE LEISURE CENTRE,GAS,5902633128,1000012926
24.04.2024,Finance,CABINET OFFICE,"18,666.00",OKR MASTER PLANNING,GRANTS,2103859761,1000079085
24.04.2024,Children and Adults,SOUTHWARK PARK PRIMARY SCHOOL,"18,656.00",LBS MAINSTREAM,HIGH NEEDS - TOP UP FUNDING,5902633498,5001000062
08.04.2024,Children and Adults,ALWAYS INCLUSIVE LTD,"18,620.00",LD LTS 18-64,SUPPORTED LIVING,2103854298,1000088268
08.04.2024,Children and Adults,POSITIVE SOLUTIONS KENT,"18,550.72",LD LTS 18-64,RESIDENTIAL CARE,2103854377,1000090389
12.04.2024,Finance,HAYMARKET MEDIA GROUP LTD,"18,495.00",DEV MGT ADMIN & INCOME,SOFTWARE,5902631098,1000066122
06.04.2024,Environment Neighbourhoods and Growth,DRAIN SCAN (LONDON) LIMITED,"18,415.00",SUBWAYS MINOR ROADS,HIGHWAYS TERM CONTRACT,5902630909,1908746
12.04.2024,Children and Adults,ROTHERHITHE PRIMARY SCHOOL,"18,397.13",NURSERY ED GRANT 3 AND 4 YR OLDS,GRANTS,2103856372,1000089862
26.04.2024,Children and Adults,KEYS PCE LTD,"18,240.00",CHILDREN�S RESID,RESIDENTIAL CARE,2103860062,1000080090
12.04.2024,Children and Adults,LONDON EARLY YEARS FOUNDATION,"18,108.36",NURSERY ED GRANT 3 AND 4 YR OLDS,GRANTS,2103856332,1000077919
18.04.2024,Corporate,DULWICH WOOD PRIMARY SCHOOL,"18,067.91",EDUCATION VAT INPUTS,VAT CONTROL ACCOUNT,2103858329,5001000042
26.04.2024,Environment Neighbourhoods and Growth,KENT COUNTY COUNCIL - LASER,"17,923.48",THE CASTLE CENTRE,ELECTRICITY,5902633588,1000012926
29.04.2024,Environment Neighbourhoods and Growth,KENT COUNTY COUNCIL - LASER,"17,923.48",THE CASTLE CENTRE,ELECTRICITY,5902633958,1000012926
18.04.2024,Housing,PROPERTYPLACEBOOK LTD,"17,919.80",NIGHTLY TA (NSC),EXTERNAL AGENCIES AND BODIES,5902632806,1000077817
07.04.2024,Environment Neighbourhoods and Growth,VIKING SYSTEMS LTD,"17,900.00",SDM BUDGET,SOFTWARE,5902630867,1000090601
25.04.2024,Children and Adults,SOUTHWARK INCLUSIVE LEARNING SERVICE,"17,839.13",LBS PRU,SCHOOLS CAPITATION,2103859140,5001000105
08.04.2024,Environment Neighbourhoods and Growth,WATER PLUS LTD,"17,820.51",DULWICH LEISURE CENTRE,WATER,5902631269,1000087903
30.04.2024,Environment Neighbourhoods and Growth,J C CONSULTANT SERVICES LTD,"17,793.00",SOUTHWARK ANTI VIOLENCE UNIT,GRANTS,5902634267,1000042476
17.04.2024,Housing,CROMWOOD HOUSING,"17,689.00",NIGHTLY TA (NSC),EXTERNAL AGENCIES AND BODIES,5902632699,1000071450
22.04.2024,Environment Neighbourhoods and Growth,ESCAPE FITNESS LIMITED,"17,658.50",LEISURE INSOURCING MOBILISATION COST,EQUIPMENT PURCHASE & REPAIR,5902633161,1000090334
24.04.2024,Children and Adults,CENTRAL & NORTH WEST LONDON,"17,605.34",SEXUAL HEALTH - STI,MEDICAL / HEALTH & SAFETY SERVICES,5902633439,1000066666
19.04.2024,Housing,HSB ENGINEERING INSURANCE SERVICES,"17,595.00",LIFTS,LIFTS,5902632069,1000089047
03.04.2024,Children and Adults,ALLEN CARR'S EASYWAY (INTERNATIONAL,"17,545.00",STOP SMOKING,EXTERNAL AGENCIES AND BODIES,5902630611,1000090277
04.04.2024,Children and Adults,KINTORE WAY CHILDRENS CENTRE,"17,526.00",FREE HEALTHY SCHOOL MEALS,SCHOOLS CAPITATION,2103852027,5001000047
08.04.2024,Children and Adults,ROSEDENE NURSING HOME,"17,468.80",LD LTS 18-64,RESIDENTIAL CARE,2103854882,1163215
26.04.2024,Children and Adults,KEYS PCE LTD,"17,380.00",CHILDREN�S RESID,RESIDENTIAL CARE,2103860060,1000080090
12.04.2024,Children and Adults,BRIGHT EXPLORERS DAY NURSERY,"17,366.40",NURSERY ED GRANT 3 AND 4 YR OLDS,GRANTS,2103856307,1000074268
12.04.2024,Housing,FREEWAY LIFT SERVICES LTD,"17,347.00",CAPITAL PS (HOUSING GF),CAPITAL GRANTS,5902632160,1363482
16.04.2024,Housing,RESIDENZA PROPERTIES TOOTING LTD,"17,340.00",NIGHTLY TA (NSC),EXTERNAL AGENCIES AND BODIES,5902632398,1000090775
09.04.2024,Children and Adults,ST JAMES CE PRIMARY SCHOOL,"17,307.00",NURSERY ED GRANT 3 AND 4 YR OLDS,EARLY YEARS - 3 AND 4 YEAR OLDS,5902631435,5001000070
08.04.2024,Children and Adults,DIAGRAMA HEALTH CARE,"17,304.64",LD LTS 18-64,RESIDENTIAL CARE,2103854364,1000075492
24.04.2024,Children and Adults,ROBERT BROWNING PRIMARY SCHOOL,"17,289.00",LBS MAINSTREAM,HIGH NEEDS - TOP UP FUNDING,5902633491,5001000057
07.04.2024,Environment Neighbourhoods and Growth,F M CONWAY LTD,"17,272.17",HIGHWAY MAINTENANCE OVERHEADS,HIGHWAYS TERM CONTRACT,2103852185,4001384
08.04.2024,Children and Adults,OPTIMA CARE (SHINE) LONDON LTD,"17,172.96",LD LTS 18-64,SUPPORTED LIVING,2103854683,1000079614
15.04.2024,Children and Adults,ASPIRE HOUSE LTD,"17,142.85",CHILDREN�S RESID,RESIDENTIAL CARE,2103856597,1000080373
19.04.2024,Children and Adults,SPECTRA CARE LTD,"17,137.12",DISABILITIES LAC,EXTERNAL AGENCIES AND BODIES,2103858548,1000086280
09.04.2024,Children and Adults,SOUTHWARK PARK PRIMARY SCHOOL,"17,081.00",NURSERY ED GRANT 3 AND 4 YR OLDS,EARLY YEARS - 3 AND 4 YEAR OLDS,5902631430,5001000062
23.04.2024,Environment Neighbourhoods and Growth,KENT COUNTY COUNCIL - LASER,"17,040.74",CAMBERWELL LEISURE CENTRE,GAS,5902633290,1000012926
26.04.2024,Children and Adults,HAWORTH TOMPKINS LTD,"17,000.00",STRATEGIC DIRECTOR OF C&AS,PROFESSIONAL FEES,5902633828,1000043607
09.04.2024,Children and Adults,IVYDALE PRIMARY SCHOOL,"16,987.00",NURSERY ED GRANT 3 AND 4 YR OLDS,EARLY YEARS - 3 AND 4 YEAR OLDS,5902631409,5001000038
18.04.2024,Corporate,JOHN RUSKIN PRIMARY SCHOOL,"16,951.25",EDUCATION VAT INPUTS,VAT CONTROL ACCOUNT,2103858405,5001000040
24.04.2024,Children and Adults,PARKWOOD HALL CO-OPERATIVE ACADEMY,"16,900.00",OTHER LA SPECIAL,STATEMENTED FEES,2103859168,1000077451
26.04.2024,Children and Adults,MY CHOICE CHILDREN'S HOMES LIMITED,"16,877.14",CHILDREN�S RESID,RESIDENTIAL CARE,2103860049,1000085839
05.04.2024,Environment Neighbourhoods and Growth,PWLC PROJECTS,"16,860.00",STREETS FOR PEOPLE - CYCLING,MISCELLANEOUS RECHARGES,5902630216,1000079351
04.04.2024,Children and Adults,CRAWFORD PRIMARY SCHOOL,"16,828.56",FREE HEALTHY SCHOOL MEALS,SCHOOLS CAPITATION,2103851812,5001000024
19.04.2024,Children and Adults,PRIDE DEVELOPMENTS,"16,795.25",CAPITAL PS (SOC SERV),CONSTRUCTION MAIN CONTRACT,2103858567,3000002126
15.04.2024,Environment Neighbourhoods and Growth,ZFA ACCOMMODATION LTD,"16,757.00",NO RECOURSE TO PUBLIC FUNDS,ACCOMMODATION CHARGES,5902632224,1000082620
26.04.2024,Finance,BRITISH TELECOM PLC,"16,722.00",SHARED SERVICES,DATA COMMUNICATIONS,5902633796,1756938
04.04.2024,Environment Neighbourhoods and Growth,KNOX BHAVAN ARCHITECTS LLP,"16,687.47",CAPITAL PS (REGEN),CONSTRUCTION FEES - ARCHITECT,5902630887,1000088675
04.04.2024,Children and Adults,ANGEL OAK ACADEMY,"16,678.30",FREE HEALTHY SCHOOL MEALS,SCHOOLS CAPITATION,2103851803,1000075379
10.04.2024,Housing,MARTIN ARNOLD LTD,"16,660.00",CAPITAL PS (HRA),CONSTRUCTION FEES - EMPLOYERS AGENT,5902631708,1000076993
08.04.2024,Children and Adults,WELLSPRING CARE HOMES LIMITED,"16,632.00",LD LTS 18-64 AAD,SUPPORTED LIVING,2103854201,1000088216
24.04.2024,Children and Adults,ALFRED SALTER PRIMARY SCHOOL,"16,587.00",LBS MAINSTREAM,HIGH NEEDS - TOP UP FUNDING,5902633450,5001000005
10.04.2024,Environment Neighbourhoods and Growth,NORBURY PROPERTY SERVICES (LONDON) LTD,"16,585.00",NO RECOURSE TO PUBLIC FUNDS,ACCOMMODATION CHARGES,5902631675,1000075566
09.04.2024,Children and Adults,KEYWORTH PRIMARY SCHOOL,"16,580.00",NURSERY ED GRANT 3 AND 4 YR OLDS,EARLY YEARS - 3 AND 4 YEAR OLDS,5902631413,5001000041
30.04.2024,Children and Adults,TUTELAGE CARE GROUP LTD,"16,560.00",CHILDREN�S RESID,RESIDENTIAL CARE,2103861607,1000088232
04.04.2024,Children and Adults,SOUTHWARK PARK PRIMARY SCHOOL,"16,528.05",FREE HEALTHY SCHOOL MEALS,SCHOOLS CAPITATION,2103851830,5001000062
22.04.2024,Environment Neighbourhoods and Growth,ESCAPE FITNESS LIMITED,"16,395.75",LEISURE INSOURCING MOBILISATION COST,EQUIPMENT PURCHASE & REPAIR,5902633142,1000090334
25.04.2024,Environment Neighbourhoods and Growth,KENT COUNTY COUNCIL - LASER,"16,385.31",CAMBERWELL LEISURE CENTRE,ELECTRICITY,5902633741,1000012926
12.04.2024,Governance and Assurance,INNER CIRCLE CONSULTING,"16,362.88",HR PAYROLL COSTS,PROFESSIONAL FEES,5902632200,1000080627
12.04.2024,Children and Adults,MIATA EDUCATIONAL SERVICES LTD,"16,351.65",NURSERY ED GRANT 3 AND 4 YR OLDS,GRANTS,2103856321,1000003741
26.04.2024,Children and Adults,HORIZON CARE & EDUCATION GROUP LTD,"16,337.10",CHILDREN�S RESID,RESIDENTIAL CARE,2103860428,1000075467
04.04.2024,Housing,HMRC STAMP TAXES ONLY SDLT,"16,300.00",CAPITAL PS (HRA),LAND & BUILDINGS ACQUISITION,5902630865,1000052141
23.04.2024,Housing,GEMINI CONSULTANTS LTD,"16,287.54",HOME LOANS HRA,SUBSCRIPTIONS,5902633010,1384854
26.04.2024,Children and Adults,ACORN HOMES (UK) LTD,"16,285.80",CHILDREN�S RESID,RESIDENTIAL CARE,2103860056,1000080423
09.04.2024,Children and Adults,ALFRED SALTER PRIMARY SCHOOL,"16,251.00",NURSERY ED GRANT 3 AND 4 YR OLDS,EARLY YEARS - 3 AND 4 YEAR OLDS,5902631376,5001000005
12.04.2024,Children and Adults,LITTLE FINGERS MONTESSORI NURSERY LTD,"16,208.10",NURSERY ED GRANT 3 AND 4 YR OLDS,GRANTS,2103856348,1000073415
24.04.2024,Children and Adults,THE ST THOMAS THE APOSTLE COLLEGE,"16,164.00",LBS MAINSTREAM,HIGH NEEDS - TOP UP FUNDING,5902633505,5001000074
08.04.2024,Housing,HOUSING PARTNERS LTD,"16,149.24",SOUTH AREA RUNNING COSTS,SOFTWARE,5902631203,1000090724
24.04.2024,Environment Neighbourhoods and Growth,KENT COUNTY COUNCIL - LASER,"16,145.54",CAMBERWELL LEISURE CENTRE,ELECTRICITY,5902633448,1000012926
15.04.2024,Environment Neighbourhoods and Growth,FAITHFUL & GOULD,"16,130.00",CAPITAL PS (REGEN),CONSTRUCTION FEES  - EXTERNAL,5902632343,1000061390
26.04.2024,Environment Neighbourhoods and Growth,KENT COUNTY COUNCIL - LASER,"16,023.40",DULWICH LEISURE CENTRE,ELECTRICITY,5902633889,1000012926
26.04.2024,DSO,ARMINA LTD,"15,944.08",PECKHAM & DULWICH DD,OTHER CONTRACTORS,2103860513,3000002121
04.04.2024,Children and Adults,THE BECKMEAD TRUST,"15,935.16",OTHER LA SPECIAL,STATEMENTED FEES,2103850446,1000082684
04.04.2024,Children and Adults,THE BECKMEAD TRUST,"15,935.16",OTHER LA SPECIAL,STATEMENTED FEES,2103850447,1000082684
24.04.2024,Children and Adults,ALBION PRIMARY SCHOOL,"15,923.00",LBS MAINSTREAM,HIGH NEEDS - TOP UP FUNDING,5902633449,5001000000
12.04.2024,Children and Adults,UNDER THE WILLOW NURSERY,"15,902.10",NURSERY ED GRANT 3 AND 4 YR OLDS,GRANTS,2103856374,1000071830
16.04.2024,Children and Adults,RISE EDUCATION LTD,"15,900.00",INDEP MAINSTREAM,STATEMENTED FEES,2103856986,1000077642
09.04.2024,Environment Neighbourhoods and Growth,FABRIKAT (NOTTINGHAM) LTD,"15,870.75",PUBLIC LIGHTING,MATERIALS,5902630986,1036223
11.04.2024,Environment Neighbourhoods and Growth,TYCO INTEGRATED FIRE & SECURITY,"15,851.00",TOWN CENTRE CCTV,OTHER CONTRACTORS,5902631986,1000077948
04.04.2024,Children and Adults,NEW CITY COLLEGE,"15,816.29",FURTHER EDUCATION,STATEMENTED FEES,2103850409,1000080741
04.04.2024,Children and Adults,NEW CITY COLLEGE,"15,816.29",FURTHER EDUCATION,STATEMENTED FEES,2103850410,1000080741
18.04.2024,Corporate,ST ANTHONYS RC SCHOOL,"15,770.94",EDUCATION VAT INPUTS,VAT CONTROL ACCOUNT,2103858425,5001000064
08.04.2024,Finance,LEADTEC LIMITED,"15,725.00",CAPITAL PS (STRAT SERV),ICT ACQUISITION,5902631172,1000088992
25.04.2024,Environment Neighbourhoods and Growth,KENT COUNTY COUNCIL - LASER,"15,719.17",CAMBERWELL LEISURE CENTRE,ELECTRICITY,5902633743,1000012926
12.04.2024,Children and Adults,FIRST CHOICE DAY NURSERY,"15,681.68",NURSERY ED GRANT 3 AND 4 YR OLDS,GRANTS,2103856295,1000075368
09.04.2024,Suspense,EDWARDES BROS (DULWICH) LTD,"15,655.40",SUSPENSE ACCOUNT (COMPANY CODE 1000),CREDITORS -GR/IR CLEARING ACCOUNT,5902631497,1004945
12.04.2024,Children and Adults,JOHN KEATS PRIMARY SCHOOL,"15,649.20",NURSERY ED GRANT 3 AND 4 YR OLDS,GRANTS,2103856337,1000082645
04.04.2024,Children and Adults,HARRIS PRIMARY ACADEMY PECKHAM PARK,"15,626.52",FREE HEALTHY SCHOOL MEALS,SCHOOLS CAPITATION,2103851815,1000068029
08.04.2024,Children and Adults,ASHRIDGE COURT CARE CENTRE LTD,"15,604.35",PHY LTS 18-64,NURSING PLACEMENTS FEES,2103853973,1000090915
26.04.2024,Children and Adults,JAMMA UMOJA (RESIDENTIAL SERVICES),"15,591.43",RESID PARENT ASSESS,RESIDENTIAL CARE,2103860042,1000080325
24.04.2024,Children and Adults,CAMELOT PRIMARY SCHOOL,"15,563.00",LBS MAINSTREAM,HIGH NEEDS - TOP UP FUNDING,5902633459,5001000014
30.04.2024,Children and Adults,DAISY CORPORATE SERVICES TRADING LIMITED,"15,559.88",C&AS SOFTWARE APPS,SOFTWARE,5902634357,1000075666
04.04.2024,Environment Neighbourhoods and Growth,BETTERPOINTS LIMITED,"15,550.00",STREETS FOR PEOPLE - CYCLING,MISCELLANEOUS RECHARGES,5902630677,1000089817
05.04.2024,Children and Adults,REDACTED PERSONAL DATA,"15,525.44",LD LTS 18-64,PAYMENTS TO CLIENTS (DIRECT PAYMENTS),2103852880,1000046071
24.04.2024,Children and Adults,APPLEFORD SCHOOL,"15,518.00",NMSS/ INDEP SPECIAL,STATEMENTED FEES,2103859167,1000086235
05.04.2024,Environment Neighbourhoods and Growth,F M CONWAY LTD,"15,483.26",CAPITAL PS (LEISURE),CONSTRUCTION,2103852195,4001384
22.04.2024,Housing,HOMELY HOUSING LETS LTD,"15,428.90",NIGHTLY TA (NSC),EXTERNAL AGENCIES AND BODIES,5902633134,1000050013
19.04.2024,Housing,HM REVENUE & CUSTOMS,"15,424.84",APPRENTICE LEVY,APPRENTICESHIP LEVY,2103843244,1016231
11.04.2024,Strategy and Communities,SOMALI INTEGRATION & DEVELOPMENT ASSOCIATION,"15,418.75",VCS GRANTS,GRANTS,5902632078,11048946
20.04.2024,Housing,PRIME UK MANAGEMENT LTD,"15,385.44",HOMELESS PROJECTS,GRANTS,5902632854,1000081616
24.04.2024,Children and Adults,JOHN RUSKIN PRIMARY SCHOOL,"15,333.00",LBS RB / SEN UNIT,HIGH NEEDS - BASE FUNDING,5902633472,5001000040
22.04.2024,Environment Neighbourhoods and Growth,KENT COUNTY COUNCIL - LASER,"15,320.62",SEVEN ISLANDS LEISURE CENTRE,ELECTRICITY,5902633120,1000012926
24.04.2024,Children and Adults,ABINGDON HOUSE SCHOOL,"15,318.00",NMSS/ INDEP SPECIAL,STATEMENTED FEES,2103859174,1000072800
12.04.2024,Children and Adults,BIG N ALL PRESCHOOL AND DAY NURSERY,"15,301.50",NURSERY ED GRANT 3 AND 4 YR OLDS,GRANTS,2103856304,1000089398
04.04.2024,Housing,JON MILLER IT LTD,"15,300.00",CAPITAL PS (HOUSING GF),ICT ACQUISITION,5902630135,1000088937
18.04.2024,Corporate,GOODRICH PRIMARY SCHOOL,"15,226.02",EDUCATION VAT INPUTS,VAT CONTROL ACCOUNT,2103858347,5001000028
23.04.2024,Corporate,SCOTTISH EQUITABLE PLC,"15,208.52",A. V. C. TO OTHER PENSION,PAYROLL CREDITORS - EXTERNAL AVCS (LOCAL GOVT),2103858724,1000026367
17.04.2024,Housing,FREEWAY LIFT SERVICES LTD,"15,203.00",CAPITAL PS (HOUSING GF),CAPITAL GRANTS,5902632721,1363482
17.04.2024,Corporate,AMPLIFY TECHNOLOGY LIMITED,"15,200.00",ERP PROGRAMME BUDGET,CONSULTANTS SERVICES,5902632801,1000090570
04.04.2024,Children and Adults,THE BECKMEAD TRUST,"15,176.33",OTHER LA SPECIAL,STATEMENTED FEES,2103850445,1000082684
12.04.2024,Finance,MORRIS + COMPANY LTD,"15,168.00",CANADA WATER,CONSULTANTS SERVICES,5902632072,1000084228
11.04.2024,Strategy and Communities,THE MANNA CENTRE,"15,143.25",VCS GRANTS,GRANTS,5902632064,1000048508
01.04.2024,Finance,BIG BLUE DOOR LTD,"15,125.00",CAPITAL PS (STRAT SERV),ICT ACQUISITION,5902629884,1000087674
12.04.2024,Environment Neighbourhoods and Growth,FABRIKAT (NOTTINGHAM) LTD,"15,115.00",PUBLIC LIGHTING,MATERIALS,5902632057,1036223
12.04.2024,Children and Adults,HARRIS PRIMARY ACADEMY PECKHAM PARK,"15,090.30",NURSERY ED GRANT 3 AND 4 YR OLDS,GRANTS,2103856334,1000068029
18.04.2024,Corporate,ROBERT BROWNING PRIMARY SCHOOL,"15,050.48",EDUCATION VAT INPUTS,VAT CONTROL ACCOUNT,2103858365,5001000057
16.04.2024,Children and Adults,RISE EDUCATION LTD,"15,000.00",INDEP MAINSTREAM,STATEMENTED FEES,2103856984,1000077642
29.04.2024,Housing,ROOFF LTD,"14,992.08",CAPITAL PS (HRA),CONSTRUCTION MAIN CONTRACT -CERTIFICATED,2103860561,3000001090
05.04.2024,Children and Adults,REDACTED PERSONAL DATA,"14,990.08",LD LTS 18-64,PAYMENTS TO CLIENTS (DIRECT PAYMENTS),2103853248,1000070120
29.04.2024,Housing,CROWN HOUSING LTD,"14,983.50",NIGHTLY TA (NSC),EXTERNAL AGENCIES AND BODIES,5902634037,1000075070
18.04.2024,Corporate,SOUTHWARK INCLUSIVE LEARNING SERVICE,"14,949.99",EDUCATION VAT INPUTS,VAT CONTROL ACCOUNT,2103858338,5001000105
10.04.2024,Housing,KENT COUNTY COUNCIL - LASER,"14,948.72",HEATING ACCOUNT,GAS,5902631781,1000012926
26.04.2024,Children and Adults,ACORN CARE & EDUCATION LTD,"14,916.28",CHILDREN�S RESID,RESIDENTIAL CARE,2103860061,1000085841
18.04.2024,Corporate,BRUNSWICK PARK PRIMARY SCHOOL,"14,915.30",EDUCATION VAT INPUTS,VAT CONTROL ACCOUNT,2103858341,5001000013
03.04.2024,Finance,STOPFORD INFORMATION SYSTEMS LTD,"14,900.00",REGISTRARS,OFFICE EXPENSES,5902630546,1000080626
12.04.2024,Children and Adults,RYE GARDEN DAY NURSERY,"14,877.90",NURSERY ED GRANT 3 AND 4 YR OLDS,GRANTS,2103856373,1000074965
19.04.2024,Children and Adults,F A ALBIN AND SONS,"14,876.40",APPOINTEESHIPS,OTHER PAYMENTS FOR CLIENTS,2103858570,11313949
18.04.2024,Corporate,CHERRY GARDEN SCHOOL,"14,816.73",EDUCATION VAT INPUTS,VAT CONTROL ACCOUNT,2103858326,5001000020
05.04.2024,Environment Neighbourhoods and Growth,JOYRIDERS BRITAIN C.I.C,"14,800.00",STREETS FOR PEOPLE - CYCLING,MISCELLANEOUS RECHARGES,5902630184,1000089887
08.04.2024,Children and Adults,DAISYBROOK LTD,"14,760.00",DISABILITIES LAC,RESIDENTIAL CARE,2103853811,1000088357
08.04.2024,Children and Adults,DAISYBROOK LTD,"14,760.00",DISABILITIES LAC,RESIDENTIAL CARE,2103853813,1000088357
08.04.2024,Children and Adults,SAFE HAVEN ACCOMODATION LTD,"14,738.29",SEMI-IND LAC 16-17,EXTERNAL AGENCIES AND BODIES,2103853804,1000081573
24.04.2024,Children and Adults,JOHN RUSKIN PRIMARY SCHOOL,"14,736.00",LBS RB / SEN UNIT,HIGH NEEDS - TOP UP FUNDING,5902633473,5001000040
18.04.2024,Corporate,SOUTHWARK INCLUSIVE LEARNING SERVICE,"14,734.63",EDUCATION VAT INPUTS,VAT CONTROL ACCOUNT,2103858336,5001000105
22.04.2024,Environment Neighbourhoods and Growth,KENT COUNTY COUNCIL - LASER,"14,688.79",DULWICH LEISURE CENTRE,ELECTRICITY,5902633133,1000012926
12.04.2024,Finance,HIAM ALI LTD,"14,673.70",CORONER'S,PROFESSIONAL FEES,5902632105,1000084044
11.04.2024,Environment Neighbourhoods and Growth,REDACTED PERSONAL DATA,"14,659.40",NO RECOURSE TO PUBLIC FUNDS,ACCOMMODATION CHARGES,5902631860,1000061134
02.04.2024,Children and Adults,NELL GWYNN NURSERY SCHOOL,"14,656.00",NURSERY ED GRANT 3 AND 4 YR OLDS,EARLY YEARS - 3 AND 4 YEAR OLDS,2103838788,5001000049
30.04.2024,Environment Neighbourhoods and Growth,BUREAU VAN DIJK ELECTRONIC PUBLISHING LTD,"14,643.00",BUSINESS SUPPORT,SUBSCRIPTIONS,5902634285,1000077874
12.04.2024,Housing,RNS HOMES LTD,"14,500.24",PSL PLACEMENTS,EXTERNAL AGENCIES AND BODIES,5902631931,1000090648
19.04.2024,Children and Adults,STEPPING STONES,"14,500.00",ALC COMMUNITY LEARNING,GRANTS,5902633019,1000051807
18.04.2024,Housing,KENNINGTON PARK HSE HOUSING MGMT CO-OP LTD,"14,495.75",KENNINGTON PK CO-OP,M&M ALLOWANCE CO-OPS,5902631855,1000056189
05.04.2024,Housing,RELIANCE RESIDENTIAL,"14,490.51",PSL PLACEMENTS,EXTERNAL AGENCIES AND BODIES,5902631099,1000084814
29.04.2024,Environment Neighbourhoods and Growth,KENT COUNTY COUNCIL - LASER,"14,487.36",DULWICH LEISURE CENTRE,ELECTRICITY,5902634045,1000012926
09.04.2024,Children and Adults,MICHAEL FARADAY PRIMARY SCHOOL,"14,485.00",NURSERY ED GRANT 3 AND 4 YR OLDS,EARLY YEARS - 3 AND 4 YEAR OLDS,5902631416,5001000048
09.04.2024,Housing,CENTENNIAL PROPERTY LIMITED,"14,433.00",NIGHTLY TA (NSC),EXTERNAL AGENCIES AND BODIES,5902631260,1000083022
20.04.2024,Finance,WILDER CITY LIMITED,"14,428.50",E&C ARTS,GRANTS,5902632246,1000089927
17.04.2024,Children and Adults,KINTORE WAY CHILDRENS CENTRE,"14,427.00",EY SENDIF,STATEMENTED FEES,2103858058,5001000047
18.04.2024,Children and Adults,CASA TIERRA BILINGUAL CHILDCARE LIMITED,"14,416.35",NURSERY ED GRANT 3 AND 4 YR OLDS,GRANTS,2103858467,1000087759
10.04.2024,Housing,CARLISLE SECURITY SERVICES LTD,"14,388.92",CENTRAL AREA RUNNING COSTS,SECURITY SERVICES,5902631175,11212342
08.04.2024,Environment Neighbourhoods and Growth,WATER PLUS LTD,"14,377.17",CAMBERWELL LEISURE CENTRE,WATER,5902631277,1000087903
05.04.2024,Finance,EXACOM SYSTEMS LTD,"14,373.40",S106 & CIL ADMINISTRATION,COMMS & COMPUTING CONTRACT CHARGES,5902630958,1000077961
18.04.2024,Corporate,MICHAEL FARADAY PRIMARY SCHOOL,"14,351.10",EDUCATION VAT INPUTS,VAT CONTROL ACCOUNT,2103858417,5001000048
22.04.2024,Environment Neighbourhoods and Growth,KENT COUNTY COUNCIL - LASER,"14,349.63",DULWICH LEISURE CENTRE,GAS,5902633085,1000012926
18.04.2024,Corporate,CHARLOTTE  SHARMAN PRIMARY SCHOOL,"14,323.08",EDUCATION VAT INPUTS,VAT CONTROL ACCOUNT,2103858315,5001000016
04.04.2024,Children and Adults,DOG KENNEL HILL PRIMARY SCHOOL,"14,274.22",FREE HEALTHY SCHOOL MEALS,SCHOOLS CAPITATION,2103851813,1000089861
17.04.2024,Children and Adults,THE ST THOMAS THE APOSTLE COLLEGE,"14,249.00",YPLA SCHL SIXTH FORM,SCHOOLS CAPITATION,5902632640,5001000074
12.04.2024,Children and Adults,BRIGHT HORIZONS FAMILY SOLUTIONS,"14,233.32",NURSERY ED GRANT 3 AND 4 YR OLDS,GRANTS,2103856363,11294322
01.04.2024,Housing,PULSE ASSOCIATES LTD (T/A PULSE CONSULT),"14,225.00",CAPITAL PS (HRA),CONSTRUCTION FEES  - EXTERNAL,5902630084,1000087233
04.04.2024,Children and Adults,THE DRIVE CARE HOMES LTD,"14,218.04",DISABILITIES LAC,RESIDENTIAL CARE,2103852005,1000003889
04.04.2024,Children and Adults,THE DRIVE CARE HOMES LTD,"14,218.04",DISABILITIES LAC,RESIDENTIAL CARE,2103852007,1000003889
25.04.2024,Housing,DIAMOND PROPERTY MANAGEMENT LTD,"14,202.15",NIGHTLY TA (NSC),EXTERNAL AGENCIES AND BODIES,5902633727,1000088789
03.04.2024,Environment Neighbourhoods and Growth,PROJECT CENTRE LTD,"14,156.48",TRANSPORT PROJECTS,OTHER CONTRACTORS,5902630544,1000072621
02.04.2024,Children and Adults,THE GROVE CHILDRENS CENTRE,"14,084.00",NURSERY ED GRANT 3 AND 4 YR OLDS,EARLY YEARS - 3 AND 4 YEAR OLDS,2103838789,5001000090
12.04.2024,Children and Adults,SURE AND FIRM FOUNDATIONS,"13,972.50",NURSERY ED GRANT 3 AND 4 YR OLDS,GRANTS,2103856358,1000066223
12.04.2024,Children and Adults,DULWICH MONTESSORI NURSERY SCHOOL,"13,956.66",NURSERY ED GRANT 3 AND 4 YR OLDS,GRANTS,2103856317,1000020859
04.04.2024,Children and Adults,MEDWAY COUNCIL,"13,953.28",OTHER LA SPECIAL,STATEMENTED FEES,2103850522,1000021704
29.04.2024,Children and Adults,ELIALI MPC LTD,"13,928.57",CHILDREN�S RESID,RESIDENTIAL CARE,2103860998,1000089944
23.04.2024,Environment Neighbourhoods and Growth,TOGETHER FOR MENTAL WELLBEING,"13,905.00",SOUTHWARK ANTI VIOLENCE UNIT,GRANTS,5902633313,1000084108
08.04.2024,Children and Adults,CYGNET CARE SERVICES LTD,"13,891.72",LD LTS 18-64,RESIDENTIAL CARE,2103854830,1000050432
17.04.2024,Governance and Assurance,ATLANTIC DATA LTD,"13,889.46",EMPLOYMENT CHECKS,GENERAL RECHARGES,5902632691,1000070778
08.04.2024,Environment Neighbourhoods and Growth,WATER PLUS LTD,"13,852.19",DULWICH LEISURE CENTRE,WATER,5902631269,1000087903
12.04.2024,Children and Adults,TOTS RYE DAY NURSERY LTD,"13,813.20",NURSERY ED GRANT 3 AND 4 YR OLDS,GRANTS,2103856390,1000089357
24.04.2024,Children and Adults,IVYDALE PRIMARY SCHOOL,"13,800.00",LBS MAINSTREAM,HIGH NEEDS - TOP UP FUNDING,5902633471,5001000038
07.04.2024,Environment Neighbourhoods and Growth,F M CONWAY LTD,"13,757.52",HIGHWAY MAINTENANCE OVERHEADS,HIGHWAYS TERM CONTRACT,2103852187,4001384
16.04.2024,Housing,OSBORNES SOLICITORS,"13,750.00",DISREPAIR,PAYMENTS FOR LEGAL SERVICES,2103856783,1000052598
12.04.2024,Children and Adults,GLOBAL MEDIATION LIMITED,"13,750.00",CENTRAL COSTS - SEN,TRAINING,5902632151,1000090329
22.04.2024,Environment Neighbourhoods and Growth,ESCAPE FITNESS LIMITED,"13,732.90",LEISURE INSOURCING MOBILISATION COST,EQUIPMENT PURCHASE & REPAIR,5902633164,1000090334
18.04.2024,Corporate,SNOWSFIELDS PRIMARY SCHOOL,"13,723.34",EDUCATION VAT INPUTS,VAT CONTROL ACCOUNT,2103858414,5001000061
18.04.2024,Children and Adults,STONEGROVE LIMITED,"13,695.00",ORIENT ST � RESPITE,BUILDING R&M,2103858102,3000001525
30.04.2024,Children and Adults,FRONTIER SUPPORT SERVICES LTD,"13,684.00",LD LTS 18-64,SUPPORTED LIVING,2103861579,1000072241
18.04.2024,Corporate,JOHN RUSKIN PRIMARY SCHOOL,"13,612.56",EDUCATION VAT INPUTS,VAT CONTROL ACCOUNT,2103858448,5001000040
08.04.2024,Children and Adults,SPECTRA CARE LTD,"13,585.72",LD LTS 18-64,SUPPORTED LIVING,2103854329,1000086280
24.04.2024,Children and Adults,ABINGDON HOUSE SCHOOL,"13,569.00",NMSS/ INDEP SPECIAL,STATEMENTED FEES,2103859173,1000072800
04.04.2024,Children and Adults,BRUNSWICK PARK PRIMARY SCHOOL,"13,522.95",FREE HEALTHY SCHOOL MEALS,SCHOOLS CAPITATION,2103851806,5001000013
08.04.2024,Children and Adults,YPR LIMITED,"13,520.00",LD LTS 18-64,SUPPORTED LIVING,2103854481,1000086517
12.04.2024,Children and Adults,CAMBERWELL AFTER SCHOOL PROJECT,"13,499.63",NURSERY ED GRANT 3 AND 4 YR OLDS,GRANTS,2103856311,1000051625
09.04.2024,Children and Adults,HEBER PRIMARY SCHOOL,"13,499.00",NURSERY ED GRANT 3 AND 4 YR OLDS,EARLY YEARS - 3 AND 4 YEAR OLDS,5902631405,5001000035
04.04.2024,Children and Adults,THE DRIVE CARE HOMES LTD,"13,433.56",DISABILITIES LAC,EXTERNAL AGENCIES AND BODIES,2103852004,1000003889
04.04.2024,Children and Adults,THE DRIVE CARE HOMES LTD,"13,433.56",DISABILITIES LAC,EXTERNAL AGENCIES AND BODIES,2103852006,1000003889
18.04.2024,Children and Adults,THE LONDON CITY CARE AND SUPPORT,"13,428.59",SEMI-IND LAC 16-17,EXTERNAL AGENCIES AND BODIES,2103858215,1000090438
24.04.2024,Children and Adults,ST FRANCIS'S RC PRIMARY SCHOOL,"13,417.00",LBS MAINSTREAM,HIGH NEEDS - TOP UP FUNDING,5902633499,5001000067
12.04.2024,Children and Adults,PURPLE JAY LIMITED,"13,413.60",NURSERY ED GRANT 3 AND 4 YR OLDS,GRANTS,2103856368,1000087821
29.04.2024,Housing,ROOFF LTD,"13,398.28",CAPITAL PS (HRA),CONSTRUCTION MAIN CONTRACT -CERTIFICATED,2103860561,3000001090
23.04.2024,Environment Neighbourhoods and Growth,WHITELEYS OFFICE SUPPLIES LTD,"13,394.00",BURGESS SPORTS CENTRE,FURNITURE PURCHASE & REPAIR,5902633359,1000083121
09.04.2024,Children and Adults,CAMELOT PRIMARY SCHOOL,"13,387.00",NURSERY ED GRANT 3 AND 4 YR OLDS,EARLY YEARS - 3 AND 4 YEAR OLDS,5902631385,5001000014
24.04.2024,Children and Adults,ST GEORGES CE SCHOOL,"13,383.00",LBS MAINSTREAM,HIGH NEEDS - TOP UP FUNDING,5902633500,5001000069
23.04.2024,Children and Adults,UNLOCKING LANGUAGE LTD,"13,366.08",SALT,CONSULTANTS SERVICES,2103859086,1000081107
12.04.2024,Children and Adults,ST JOHNS PRE SCHOOL,"13,360.50",NURSERY ED GRANT 3 AND 4 YR OLDS,GRANTS,2103856381,1000013380
07.04.2024,Environment Neighbourhoods and Growth,F M CONWAY LTD,"13,360.21",HIGHWAY MAINTENANCE OVERHEADS,HIGHWAYS TERM CONTRACT,2103852193,4001384
11.04.2024,Housing,SPD ESTATE LTD,"13,360.00",RAPID REHOUSING,EXTERNAL AGENCIES AND BODIES,5902631524,1000087122
24.04.2024,Housing,TKC HOUSING LIMITED,"13,350.00",PSL PLACEMENTS,EXTERNAL AGENCIES AND BODIES,5902633607,1000088199
25.04.2024,Children and Adults,MEGGS COSTOYA ATTFIELD LTD,"13,335.76",C&AS SOFTWARE APPS,SOFTWARE,5902633640,1000021574
20.04.2024,Finance,WILDER CITY LIMITED,"13,335.00",E&C ARTS,GRANTS,5902632245,1000089927
15.04.2024,Children and Adults,ANN BERNADT NURSERY SCHOOL,"13,260.00",NURSERY ED GRANT 2YR OLDS,EARLY YEARS - 2 YEAR OLD,5902632307,5001000085
18.04.2024,Environment Neighbourhoods and Growth,ASKEWS & HOLTS LIBRARY SERVICES LTD,"13,255.19",STOCK SERVICES,BOOKS & PUBLICATIONS,5902632909,1494168
12.04.2024,Children and Adults,NICKI DAY NURSERY LTD,"13,254.30",NURSERY ED GRANT 3 AND 4 YR OLDS,GRANTS,2103856361,1000045363
10.04.2024,Finance,ETUDE CONSULTING LIMITED,"13,222.50",PLANNING POLICY TEAM,CONSULTANTS SERVICES,5902631083,1000089774
05.04.2024,Children and Adults,PEOPLE PLUS GROUP LTD (INDEPENDENT LIVING SERVICES),"13,184.88",PHY LTS 65+,PAYMENTS TO CLIENTS (DIRECT PAYMENTS),2103852962,1000061886
23.04.2024,Suspense,UNISON,"13,182.90",SUSPENSE ACCOUNT (COMPANY CODE 1000),PAYROLL CREDITORS - UNION DEDUCTIONS,2103859005,11060053
08.04.2024,Children and Adults,PECULIAR CARE HOMES LTD,"13,148.00",LD LTS 18-64,SUPPORTED LIVING,2103854631,1000076991
12.04.2024,Governance and Assurance,NESTE LTD,"13,138.24",MAYORAL SUPPORT,CATERING MATERIALS & SUPPLIES,5902631694,1000088649
12.04.2024,Children and Adults,SUNHILL DAYCARE (EUROPE) LIMITED,"13,131.77",NURSERY ED GRANT 3 AND 4 YR OLDS,GRANTS,2103856384,1000083945
08.04.2024,Children and Adults,PECULIAR CARE HOMES LTD,"13,129.36",LD LTS 18-64,SUPPORTED LIVING,2103854285,1000076991
17.04.2024,Housing,VIGILANT SECURITY SERVICES UK,"13,120.00",DAVID BARKER HOSTEL,SECURITY SERVICES,5902632791,1000090073
04.04.2024,Children and Adults,NELL GWYNN NURSERY SCHOOL,"13,096.00",FREE HEALTHY SCHOOL MEALS,SCHOOLS CAPITATION,2103852030,5001000049
06.04.2024,Housing,BEACON PARTNERSHIP LLP,"13,091.00",AYLESBURY AGENCY COSTS,PROFESSIONAL FEES,5902630603,1000082300
08.04.2024,Housing,HOUSING PARTNERS LTD,"13,074.55",SOUTH AREA RUNNING COSTS,SOFTWARE,5902631204,1000090724
03.04.2024,Environment Neighbourhoods and Growth,PROJECT CENTRE LTD,"13,067.52",TRANSPORT PROJECTS,OTHER CONTRACTORS,5902630545,1000072621
09.04.2024,Children and Adults,BRUNSWICK PARK PRIMARY SCHOOL,"13,023.00",NURSERY ED GRANT 3 AND 4 YR OLDS,EARLY YEARS - 3 AND 4 YEAR OLDS,5902631383,5001000013
10.04.2024,Environment Neighbourhoods and Growth,WEBBER AND QUENTIN LTD,"13,000.00",CAPITAL PS (LEISURE),CAPITAL GRANTS,5902631818,1000077088
11.04.2024,Strategy and Communities,SOUTHWARK CITIZENS ADVICE,"13,000.00",LEGAL GRANTS,EXTERNAL AGENCIES AND BODIES,5902631961,1874379
02.04.2024,Children and Adults,KINTORE WAY CHILDRENS CENTRE,"12,996.00",NURSERY ED GRANT 2YR OLDS,EARLY YEARS - 2 YEAR OLD,2103838775,5001000047
08.04.2024,Housing,LPS CONSULTING (LONDON) LIMITED,"12,980.00",DIRECTOR OF ASSET MANAGEMENT,PROFESSIONAL FEES,5902631075,1000084208
10.04.2024,Housing,PRB ESTATES LTD,"12,964.16",PRBE,I-WORLD CONTRACTORS HOLDING ACCOUNT,2103855387,3000001691
18.04.2024,Housing,PRB ESTATES LTD,"12,964.16",PRBE,I-WORLD CONTRACTORS HOLDING ACCOUNT,2103856285,3000001691
24.04.2024,Children and Adults,GUYS & ST THOMAS NHS FOUNDATION TRUST,"12,946.09",HEALTHY WEIGHT,EXTERNAL AGENCIES AND BODIES,5902633568,1765536
09.04.2024,Children and Adults,RYE OAK PRIMARY SCHOOL,"12,928.00",NURSERY ED GRANT 3 AND 4 YR OLDS,EARLY YEARS - 3 AND 4 YEAR OLDS,5902631427,5001000059
24.04.2024,Environment Neighbourhoods and Growth,C L ROADMARKINGS LTD,"12,920.66",ENGINEERING CRAFTS,OTHER CONTRACTORS,2103859774,3000000825
04.04.2024,Environment Neighbourhoods and Growth,WALWORTH HOMES LTD,"12,916.67",CAPITAL PS (REGEN),CONSTRUCTION FEES,5902630841,1000079197
24.04.2024,Children and Adults,RYE OAK PRIMARY SCHOOL,"12,889.00",LBS RB / SEN UNIT,HIGH NEEDS - BASE FUNDING,5902633492,5001000059
04.04.2024,Children and Adults,VANGUARD SCHOOL,"12,887.48",AC & FREE - SPECIAL,STATEMENTED FEES,2103850427,1000090446
04.04.2024,Children and Adults,VANGUARD SCHOOL,"12,887.48",AC & FREE - SPECIAL,STATEMENTED FEES,2103850429,1000090446
04.04.2024,Children and Adults,VANGUARD SCHOOL,"12,887.48",AC & FREE - SPECIAL,STATEMENTED FEES,2103850431,1000090446
04.04.2024,Children and Adults,VANGUARD SCHOOL,"12,887.48",AC & FREE - SPECIAL,STATEMENTED FEES,2103850432,1000090446
12.04.2024,Children and Adults,ALLEYNS JUNIOR SCHOOL,"12,854.70",NURSERY ED GRANT 3 AND 4 YR OLDS,GRANTS,2103856300,1000020848
18.04.2024,Housing,DENHAN INTERNATIONAL LIMITED,"12,843.30",NIGHTLY TA (NSC),EXTERNAL AGENCIES AND BODIES,5902632981,1000075567
10.04.2024,Environment Neighbourhoods and Growth,THE DEXTROUS WEB LTD,"12,825.00",CAPITAL PS (LEISURE),"PLANT, MACHINERY & EQUIPMENT ACQUISITION",5902631789,1000083020
08.04.2024,Children and Adults,CASSRA LLP T/A CROHAM PLACE,"12,811.24",LD LTS 18-64,NURSING PLACEMENTS FEES,2103854202,1000082899
16.04.2024,Children and Adults,DEPTFORD GREEN SCHOOL,"12,770.00",OTHER LA MAINSTREAM,STATEMENTED FEES,2103856955,1000073657
16.04.2024,Children and Adults,HARRIS PRIMARY ACADEMY PECKHAM PARK,"12,770.00",AC & FREE - MSTREAM,STATEMENTED FEES,2103856966,1000068029
16.04.2024,Children and Adults,HARRIS PRIMARY ACADEMY PECKHAM PARK,"12,770.00",AC & FREE - MSTREAM,STATEMENTED FEES,2103856971,1000068029
24.04.2024,Children and Adults,BARTS HEALTH NHS TRUST,"12,753.45",SEXUAL HEALTH - STI,MEDICAL / HEALTH & SAFETY SERVICES,5902633440,1000055762
19.04.2024,Environment Neighbourhoods and Growth,METIS CONSULTANTS LIMITED,"12,753.17",FLOOD RISK MANAGEMENT,HIGHWAYS TERM CONTRACT,5902633044,1000086330
12.04.2024,Children and Adults,DOG KENNEL HILL PRIMARY SCHOOL,"12,714.98",NURSERY ED GRANT 3 AND 4 YR OLDS,GRANTS,2103856316,1000089861
18.04.2024,Environment Neighbourhoods and Growth,SCOT GROUP LIMITED,"12,678.07",FLEET INSURANCE WORKS,TRANSPORT INSURANCE COSTS,5902631835,1709512
16.04.2024,Children and Adults,HARRIS PRIMARY ACADEMY PECKHAM PARK,"12,661.43",AC & FREE - MSTREAM,STATEMENTED FEES,2103856972,1000068029
05.04.2024,Children and Adults,PEOPLE PLUS GROUP LTD (INDEPENDENT LIVING SERVICES),"12,619.20",LD LTS 18-64,PAYMENTS TO CLIENTS (DIRECT PAYMENTS),2103852946,1000061886
04.04.2024,Children and Adults,WANDSWORTH COUNCIL,"12,611.40",SPECIALIST CARE,PLACEMENTS - RESPITE,2103851974,1000020692
04.04.2024,Children and Adults,AMELIA'S HOUSE LIMITED,"12,600.00",DISABILITIES LAC,EXTERNAL AGENCIES AND BODIES,2103851998,1000083007
26.04.2024,Children and Adults,AMELIA'S HOUSE LIMITED,"12,600.00",DISABILITIES LAC,EXTERNAL AGENCIES AND BODIES,2103860501,1000083007
08.04.2024,Environment Neighbourhoods and Growth,MACE LTD,"12,600.00",CAPITAL PS (REGEN),CONSTRUCTION FEES  - EXTERNAL,5902630818,1000067959
12.04.2024,Children and Adults,JOYFUL STAR NURSERY,"12,560.10",NURSERY ED GRANT 3 AND 4 YR OLDS,GRANTS,2103856338,1000074638
08.04.2024,Children and Adults,LONDON RESIDENTIAL HEALTHCARE LTD,"12,500.00",PHY LTS 65+,NURSING PLACEMENTS FEES,2103853960,1000030895
15.04.2024,Governance and Assurance,KORN FERRY HAY GROUP LTD,"12,500.00",HR PAYROLL COSTS,PAYMENTS FOR PERSONNEL MANAGEMENT SERVS,5902632254,1000079084
16.04.2024,Environment Neighbourhoods and Growth,GRADCORE LIMITED,"12,500.00",YOUTH FUND EMPLOYMENT,EXTERNAL AGENCIES AND BODIES,5902632563,1000090627
11.04.2024,Strategy and Communities,SWK DAY CTR FOR ASYLUM SEEKERS,"12,478.45",VCS GRANTS,GRANTS,5902632087,1000040491
08.04.2024,Children and Adults,FERRY CARE LTD,"12,472.96",LD LTS 18-64,RESIDENTIAL CARE,2103854774,1000041775
04.04.2024,Children and Adults,KEYWORTH PRIMARY SCHOOL,"12,471.16",FREE HEALTHY SCHOOL MEALS,SCHOOLS CAPITATION,2103851822,5001000041
10.04.2024,Housing,KENT COUNTY COUNCIL - LASER,"12,466.50",HEATING ACCOUNT,GAS,5902631712,1000012926
24.04.2024,Children and Adults,BESSEMER GRANGE PRIMARY SCHOOL,"12,436.00",LBS MAINSTREAM,HIGH NEEDS - TOP UP FUNDING,5902633453,5001000009
07.04.2024,Environment Neighbourhoods and Growth,METIS CONSULTANTS LIMITED,"12,418.48",CAPITAL PS (LEISURE),CONSTRUCTION FEES - ARCHITECT,5902630739,1000086330
17.04.2024,Children and Adults,KINTORE WAY CHILDRENS CENTRE,"12,403.00",EY SENDIF,STATEMENTED FEES,2103858027,5001000047
18.04.2024,Corporate,ROBERT BROWNING PRIMARY SCHOOL,"12,401.68",EDUCATION VAT INPUTS,VAT CONTROL ACCOUNT,2103858412,5001000057
24.04.2024,Children and Adults,ABINGDON HOUSE SCHOOL,"12,397.00",NMSS/ INDEP SPECIAL,STATEMENTED FEES,2103859172,1000072800
04.04.2024,Children and Adults,WYVIL PRIMARY SCHOOL,"12,362.00",OTHER LA MAINSTREAM,STATEMENTED FEES,2103850534,1000038919
08.04.2024,Environment Neighbourhoods and Growth,CONSTELLIA PUBLIC LIMITED,"12,350.08",TREES TERM CONTRACT,TREE MAINTENANCE,5902631137,1000088137
07.04.2024,Environment Neighbourhoods and Growth,METIS CONSULTANTS LIMITED,"12,344.58",SECTION 278 & 38,OTHER CONTRACTORS,5902630640,1000086330
12.04.2024,Children and Adults,REDACTED PERSONAL DATA,"12,295.80",NURSERY ED GRANT 3 AND 4 YR OLDS,GRANTS,2103856305,1000054116
08.04.2024,Children and Adults,KISIMUL GROUP LTD,"12,271.44",LD LTS 18-64,SUPPORTED LIVING,2103838018,1000079657
08.04.2024,Children and Adults,KISIMUL GROUP LTD,"12,271.44",LD LTS 18-64,SUPPORTED LIVING,2103853965,1000079657
07.04.2024,Children and Adults,THE PUBLIC SERVICE CONSULTANTS LTD,"12,255.00",EXTERNALLY FUNDED PROJECTS,CONSULTANTS SERVICES,5902630689,1000090834
04.04.2024,Children and Adults,MEDWAY COUNCIL,"12,254.39",OTHER LA SPECIAL,STATEMENTED FEES,2103850523,1000021704
23.04.2024,Corporate,GROUP FINANCE SOLUTIONS CONSULTING,"12,250.00",ERP PROGRAMME BUDGET,PROFESSIONAL FEES,5902633347,1000090315
12.04.2024,Children and Adults,BASCULE LTD,"12,242.70",NURSERY ED GRANT 3 AND 4 YR OLDS,GRANTS,2103856359,1000037268
04.04.2024,Housing,KINDLY PROPERTIES LTD,"12,240.00",NIGHTLY TA (NSC),EXTERNAL AGENCIES AND BODIES,5902630687,1000060734
19.04.2024,Housing,DUCTCLEAN (UK) LTD,"12,210.00",DUCTCLEAN,I-WORLD CONTRACTORS HOLDING ACCOUNT,2103858587,3000001635
24.04.2024,Children and Adults,ST JOSEPHS CATHOLIC SCHOOL,"12,189.00",LBS MAINSTREAM,HIGH NEEDS - TOP UP FUNDING,5902633507,5001000076
12.04.2024,Housing,REDACTED PERSONAL DATA,"12,179.12",HOMELESS PROJECTS,GRANTS,5902632014,1000090853
08.04.2024,Children and Adults,REESON CARE HOMES LTD,"12,141.04",LD LTS 18-64,SUPPORTED LIVING,2103855131,1000084007
04.04.2024,Children and Adults,THE GROVE CHILDRENS CENTRE,"12,027.00",FREE HEALTHY SCHOOL MEALS,SCHOOLS CAPITATION,2103852031,5001000090
25.04.2024,Finance,ATKINS LIMITED,"12,020.50",CPHA  MANAGED PROPERTIES,PROFESSIONAL FEES,5902633697,1000088478
05.04.2024,Children and Adults,REDACTED PERSONAL DATA,"12,010.80",CHILDREN PHB - SEL ICB,PAYMENTS TO CLIENTS (DIRECT PAYMENTS),2103853517,1000076363
17.04.2024,Children and Adults,KIDS,"12,000.00",CENTRAL COSTS - SEN,PROFESSIONAL FEES,2103858079,1000030036
30.04.2024,Children and Adults,BROADLANDS HALL LIMITED,"12,000.00",DISABILITIES LAC,EXTERNAL AGENCIES AND BODIES,2103861580,1000084303
20.04.2024,Environment Neighbourhoods and Growth,YELLOW LINE PARKING LTD,"12,000.00",PROJECT SUPPORT,CONSULTANTS SERVICES,5902632505,1000083708
16.04.2024,Housing,CALFORD SEADEN LLP,"12,000.00",CAPITAL PS (HRA),CONSTRUCTION FEES - EMPLOYERS AGENT,5902632528,1061592
29.04.2024,Finance,CLUTTONS LLP,"12,000.00",PLANNING APPEALS AND INQUIRIES,PROFESSIONAL FEES,5902633999,1000028140
04.04.2024,Children and Adults,DULWICH WOOD CHILDRENS CENTRE,"11,989.00",FREE HEALTHY SCHOOL MEALS,SCHOOLS CAPITATION,2103852029,5001000099
09.04.2024,Children and Adults,BELLENDEN PRIMARY SCHOOL,"11,976.00",NURSERY ED GRANT 3 AND 4 YR OLDS,EARLY YEARS - 3 AND 4 YEAR OLDS,5902631378,5001000007
18.04.2024,Corporate,BESSEMER GRANGE PRIMARY SCHOOL,"11,970.02",EDUCATION VAT INPUTS,VAT CONTROL ACCOUNT,2103858359,5001000009
13.04.2024,Housing,HARROW GREEN LTD,"11,958.65",RESIDENT SERVICES BUSINESS SUPPORT,REMOVAL EXPENSES,5902631568,1000076673
17.04.2024,Environment Neighbourhoods and Growth,DEEPDALE TREES LTD,"11,925.00",CAPITAL PS (LEISURE),CONSTRUCTION FEES,5902632719,1000070328
08.04.2024,Housing,COOPER CLOSE CO-OPERATIVE LTD,"11,900.50",COOPERS CLOSE CO-OP,M&M ALLOWANCE CO-OPS,5902631155,1216346
12.04.2024,Environment Neighbourhoods and Growth,MARWOOD ELECTRICAL COMPANY LTD,"11,881.80",PUBLIC LIGHTING,MATERIALS,5902632045,1001874
29.04.2024,Governance and Assurance,KORN FERRY HAY GROUP LTD,"11,875.00",HR PAYROLL COSTS,PAYMENTS FOR PERSONNEL MANAGEMENT SERVS,5902633940,1000079084
04.04.2024,Children and Adults,CRAMPTON PRIMARY SCHOOL,"11,870.14",FREE HEALTHY SCHOOL MEALS,SCHOOLS CAPITATION,2103851811,5001000023
08.04.2024,Environment Neighbourhoods and Growth,WATER PLUS LTD,"11,845.85",CAMBERWELL LEISURE CENTRE,WATER,5902631277,1000087903
10.04.2024,Housing,CALFORD SEADEN LLP,"11,777.17",CAPITAL PS (HRA),CONSTRUCTION FEES - EMPLOYERS AGENT,5902631767,1061592
08.04.2024,Children and Adults,OCEAN COMMUNITY SERVICES LTD,"11,772.88",LD LTS 18-64,RESIDENTIAL CARE,2103854736,1000050124
08.04.2024,Children and Adults,ALWAYS INCLUSIVE LTD,"11,760.00",LD LTS 18-64,SUPPORTED LIVING,2103854074,1000088268
12.04.2024,Children and Adults,THE BOSCO CENTRE,"11,736.90",NURSERY ED GRANT 3 AND 4 YR OLDS,GRANTS,2103856306,1000046317
10.04.2024,Finance,BNP PARIBAS REAL ESTATE ADVISORY & PROPERTY MANAGEMENT,"11,735.00",OKR MASTER PLANNING,PROFESSIONAL FEES,5902631669,1000053153
08.04.2024,Children and Adults,WELLSPRING CARE HOMES LIMITED,"11,702.08",LD LTS 18-64,SUPPORTED LIVING,2103854332,1000088216
17.04.2024,Children and Adults,COUNTRY COURT CARE HOMES 2 LTD,"11,700.57",PHY LTS 65+,RESIDENTIAL CARE,5902632689,1000080172
18.04.2024,Corporate,DULWICH WOOD PRIMARY SCHOOL,"11,680.60",EDUCATION VAT INPUTS,VAT CONTROL ACCOUNT,2103858411,5001000042
05.04.2024,Housing,MJV & CO  SOLICITORS LTD,"11,666.67",DISREPAIR,PAYMENTS FOR LEGAL SERVICES,2103853714,1000086326
06.04.2024,Environment Neighbourhoods and Growth,TYCO INTEGRATED FIRE & SECURITY,"11,660.50",TOWN CENTRE CCTV,OTHER CONTRACTORS,5902630541,1000077948
28.04.2024,Environment Neighbourhoods and Growth,BOUYGUES (UK) LTD,"11,648.66",CAPITAL PS (REGEN),CONSTRUCTION MAIN CONTRACT -CERTIFICATED,2103858725,3000002179
08.04.2024,Children and Adults,CARLTON NURSING HOMES LTD,"11,647.36",LD LTS 18-64,RESIDENTIAL CARE,2103854257,1000070431
02.04.2024,Children and Adults,DULWICH WOOD CHILDRENS CENTRE,"11,628.00",NURSERY ED GRANT 3 AND 4 YR OLDS,EARLY YEARS - 3 AND 4 YEAR OLDS,2103838787,5001000099
04.04.2024,Children and Adults,VANGUARD SCHOOL,"11,622.17",AC & FREE - SPECIAL,STATEMENTED FEES,2103850428,1000090446
04.04.2024,Children and Adults,VANGUARD SCHOOL,"11,622.17",AC & FREE - SPECIAL,STATEMENTED FEES,2103850433,1000090446
08.04.2024,Children and Adults,VOYAGE CARE (MOUNTEARL),"11,622.12",LD LTS 18-64,RESIDENTIAL CARE,2103854355,1000078173
04.04.2024,Housing,HILTON INTERNATIONAL HOTELS (UK) LTD,"11,620.00",NIGHTLY TA (NSC),EXTERNAL AGENCIES AND BODIES,5902630254,1000052384
08.04.2024,Environment Neighbourhoods and Growth,WYEVALE NURSERIES LTD,"11,610.64",CAPITAL PS (LEISURE),CONSTRUCTION FEES,5902631317,1000086362
08.04.2024,Children and Adults,GARLAND LODGE LTD,"11,589.76",LD LTS 18-64,SUPPORTED LIVING,2103854143,1000084016
01.04.2024,Finance,BIG BLUE DOOR LTD,"11,550.00",CAPITAL PS (STRAT SERV),ICT ACQUISITION,5902629885,1000087674
01.04.2024,Finance,BIG BLUE DOOR LTD,"11,550.00",CAPITAL PS (STRAT SERV),ICT ACQUISITION,5902629886,1000087674
25.04.2024,Finance,VENN GROUP LTD,"11,550.00",CAPITAL PS (STRAT SERV),ICT ACQUISITION,5902633770,1000033315
18.04.2024,Children and Adults,THE KENNEDY AND ELLIOTT PARTNERSHIP,"11,514.36",CHILDREN�S RESID,RESIDENTIAL CARE,2103858235,1000089711
08.04.2024,Children and Adults,ACHIEVE TOGETHER SERVICES LIMITED,"11,507.28",LD LTS 18-64,SUPPORTED LIVING,2103854890,1000089975
17.04.2024,Environment Neighbourhoods and Growth,STONEGROVE LIMITED,"11,507.00",CAPITAL PS (REGEN),CONSTRUCTION MAIN CONTRACT,5902632627,1000048879
12.04.2024,Finance,POST OFFICE LTD,"11,502.10",COST OF LIVING FUND,EXTERNAL AGENCIES AND BODIES,5902632202,1000069858
04.04.2024,Children and Adults,WYVIL PRIMARY SCHOOL,"11,501.00",OTHER LA MAINSTREAM,STATEMENTED FEES,2103850533,1000038919
08.04.2024,Children and Adults,INSIGHT,"11,458.64",LD LTS 18-64,RESIDENTIAL CARE,2103854274,1825618
08.04.2024,Children and Adults,OPTIMA CARE (SHINE) LONDON LTD,"11,444.80",LD LTS 18-64,SUPPORTED LIVING,2103854139,1000079614
12.04.2024,Children and Adults,ARC COMMUNITY TRUSTEES,"11,430.90",NURSERY ED GRANT 3 AND 4 YR OLDS,GRANTS,2103856302,1000046206
12.04.2024,Children and Adults,VICTORY IN COMMUNITY RESOURCE CENTRE,"11,418.30",NURSERY ED GRANT 3 AND 4 YR OLDS,GRANTS,2103856393,1000058383
09.04.2024,Children and Adults,ST JAMES THE GREAT RC SCHOOL,"11,413.00",NURSERY ED GRANT 3 AND 4 YR OLDS,EARLY YEARS - 3 AND 4 YEAR OLDS,5902631437,5001000071
02.04.2024,Children and Adults,JOHN RUSKIN PRIMARY SCHOOL,"11,388.00",NURSERY ED GRANT 3 AND 4 YR OLDS,EARLY YEARS - 3 AND 4 YEAR OLDS,2103838800,5001000040
04.04.2024,Children and Adults,GALLEYWALL PRIMARY SCHOOL,"11,369.18",AC & FREE - MSTREAM,STATEMENTED FEES,2103850396,1000078128
24.04.2024,Environment Neighbourhoods and Growth,MIDSTREAM LIGHTING LTD,"11,346.78",LIGHTING INTERNAL,OTHER CONTRACTORS,2103859775,3000002257
12.04.2024,Finance,HIAM ALI LTD,"11,334.30",CORONER'S,PROFESSIONAL FEES,5902632106,1000084044
26.04.2024,Governance and Assurance,WORKING ON WELLBEING LTD,"11,330.44",OPTIMA HEALTH,MEDICAL / HEALTH & SAFETY SERVICES,5902633906,1000077251
17.04.2024,Housing,GRANITE BUILDING WARRANTIES LIMITED,"11,280.00",CAPITAL PS (HRA),LAND & BUILDINGS ACQUISITION FEES,5902632789,1000087915
12.04.2024,Children and Adults,K & O CHILDCARE LTD,"11,271.60",NURSERY ED GRANT 3 AND 4 YR OLDS,GRANTS,2103856340,1000065113
08.04.2024,Children and Adults,WELLSPRING CARE HOMES LIMITED,"11,252.00",LD LTS 18-64,SUPPORTED LIVING,2103854824,1000088216
24.04.2024,Corporate,GROUP FINANCE SOLUTIONS CONSULTING,"11,210.00",ERP PROGRAMME BUDGET,PROFESSIONAL FEES,5902633611,1000090315
30.04.2024,Children and Adults,BROADLANDS HALL LIMITED,"11,200.00",DISABILITIES LAC,RESIDENTIAL CARE,2103861581,1000084303
08.04.2024,Children and Adults,OPTIMA CARE (SHINE) LONDON LTD,"11,198.84",LD LTS 18-64,SUPPORTED LIVING,2103854571,1000079614
08.04.2024,Children and Adults,KARE HEALTHCARE LTD,"11,198.72",LD LTS 18-64,SUPPORTED LIVING,2103854334,1000089212
08.04.2024,Children and Adults,INDEPENDENCE HOMES LTD,"11,184.00",SEN LTS 18-64,RESIDENTIAL CARE,2103854492,1000058961
08.04.2024,Children and Adults,BEECHCROFT SUPPORT LIMITED,"11,168.28",LD LTS 18-64,SUPPORTED LIVING,2103854576,1000085412
24.04.2024,Environment Neighbourhoods and Growth,CASTLE WATER LTD,"11,165.58",HOMERSTALL ROAD SPORTS GROUND,WATER,5902630521,1000078867
05.04.2024,Children and Adults,REDACTED PERSONAL DATA,"11,162.76",MEM LTS 18-64,PAYMENTS TO CLIENTS (DIRECT PAYMENTS),2103853191,1000087779
09.04.2024,Children and Adults,KENT COUNTY COUNCIL - LASER,"11,122.25",CENTRAL SUPPORT,ELECTRICITY,5902631619,1000012926
04.04.2024,Children and Adults,ST JOSEPHS CATHOLIC PRIMARY SCHOOL,"11,118.87",FREE HEALTHY SCHOOL MEALS,SCHOOLS CAPITATION,2103851837,5001000078
23.04.2024,Housing,PENNINGTON CHOICES LTD,"11,118.32",PENNINGTON,I-WORLD CONTRACTORS HOLDING ACCOUNT,5902633306,1000067888
08.04.2024,Children and Adults,SALUTEM SHARED SERVICES II LIMITED,"11,113.20",LD LTS 18-64,SUPPORTED LIVING,2103854741,1000088055
10.04.2024,Housing,KENT COUNTY COUNCIL - LASER,"11,105.21",HEATING ACCOUNT,GAS,5902631725,1000012926
05.04.2024,Children and Adults,REDACTED PERSONAL DATA,"11,100.00",LD LTS 18-64,PAYMENTS TO CLIENTS (DIRECT PAYMENTS),2103853024,1000074131
08.04.2024,Children and Adults,RICHARDSON DUSTON LIMITED,"11,070.52",PHY LTS 18-64,RESIDENTIAL CARE,2103854041,1000089236
18.04.2024,Environment Neighbourhoods and Growth,SOFTCAT PLC,"11,068.42",LEISURE CENTRAL COST,COMPUTER CONSUMABLES,5902632898,1000088809
18.04.2024,Suspense,KEMICO LIMITED,"11,045.20",SUSPENSE ACCOUNT (COMPANY CODE 1000),CREDITORS -GR/IR CLEARING ACCOUNT,5902632965,1000030226
11.04.2024,Strategy and Communities,SURREY DOCKS FARM PROVIDENT SOCIETY,"11,013.40",VCS GRANTS,GRANTS,5902632083,1000000958
18.04.2024,Corporate,ST JOHNS & ST CLEMENTS CE SCHOOL,"11,006.61",EDUCATION VAT INPUTS,VAT CONTROL ACCOUNT,2103858383,5001000073
04.04.2024,Children and Adults,STEPHEN HAWKING SCHOOL,"11,001.79",OTHER LA SPECIAL,STATEMENTED FEES,2103850316,1000071455
04.04.2024,Children and Adults,STEPHEN HAWKING SCHOOL,"11,001.79",OTHER LA SPECIAL,STATEMENTED FEES,2103850317,1000071455
04.04.2024,Children and Adults,STEPHEN HAWKING SCHOOL,"11,001.79",OTHER LA SPECIAL,STATEMENTED FEES,2103850318,1000071455
08.04.2024,Finance,RISUAL LIMITED,"11,000.00",TECHNOLOGY TRANSFORMATION,AGENCY STAFF,5902631184,1000088911
19.04.2024,Housing,BROWNING EST MGMT ASSN,"10,970.64",BROWNING EMB,M&M ALLOWANCE CO-OPS,5902633014,1000059362
29.04.2024,Strategy and Communities,REDACTED PERSONAL DATA,"10,968.40",COMMUNITIES PROJECTS,PROFESSIONAL FEES,5902634012,1000091072
08.04.2024,Children and Adults,LEONARD CHESHIRE DISABILITY,"10,960.32",PHY LTS 18-64,RESIDENTIAL CARE,2103786755,1000052504
08.04.2024,Children and Adults,LEONARD CHESHIRE DISABILITY,"10,960.32",PHY LTS 18-64,RESIDENTIAL CARE,2103800052,1000052504
08.04.2024,Children and Adults,LEONARD CHESHIRE DISABILITY,"10,960.32",PHY LTS 18-64,RESIDENTIAL CARE,2103808751,1000052504
08.04.2024,Children and Adults,LEONARD CHESHIRE DISABILITY,"10,960.32",PHY LTS 18-64,RESIDENTIAL CARE,2103822904,1000052504
08.04.2024,Children and Adults,LEONARD CHESHIRE DISABILITY,"10,960.32",PHY LTS 18-64,RESIDENTIAL CARE,2103838093,1000052504
08.04.2024,Children and Adults,LEONARD CHESHIRE DISABILITY,"10,960.32",PHY LTS 18-64,RESIDENTIAL CARE,2103854034,1000052504
05.04.2024,Children and Adults,ACCESS MOBILITY TRANSPORT LTD,"10,958.40",SCH TRANS � TRAVEL,CAB FARES,5902631050,1000074637
17.04.2024,Housing,SAFEGUARDS SECURITY SERVICES LTD,"10,944.00",CAPITAL PS (HRA),CONSTRUCTION SITE COSTS,5902632600,1000087544
02.04.2024,Children and Adults,ST JAMES CE PRIMARY SCHOOL,"10,939.00",NURSERY ED GRANT 3 AND 4 YR OLDS,EARLY YEARS - 3 AND 4 YEAR OLDS,2103838819,5001000070
12.04.2024,Children and Adults,LITTLE ANGELS DAY NURSERY & CHILDCARE SERVICES LTD,"10,936.50",NURSERY ED GRANT 3 AND 4 YR OLDS,GRANTS,2103856345,1000058464
12.04.2024,Housing,ANISTEN HOMES,"10,932.10",PSL PLACEMENTS,EXTERNAL AGENCIES AND BODIES,5902631079,1000084438
10.04.2024,Environment Neighbourhoods and Growth,THE DEXTROUS WEB LTD,"10,925.00",CAPITAL PS (LEISURE),"PLANT, MACHINERY & EQUIPMENT ACQUISITION",5902631771,1000083020
18.04.2024,Housing,THAMES WATER,"10,865.66",NORTHCOTT HOUSE,WATER,5902632988,3000000995
29.04.2024,Housing,THAMES WATER UTILITIES LTD,"10,865.66",NORTHCOTT HOUSE,WATER,5902633970,1630755
05.04.2024,Children and Adults,PENDERELS TRUST LTD,"10,832.64",PHB - SEL ICB,RECOVERABLE COSTS INCL. HEALTH,2103852769,1000075856
12.04.2024,Finance,HIAM ALI LTD,"10,829.00",CORONER'S,PROFESSIONAL FEES,5902632104,1000084044
24.04.2024,Children and Adults,KEYWORTH PRIMARY SCHOOL,"10,809.00",LBS MAINSTREAM,HIGH NEEDS - TOP UP FUNDING,5902633475,5001000041
17.04.2024,Environment Neighbourhoods and Growth,TYCO INTEGRATED FIRE & SECURITY,"10,797.80",TEAMS 1 TO 12,OP LEASE/HIRE CHARGES:PLANT/EQUIP/FURNIT,5902632702,1000077948
18.04.2024,Corporate,DULWICH VILLAGE CE INFANTS SCHOOL,"10,789.04",EDUCATION VAT INPUTS,VAT CONTROL ACCOUNT,2103858351,5001000027
24.04.2024,Children and Adults,PETER HILLS CE SCHOOL,"10,784.00",LBS RB / SEN UNIT,HIGH NEEDS - TOP UP FUNDING,5902633486,5001000053
24.04.2024,Children and Adults,ROBERT BROWNING PRIMARY SCHOOL,"10,784.00",LBS RB / SEN UNIT,HIGH NEEDS - TOP UP FUNDING,5902633490,5001000057
29.04.2024,Environment Neighbourhoods and Growth,HELIARC TECHNOLOGY LTD,"10,780.00",GRANGE DOORS,MATERIALS,5902634036,1000068644
18.04.2024,Corporate,IVYDALE PRIMARY SCHOOL,"10,737.75",EDUCATION VAT INPUTS,VAT CONTROL ACCOUNT,2103858369,5001000038
08.04.2024,Children and Adults,FIRST CARE LODGE,"10,734.88",LD LTS 18-64,SUPPORTED LIVING,2103854582,1000084196
12.04.2024,Finance,LAND USE CONSULTANTS LTD,"10,719.00",MAJOR APPLICATIONS,PROFESSIONAL FEES,5902632027,11132526
05.04.2024,Children and Adults,PEOPLE PLUS GROUP LTD (INDEPENDENT LIVING SERVICES),"10,707.20",LD LTS 18-64,PAYMENTS TO CLIENTS (DIRECT PAYMENTS),2103852630,1000061886
12.04.2024,Children and Adults,LITTLE WINNERS DAY NURSERY LTD,"10,698.15",NURSERY ED GRANT 3 AND 4 YR OLDS,GRANTS,2103856353,1000041814
04.04.2024,Children and Adults,THE BECKMEAD TRUST,"10,698.06",OTHER LA SPECIAL,STATEMENTED FEES,2103850448,1000082684
08.04.2024,Children and Adults,KARE HEALTHCARE LTD,"10,674.56",LD LTS 18-64,SUPPORTED LIVING,2103854846,1000089212
04.04.2024,Children and Adults,ST JOHNS RC PRIMARY SCHOOL,"10,668.10",FREE HEALTHY SCHOOL MEALS,SCHOOLS CAPITATION,2103851835,5001000075
25.04.2024,Housing,VIGILANT SECURITY SERVICES UK,"10,656.00",MANOR PLACE HOSTEL,SECURITY SERVICES,5902633747,1000090073
12.04.2024,Children and Adults,MARYAMS NURSERY LTD,"10,619.10",NURSERY ED GRANT 3 AND 4 YR OLDS,GRANTS,2103856357,1000088453
12.04.2024,Children and Adults,SUNSHINE FRUITS NURSERY LTD,"10,619.10",NURSERY ED GRANT 3 AND 4 YR OLDS,GRANTS,2103856385,1000081059
08.04.2024,Children and Adults,LONDON CYRENIANS HOUSING LTD,"10,608.00",LD LTS 18-64,SUPPORTED LIVING,2103854473,1000078600
18.04.2024,Corporate,ST JAMES CE PRIMARY SCHOOL,"10,559.74",EDUCATION VAT INPUTS,VAT CONTROL ACCOUNT,2103858374,5001000070
08.04.2024,Children and Adults,OPTIMA CARE (SHINE) LONDON LTD,"10,535.88",LD LTS 18-64,SUPPORTED LIVING,2103854096,1000079614
29.04.2024,Governance and Assurance,CIVICA UK LTD,"10,521.24",CONSTITUTIONAL TEAM,SOFTWARE,5902634031,1730625
04.04.2024,Children and Adults,ST JAMES CE PRIMARY SCHOOL,"10,517.85",FREE HEALTHY SCHOOL MEALS,SCHOOLS CAPITATION,2103851833,5001000070
11.04.2024,Housing,CAPITAL SERVICES LONDON LTD,"10,510.00",COMMERCIAL (QS),PROFESSIONAL FEES,5902631834,1000082548
17.04.2024,Children and Adults,KIDS,"10,500.00",CENTRAL COSTS - SEN,PROFESSIONAL FEES,2103858080,1000030036
23.04.2024,Housing,TANFIELD CHAMBERS,"10,500.00",HOME OWNERSHIP,LEGAL FEES & COURT COSTS,5902633288,1000078320
16.04.2024,Children and Adults,URBAN MISSION SCHOOLS AND COMMUNITY,"10,475.30",INDEP MAINSTREAM,STATEMENTED FEES,2103857014,1000086898
12.04.2024,Children and Adults,DULWICH VILLAGE PRE-SCHOOL,"10,469.01",NURSERY ED GRANT 3 AND 4 YR OLDS,GRANTS,2103856319,11171932
08.04.2024,Children and Adults,ROYAL HOSPITAL FOR NEURODISABILITY,"10,463.12",PHY LTS 65+,NURSING PLACEMENTS FEES,2103854149,1010365
08.04.2024,Children and Adults,SAFFRONLAND HOMES (MUNDANIA),"10,460.00",LD LTS 18-64,RESIDENTIAL CARE,2103853958,1000072153
30.04.2024,Finance,VENN GROUP LTD,"10,450.00",CAPITAL PS (STRAT SERV),ICT ACQUISITION,5902634373,1000033315
10.04.2024,Housing,STAR PEOPLE LTD,"10,449.48",PSL PLACEMENTS,EXTERNAL AGENCIES AND BODIES,5902630971,1000088790
02.04.2024,Children and Adults,NELL GWYNN NURSERY SCHOOL,"10,442.40",NURSERY ED GRANT 2YR OLDS,EARLY YEARS - 2 YEAR OLD,2103838778,5001000049
17.04.2024,Children and Adults,REDACTED PERSONAL DATA,"10,435.62",SPECIAL GUARDIANSHIP,EXTERNAL AGENCIES AND BODIES,2103857178,1000079548
17.04.2024,Environment Neighbourhoods and Growth,F M CONWAY LTD,"10,433.82",CAPITAL PS (LEISURE),CONSTRUCTION,5902632602,1000002412
08.04.2024,Children and Adults,BOUGHTON GREEN ROAD LIMITED,"10,427.64",PHY LTS 18-64,NURSING PLACEMENTS FEES,2103854889,1000089115
18.04.2024,Corporate,ENGLISH MARTYRS RC PRIMARY SCHOOL,"10,425.08",EDUCATION VAT INPUTS,VAT CONTROL ACCOUNT,2103858345,5001000030
16.04.2024,Housing,RYANS SOLICITORS LTD,"10,416.67",DISREPAIR,PAYMENTS FOR LEGAL SERVICES,2103856777,1000090950
08.04.2024,Children and Adults,LOVING CARE LTD,"10,405.00",LD LTS 18-64,RESIDENTIAL CARE,2103854796,1000082873
08.04.2024,Children and Adults,INSIGHT,"10,368.64",LD LTS 18-64,RESIDENTIAL CARE,2103854255,1825618
08.04.2024,Children and Adults,PLUS SERVICES,"10,327.66",LD LTS 18-64,SUPPORTED LIVING,2103854093,1000021241
22.04.2024,Housing,SECURENT LTD,"10,323.00",NIGHTLY TA (NSC),EXTERNAL AGENCIES AND BODIES,5902633139,1000079400
19.04.2024,Children and Adults,WILLOW ESTATE AGENTS (LONDON) LTD,"10,320.00",TEAM C,OTHER PAYMENTS FOR CLIENTS,2103858496,1000060607
15.04.2024,Environment Neighbourhoods and Growth,ZFA ACCOMMODATION LTD,"10,314.00",NO RECOURSE TO PUBLIC FUNDS,ACCOMMODATION CHARGES,5902632224,1000082620
08.04.2024,Children and Adults,WELLSPRING CARE HOMES LIMITED,"10,296.00",LD LTS 18-64,SUPPORTED LIVING,2103853834,1000088216
18.04.2024,Corporate,GRANGE PRIMARY SCHOOL,"10,271.53",EDUCATION VAT INPUTS,VAT CONTROL ACCOUNT,2103858406,5001000029
15.04.2024,Children and Adults,REDACTED PERSONAL DATA,"10,268.15",DISABILITIES LAC,PAYMENTS TO CARERS,2103856600,1000053334
05.04.2024,Housing,ANISTEN HOMES,"10,226.80",PSL PLACEMENTS,EXTERNAL AGENCIES AND BODIES,5902631080,1000084438
22.04.2024,Governance and Assurance,IRON MOUNTAIN (UK) PLC,"10,221.43",REPAIR AND MAINTENANCE SERVICES,INFORMATION MANAGEMENT,5902633243,1000078591
09.04.2024,Children and Adults,PHOENIX PRIMARY SCHOOL,"10,217.00",NURSERY ED GRANT 3 AND 4 YR OLDS,EARLY YEARS - 3 AND 4 YEAR OLDS,5902631402,5001000032
05.04.2024,Environment Neighbourhoods and Growth,JOYRIDERS BRITAIN C.I.C,"10,200.00",STREETS FOR PEOPLE - CYCLING,MISCELLANEOUS RECHARGES,5902630184,1000089887
28.04.2024,Children and Adults,AON SOLUTIONS UK LTD,"10,200.00",DIRECTOR OF EDUCATION,PROFESSIONAL FEES,5902633708,1000000036
12.04.2024,Children and Adults,HATCHING DRAGONS SOUTHWARK LTD,"10,193.40",NURSERY ED GRANT 3 AND 4 YR OLDS,GRANTS,2103856335,1000087180
07.04.2024,Environment Neighbourhoods and Growth,F M CONWAY LTD,"10,173.96",HIGHWAY MAINTENANCE OVERHEADS,HIGHWAYS TERM CONTRACT,2103852180,4001384
15.04.2024,Environment Neighbourhoods and Growth,NATIONWIDE ACCOMMODATION,"10,168.00",UKRAINIAN REFUGEES,ACCOMMODATION CHARGES,5902632236,1000076112
08.04.2024,Children and Adults,ACHIEVE TOGETHER SERVICES LIMITED,"10,142.40",LD LTS 18-64,RESIDENTIAL CARE,2103854164,1000089975
08.04.2024,Children and Adults,VOYAGE LTD (EVESLEIGH KENT),"10,142.24",LD LTS 18-64,RESIDENTIAL CARE,2103854032,1000041320
17.04.2024,Children and Adults,HUNTERS CONTRACTS LTD,"10,125.07",SOUTHWARK RESOURCE CENTRE,FURNITURE PURCHASE & REPAIR,5902632670,1000065904
08.04.2024,Children and Adults,VALUE IN CARE LTD,"10,120.72",LD LTS 18-64,RESIDENTIAL CARE,2103854383,1000041975
09.04.2024,Environment Neighbourhoods and Growth,J & M OASIS LTD,"10,073.80",NO RECOURSE TO PUBLIC FUNDS,ACCOMMODATION CHARGES,5902631500,1000072169
24.04.2024,Children and Adults,OLIVER GOLDSMITH PRIMARY SCHOOL,"10,069.00",LBS MAINSTREAM,HIGH NEEDS - TOP UP FUNDING,5902633484,5001000051
12.04.2024,Children and Adults,KINGS COLLEGE NHS FOUNDATION TRUST,"10,060.20",NURSERY ED GRANT 3 AND 4 YR OLDS,GRANTS,2103856341,11255665
08.04.2024,Children and Adults,CARETECH COMMUNITY SERVICES LTD,"10,034.64",LD LTS 18-64,RESIDENTIAL CARE,2103853976,1000066698
24.04.2024,Housing,DURKAN LTD,"10,027.75",CAPITAL PS (HRA),CONSTRUCTION MAIN CONTRACT -CERTIFICATED,2103859772,3000000960
04.04.2024,Environment Neighbourhoods and Growth,WATERMAN INFRASTRUCTURE & ENVIRONMENT LTD,"10,025.93",STRUCTURES RECOVERABLE WORKS,HIGHWAYS TERM CONTRACT,5902630670,1000060529
09.04.2024,Finance,GRANT THORNTON UK LLP,"10,000.00",EXTERNAL AUDIT NON-SCALE,PROFESSIONAL FEES,5902631587,1000058344
22.04.2024,Children and Adults,ALLPAY LTD (ADULTS - INSTANT ISSUE,"10,000.00",DIR OF ASC,MISCELLANEOUS RECHARGES,5902632617,1000079884
21.04.2024,Finance,HITACHI SOLUTIONS EUROPE LIMITED,"10,000.00",CAPITAL PS (STRAT SERV),ICT ACQUISITION,5902632684,1000084180
29.04.2024,Environment Neighbourhoods and Growth,CMA PLANNING LTD,"10,000.00",CAPITAL PS (REGEN),CONSTRUCTION FEES  - EXTERNAL,5902634023,1000073955
01.04.2024,Environment Neighbourhoods and Growth,HIGHTECH WATER SERVICES LIMITED,"9,977.36",PECKHAM PULSE LEISURE CENTRE,BUILDING R&M,5902629957,1000089824
11.04.2024,Environment Neighbourhoods and Growth,DJ & SONS BUILDERS LTD,"9,950.00",DULWICH LEISURE CENTRE,BUILDING R&M,2103855371,3000002178
08.04.2024,Children and Adults,OPTIMA CARE (SHINE) LONDON LTD,"9,946.12",LD LTS 18-64,SUPPORTED LIVING,2103854837,1000079614
08.04.2024,Children and Adults,OPTIMA CARE (SHINE) LONDON LTD,"9,946.12",LD LTS 18-64,SUPPORTED LIVING,2103854838,1000079614
18.04.2024,Corporate,BELLENDEN PRIMARY SCHOOL,"9,941.66",EDUCATION VAT INPUTS,VAT CONTROL ACCOUNT,2103858385,5001000007
09.04.2024,Environment Neighbourhoods and Growth,FABRIKAT (NOTTINGHAM) LTD,"9,915.44",PUBLIC LIGHTING,MATERIALS,5902630985,1036223
08.04.2024,Children and Adults,OZUMBA TRAINING AND CONSULTANCY SERVICES,"9,914.72",LD LTS 18-64,SUPPORTED LIVING,2103853886,1000090089
08.04.2024,Children and Adults,BEECHCROFT SUPPORT LIMITED,"9,909.96",LD LTS 18-64,SUPPORTED LIVING,2103854577,1000085412
24.04.2024,Children and Adults,DULWICH WOOD PRIMARY SCHOOL,"9,893.00",LBS MAINSTREAM,HIGH NEEDS - TOP UP FUNDING,5902633476,5001000042
08.04.2024,Children and Adults,LONDON CYRENIANS HOUSING LTD,"9,876.16",LD LTS 18-64,SUPPORTED LIVING,2103854094,1000078600
04.04.2024,Children and Adults,LOVE ABA LTD,"9,868.40",AP & HOSPITAL SCHLS,STATEMENTED FEES,2103850308,1000079474
22.04.2024,Governance and Assurance,IRON MOUNTAIN (UK) PLC,"9,846.46",REPAIR AND MAINTENANCE SERVICES,INFORMATION MANAGEMENT,5902633245,1000078591
09.04.2024,Environment Neighbourhoods and Growth,SOUTHSIDE PARTNERSHIP LTD,"9,835.35",NO RECOURSE TO PUBLIC FUNDS,ACCOMMODATION CHARGES,5902631526,1716624
16.04.2024,Environment Neighbourhoods and Growth,PRIDE DEVELOPMENTS,"9,832.25",CAPITAL PS (REGEN),CONSTRUCTION MAIN CONTRACT,2103856768,3000002126
08.04.2024,Children and Adults,CHD LIVING LTD,"9,800.00",PHY LTS 18-64,RESIDENTIAL CARE,2103853970,1000088373
02.04.2024,Children and Adults,THE GROVE CHILDRENS CENTRE,"9,786.90",NURSERY ED GRANT 2YR OLDS,EARLY YEARS - 2 YEAR OLD,2103838779,5001000090
08.04.2024,Children and Adults,CASSRA LLP T/A CROHAM PLACE,"9,780.00",PHY LTS 18-64,NURSING PLACEMENTS FEES,2103853983,1000082899
12.04.2024,Children and Adults,PURPLE JAY HERNE HILL LTD,"9,754.20",NURSERY ED GRANT 3 AND 4 YR OLDS,GRANTS,2103856367,1000090364
12.04.2024,Children and Adults,UNDER THE WILLOW NURSERY,"9,754.20",NURSERY ED GRANT 3 AND 4 YR OLDS,GRANTS,2103856392,1000071830
08.04.2024,Children and Adults,HIGH VIEW CARE SERVICES LTD,"9,745.92",SUB LTS 18-64,RESIDENTIAL CARE,2103854414,1000065920
30.04.2024,Environment Neighbourhoods and Growth,F M CONWAY LTD,"9,742.31",CAPITAL PS (LEISURE),CONSTRUCTION,2103861623,4001384
10.04.2024,Environment Neighbourhoods and Growth,FAITHFUL & GOULD,"9,741.00",CAPITAL PS (REGEN),CONSTRUCTION MAIN CONTRACT,5902631699,1000061390
08.04.2024,Children and Adults,FIRST CARE LODGE,"9,730.24",LD LTS 18-64,SUPPORTED LIVING,2103854097,1000084196
18.04.2024,Corporate,KEYWORTH PRIMARY SCHOOL,"9,728.50",EDUCATION VAT INPUTS,VAT CONTROL ACCOUNT,2103858357,5001000041
10.04.2024,Children and Adults,STAFFORDSHIRE COUNTY COUNCIL,"9,702.00",SCH TRANS � TRAVEL,M&M ALLOWANCE CO-OPS,5902631664,1000072531
12.04.2024,Children and Adults,BUTTERFLY LANE NURSERY LTD,"9,701.10",NURSERY ED GRANT 3 AND 4 YR OLDS,GRANTS,2103856309,1000080549
09.04.2024,Children and Adults,ENGLISH MARTYRS RC PRIMARY SCHOOL,"9,697.00",NURSERY ED GRANT 3 AND 4 YR OLDS,EARLY YEARS - 3 AND 4 YEAR OLDS,5902631400,5001000030
09.04.2024,Children and Adults,GRANGE PRIMARY SCHOOL,"9,675.00",NURSERY ED GRANT 3 AND 4 YR OLDS,EARLY YEARS - 3 AND 4 YEAR OLDS,5902631398,5001000029
08.04.2024,Children and Adults,ASD UNIQUE SERVICES LTD,"9,665.80",LD LTS 18-64,RESIDENTIAL CARE,2103854090,1000038819
26.04.2024,Housing,PRB ESTATES LTD,"9,661.07",GARAGE REPAIRS,BUILDING R&M,2103860554,3000001691
25.04.2024,Housing,PELLINGS LLP,"9,657.76",CAPITAL PS (HRA),CONSTRUCTION FEES - EMPLOYERS AGENT,5902632847,1009262
26.04.2024,Housing,NBS ENTERPRISES LTD,"9,637.00",DESIGN & DELIVERY,SUBSCRIPTIONS,5902633895,1425754
16.04.2024,Children and Adults,LONDON SOUTH EAST ACADEMIES TRUST,"9,625.00",AC & FREE - MSTREAM,STATEMENTED FEES,2103856977,1000088592
16.04.2024,Children and Adults,LONDON SOUTH EAST ACADEMIES TRUST,"9,625.00",AC & FREE - MSTREAM,STATEMENTED FEES,2103856978,1000088592
08.04.2024,Children and Adults,BRANDON TRUST,"9,620.36",LD LTS 18-64,SUPPORTED LIVING,2103854223,1000042417
09.04.2024,Children and Adults,PILGRIM'S WAY PRIMARY SCHOOL,"9,596.00",NURSERY ED GRANT 3 AND 4 YR OLDS,EARLY YEARS - 3 AND 4 YEAR OLDS,5902631423,5001000054
12.04.2024,Finance,NEC SOFTWARE SOLUTIONS UK LTD,"9,579.16",ADMINISTRATIVE SUPPORT,SOFTWARE,5902632183,1000087043
10.04.2024,Environment Neighbourhoods and Growth,WEBBER AND QUENTIN LTD,"9,575.00",CAPITAL PS (LEISURE),CAPITAL GRANTS,5902631807,1000077088
08.04.2024,Children and Adults,CARETECH COMMUNITY SERVICES LTD,"9,553.40",LD LTS 18-64,RESIDENTIAL CARE,2103854790,1000066698
23.04.2024,Children and Adults,HM PRISON & PROBATION SERVICE,"9,512.00",REMAND - YDA YOI,RESIDENTIAL CARE,2103858996,1000083827
23.04.2024,Children and Adults,HM PRISON & PROBATION SERVICE,"9,512.00",REMAND - YDA YOI,RESIDENTIAL CARE,2103858997,1000083827
23.04.2024,Children and Adults,HM PRISON & PROBATION SERVICE,"9,512.00",REMAND - YDA STC & SCH,RESIDENTIAL CARE,5902633265,1000083827
02.04.2024,Children and Adults,SOUTHWARK PARK PRIMARY SCHOOL,"9,510.00",NURSERY ED GRANT 3 AND 4 YR OLDS,EARLY YEARS - 3 AND 4 YEAR OLDS,2103838806,5001000062
12.04.2024,Children and Adults,GERMAN KINDERGARTEN LTD,"9,501.30",NURSERY ED GRANT 3 AND 4 YR OLDS,GRANTS,2103856327,1000058090
12.04.2024,Children and Adults,HALFMOON MONTESSORI NURSERY,"9,501.30",NURSERY ED GRANT 3 AND 4 YR OLDS,GRANTS,2103856333,11219161
05.04.2024,Finance,1SPATIAL GROUP LTD,"9,500.00",APPLICATIONS,SUBSCRIPTIONS,5902630963,1000082913
08.04.2024,Environment Neighbourhoods and Growth,GEP ENVIRONMENTAL LIMITED,"9,500.00",CAPITAL PS (REGEN),CONSTRUCTION MAIN CONTRACT,5902631270,1000086143
03.04.2024,Environment Neighbourhoods and Growth,METIS CONSULTANTS LIMITED,"9,495.83",SECTION 278 & 38,OTHER CONTRACTORS,5902630622,1000086330
08.04.2024,Children and Adults,RAINTREE CARE LTD,"9,480.00",LD LTS 18-64 AAD,SUPPORTED LIVING,2103854641,1000087495
24.04.2024,Children and Adults,ST JOHNS & ST CLEMENTS CE SCHOOL,"9,456.00",LBS RB / SEN UNIT,HIGH NEEDS - TOP UP FUNDING,5902633504,5001000073
03.04.2024,Environment Neighbourhoods and Growth,KEEP BRITAIN TIDY,"9,450.00",PARKS SERVICES DEVELOPMENT,SUBSCRIPTIONS,5902630522,1398794
16.04.2024,Environment Neighbourhoods and Growth,MACE LTD,"9,450.00",CAPITAL PS (REGEN),CONSTRUCTION FEES  - EXTERNAL,5902632564,1000067959
18.04.2024,Corporate,ILDERTON PRIMARY SCHOOL,"9,436.03",EDUCATION VAT INPUTS,VAT CONTROL ACCOUNT,2103858400,5001000037
08.04.2024,Children and Adults,CHOICE SUPPORT,"9,434.40",LD LTS 18-64,SUPPORTED LIVING,2103854341,1104183
08.04.2024,Children and Adults,ALWAYS INCLUSIVE LTD,"9,422.40",LD LTS 18-64,SUPPORTED LIVING,2103854058,1000088268
08.04.2024,Environment Neighbourhoods and Growth,CONSTELLIA PUBLIC LIMITED,"9,417.08",TREES TERM CONTRACT,TREE MAINTENANCE,5902631176,1000088137
12.04.2024,Children and Adults,BASCULE LTD,"9,381.60",NURSERY ED GRANT 3 AND 4 YR OLDS,GRANTS,2103856360,1000037268
10.04.2024,Strategy and Communities,ON PLACE LTD,"9,375.00","POLICY, PARTNERSHIP & PERFORMANCE",CONSULTANTS SERVICES,5902631824,1000090914
12.04.2024,Finance,BIDVEST NOONAN (UK) LTD,"9,362.82",TOWER WORKSHOPS,SECURITY SERVICES,5902632017,1000087102
04.04.2024,Housing,HSB ENGINEERING INSURANCE SERVICES,"9,355.74",LIFTS,LIFTS,5902630883,1000089047
04.04.2024,Children and Adults,SHOOTERS HILL CAMPUS,"9,338.30",AC & FREE - MSTREAM,STATEMENTED FEES,2103850356,1000074183
04.04.2024,Children and Adults,SHOOTERS HILL CAMPUS,"9,338.30",AC & FREE - MSTREAM,STATEMENTED FEES,2103850359,1000074183
24.04.2024,Children and Adults,BRUNSWICK PARK PRIMARY SCHOOL,"9,333.00",LBS RB / SEN UNIT,HIGH NEEDS - BASE FUNDING,5902633456,5001000013
24.04.2024,Children and Adults,SNOWSFIELDS PRIMARY SCHOOL,"9,333.00",LBS RB / SEN UNIT,HIGH NEEDS - BASE FUNDING,5902633495,5001000061
04.04.2024,Children and Adults,ST JAMES THE GREAT RC SCHOOL,"9,315.81",FREE HEALTHY SCHOOL MEALS,SCHOOLS CAPITATION,2103851834,5001000071
30.04.2024,Housing,LONDON HOUNSLOW LTD,"9,300.00",NIGHTLY TA (NSC),EXTERNAL AGENCIES AND BODIES,5902634434,1000089873
24.04.2024,Environment Neighbourhoods and Growth,CROMWELL POLYTHENE LTD,"9,296.49",STREETS (SOUTH),MATERIALS,5902633527,1000021159
10.04.2024,Corporate,IMPERIAL TREASURY SERVICES LTD,"9,287.67",EXTERNAL INTEREST,DEBT MANAGEMENT EXPENSES,5902631096,1000083103
08.04.2024,Children and Adults,GREEN CARE AND SUPPORT LIMITED,"9,276.80",LD LTS 18-64,SUPPORTED LIVING,2103854581,1000087661
08.04.2024,Children and Adults,FIRST CARE LODGE,"9,256.00",LD LTS 18-64,SUPPORTED LIVING,2103854168,1000084196
02.04.2024,Children and Adults,MICHAEL FARADAY PRIMARY SCHOOL,"9,253.00",NURSERY ED GRANT 3 AND 4 YR OLDS,EARLY YEARS - 3 AND 4 YEAR OLDS,2103838802,5001000048
10.04.2024,Housing,KENT COUNTY COUNCIL - LASER,"9,252.78",HEATING ACCOUNT,GAS,5902631731,1000012926
04.04.2024,Children and Adults,DURHAM UNIVERSITY,"9,250.00",SCHOLARSHIP SCHEME,EXTERNAL AGENCIES AND BODIES,5902630847,1000048316
11.04.2024,Children and Adults,LONDON SOUTH BANK UNIVERSITY,"9,250.00",SCHOLARSHIP SCHEME,EXTERNAL AGENCIES AND BODIES,5902631994,1000051012
30.04.2024,Children and Adults,UNIVERSITY OF MANCHESTER,"9,250.00",SCHOLARSHIP SCHEME,EXTERNAL AGENCIES AND BODIES,5902634236,1000067583
10.04.2024,Housing,KENT COUNTY COUNCIL - LASER,"9,248.46",HEATING ACCOUNT,GAS,5902631697,1000012926
22.04.2024,Housing,QUINARY LTD,"9,238.00",NIGHTLY TA (NSC),EXTERNAL AGENCIES AND BODIES,5902633187,1000029106
08.04.2024,Children and Adults,CHOICE CARE GROUP,"9,200.08",LD LTS 18-64,RESIDENTIAL CARE,2103854291,1572506
11.04.2024,Environment Neighbourhoods and Growth,DJ & SONS BUILDERS LTD,"9,200.00",DULWICH LEISURE CENTRE,BUILDING R&M,2103856109,3000002178
08.04.2024,Children and Adults,LONDON CYRENIANS HOUSING LTD,"9,196.40",LD LTS 18-64,SUPPORTED LIVING,2103854472,1000078600
08.04.2024,Children and Adults,CHOICE CARE GROUP,"9,181.28",LD LTS 18-64,RESIDENTIAL CARE,2103854633,1572506
15.04.2024,Finance,SAPPHIRE CONSULTANCY LIMITED,"9,150.00",SMART DIGITAL TRANSFORMATION,OTHER CONTRACTORS,5902632255,1000089101
05.04.2024,Housing,LODGISTICS ESTATES,"9,143.40",PSL PLACEMENTS,EXTERNAL AGENCIES AND BODIES,5902630962,1000080324
05.04.2024,Children and Adults,REDACTED PERSONAL DATA,"9,142.28",LD LTS 18-64 AAD,PAYMENTS TO CLIENTS (DIRECT PAYMENTS),2103852755,1000080806
30.04.2024,Housing,GOLDSTONE ESTATES LTD,"9,131.90",NIGHTLY TA (NSC),EXTERNAL AGENCIES AND BODIES,5902634154,1000076548
08.04.2024,Children and Adults,LEONARD CHESHIRE (CHIPSTEAD LAKE),"9,126.12",PHY LTS 18-64,RESIDENTIAL CARE,2103854772,1000049764
27.04.2024,Environment Neighbourhoods and Growth,KNOX BHAVAN ARCHITECTS LLP,"9,125.89",CAPITAL PS (REGEN),CONSTRUCTION FEES - ARCHITECT,5902633159,1000088675
09.04.2024,Children and Adults,CRAWFORD PRIMARY SCHOOL,"9,104.00",NURSERY ED GRANT 3 AND 4 YR OLDS,EARLY YEARS - 3 AND 4 YEAR OLDS,5902631393,5001000024
08.04.2024,Children and Adults,THE AVENUES TRUST,"9,091.48",LD LTS 18-64,RESIDENTIAL CARE,2103854021,1981708
15.04.2024,Housing,C&C BUILDERS LTD,"9,080.62",CAPITAL PS (HOUSING GF),CAPITAL GRANTS,2103856572,3000001986
08.04.2024,Children and Adults,CHOICE SUPPORT,"9,079.36",LD LTS 65+,SUPPORTED LIVING,2103854836,1104183
05.04.2024,Children and Adults,REDACTED PERSONAL DATA,"9,079.20",PHB - SEL ICB,RECOVERABLE COSTS INCL. HEALTH,2103852820,1000044274
04.04.2024,DSO,EXACTLY TECH LTD,"9,075.00",REORGANISATION COSTS,CONSULTANTS SERVICES,5902630778,1000083655
12.04.2024,Children and Adults,FOUNTAIN CHILDRENS CENTRE LIMITED,"9,074.55",NURSERY ED GRANT 3 AND 4 YR OLDS,GRANTS,2103856325,1000042265
15.04.2024,Housing,STABILIS ASSOCIATES LTD,"9,072.00",REPAIRS OPERATIONS,PROFESSIONAL FEES,5902632244,1000082512
18.04.2024,Housing,LONDON HOUNSLOW LTD,"9,040.00",NIGHTLY TA (NSC),EXTERNAL AGENCIES AND BODIES,5902632812,1000089873
10.04.2024,Housing,KENT COUNTY COUNCIL - LASER,"9,026.24",HEATING ACCOUNT,GAS,5902631713,1000012926
04.04.2024,Environment Neighbourhoods and Growth,DIRECT SERVICES SOLUTIONS LTD,"9,010.00",PUBLIC LIGHTING,OTHER CONTRACTORS,2103851793,3000002277
17.04.2024,Environment Neighbourhoods and Growth,DIAMOND PROPERTY MANAGEMENT LTD,"9,009.00",NO RECOURSE TO PUBLIC FUNDS,ACCOMMODATION CHARGES,5902632797,1000088789
09.04.2024,Children and Adults,OLIVER GOLDSMITH PRIMARY SCHOOL,"9,008.00",NURSERY ED GRANT 3 AND 4 YR OLDS,EARLY YEARS - 3 AND 4 YEAR OLDS,5902631420,5001000051
12.04.2024,Children and Adults,ELEVEN D'S LTD,"9,000.00",SEMI-IND LAC 16-17,EXTERNAL AGENCIES AND BODIES,2103856439,1000089531
30.04.2024,Environment Neighbourhoods and Growth,REDACTED PERSONAL DATA,"9,000.00",FOOD SAFETY,LEGAL FEES & COURT COSTS,2103861732,1000068997
04.04.2024,Housing,ALEXANDER MILLS CONSULTING LTD,"9,000.00",BUILDING SAFETY PROGRAMME,CONSULTANTS SERVICES,5902630903,1000088721
08.04.2024,Children and Adults,FIR TREE LODGE (SEE ABILITY),"8,995.40",LD LTS 18-64,RESIDENTIAL CARE,2103854249,1000052257
24.04.2024,Children and Adults,MICHAEL FARADAY PRIMARY SCHOOL,"8,993.00",LBS MAINSTREAM,HIGH NEEDS - TOP UP FUNDING,5902633482,5001000048
08.04.2024,Children and Adults,COUNTRY COURT CARE HOMES 2 LTD,"8,984.86",PHY LTS 65+,NURSING PLACEMENTS FEES,2103854746,1000080172
08.04.2024,Children and Adults,SAFFRONLAND HOMES (HESTIA),"8,978.92",LD LTS 18-64,RESIDENTIAL CARE,2103854105,1000021616
08.04.2024,Children and Adults,SAFFRONLAND HOMES (HESTIA),"8,978.92",LD LTS 18-64,RESIDENTIAL CARE,2103854509,1000021616
11.04.2024,Environment Neighbourhoods and Growth,F M CONWAY LTD,"8,957.95",CAPITAL PS (LEISURE),CONSTRUCTION,2103856173,4001384
09.04.2024,Children and Adults,ST JOHNS RC PRIMARY SCHOOL,"8,948.00",NURSERY ED GRANT 3 AND 4 YR OLDS,EARLY YEARS - 3 AND 4 YEAR OLDS,5902631441,5001000075
26.04.2024,Housing,J & M OASIS LTD,"8,943.50",NIGHTLY TA (NSC),EXTERNAL AGENCIES AND BODIES,5902633850,1000072169
12.04.2024,Children and Adults,PURPLE JAY EAST DULWICH LTD,"8,942.40",NURSERY ED GRANT 3 AND 4 YR OLDS,GRANTS,2103856366,1000086696
18.04.2024,Corporate,ANN BERNADT NURSERY SCHOOL,"8,938.58",EDUCATION VAT INPUTS,VAT CONTROL ACCOUNT,2103858408,5001000085
08.04.2024,Children and Adults,CARETECH COMMUNITY SERVICES LTD,"8,927.16",LD LTS 18-64,RESIDENTIAL CARE,2103854131,1000066698
18.04.2024,Corporate,TOWER BRIDGE PRIMARY SCHOOL,"8,906.43",EDUCATION VAT INPUTS,VAT CONTROL ACCOUNT,2103858415,5001000095
08.04.2024,Children and Adults,SAFFRONLAND HOMES (HESTIA),"8,906.00",LD LTS 18-64,RESIDENTIAL CARE,2103854829,1000021616
12.04.2024,Environment Neighbourhoods and Growth,CURRIE & BROWN UK LTD,"8,875.00",CAPITAL PS (REGEN),CONSTRUCTION FEES  - EXTERNAL,5902632137,1000033455
04.04.2024,Children and Adults,ST PAULS C OF E PRIMARY SCHOOL,"8,865.04",FREE HEALTHY SCHOOL MEALS,SCHOOLS CAPITATION,2103851839,1000082314
10.04.2024,Housing,KENT COUNTY COUNCIL - LASER,"8,864.95",HEATING ACCOUNT,GAS,5902631728,1000012926
08.04.2024,Children and Adults,DIAGRAMA HEALTH CARE,"8,859.44",LD LTS 18-64,RESIDENTIAL CARE,2103854308,1000075492
04.04.2024,Children and Adults,WANDSWORTH COUNCIL,"8,840.00",SPECIALIST CARE,PLACEMENTS - RESPITE,2103851978,1000020692
18.04.2024,Corporate,ST JOSEPHS CATHOLIC PRIMARY SCHOOL,"8,837.88",EDUCATION VAT INPUTS,VAT CONTROL ACCOUNT,2103858318,5001000078
16.04.2024,Housing,VERITAS  SOLICITORS,"8,833.33",DISREPAIR,PAYMENTS FOR LEGAL SERVICES,2103856808,1000088269
11.04.2024,Strategy and Communities,AAINA WOMEN GROUP,"8,830.82",VCS GRANTS,GRANTS,5902632084,1000002442
08.04.2024,Children and Adults,RIGHT SUPPORT MANAGEMENT LTD,"8,825.84",LD LTS 18-64,SUPPORTED LIVING,2103854840,1000070289
08.04.2024,Children and Adults,ASHINGHAM HOUSE LIMITED,"8,819.16",LD LTS 18-64,RESIDENTIAL CARE,2103854240,1000016504
08.04.2024,Children and Adults,BEECHCROFT SUPPORT LIMITED,"8,806.72",MH LTS 18-64,SUPPORTED LIVING,2103854144,1000085412
08.04.2024,Children and Adults,BRITISH HOME & HOSPITAL FOR INCURABLES,"8,789.16",PHY LTS 65+,NURSING PLACEMENTS FEES,2103854361,1001606
25.04.2024,Environment Neighbourhoods and Growth,METIS CONSULTANTS LIMITED,"8,760.00",CAPITAL PS (LEISURE),CONSTRUCTION SITE COSTS,5902633705,1000086330
03.04.2024,Environment Neighbourhoods and Growth,PROJECT CENTRE LTD,"8,753.50",TRANSPORT PROJECTS,OTHER CONTRACTORS,5902630616,1000072621
08.04.2024,Children and Adults,BROADHAM CARE LIMITED,"8,752.16",LD LTS 18-64,RESIDENTIAL CARE,2103854801,1000057411
24.04.2024,Children and Adults,ST SAVIOURS & ST OLAVES SCHOOL,"8,727.00",LBS MAINSTREAM,HIGH NEEDS - TOP UP FUNDING,5902633509,5001000084
04.04.2024,Children and Adults,CHARLOTTE  SHARMAN PRIMARY SCHOOL,"8,714.79",FREE HEALTHY SCHOOL MEALS,SCHOOLS CAPITATION,2103851808,5001000016
08.04.2024,Children and Adults,HIGH VIEW CARE SERVICES LTD,"8,682.80",PHY LTS 18-64,RESIDENTIAL CARE,2103854654,1000053562
24.04.2024,Children and Adults,TOWER BRIDGE PRIMARY SCHOOL,"8,681.00",LBS MAINSTREAM,HIGH NEEDS - TOP UP FUNDING,5902633513,5001000095
28.04.2024,Housing,TWO TOWERS HOUSING CO-OP LTD,"8,679.25",TWO TOWERS,M&M ALLOWANCE CO-OPS,5902633336,1000006843
10.04.2024,Environment Neighbourhoods and Growth,WILLOW ESTATE AGENTS (LONDON) LTD,"8,666.10",NO RECOURSE TO PUBLIC FUNDS,ACCOMMODATION CHARGES,5902631819,1000060607
08.04.2024,Children and Adults,BRITISH HOME & HOSPITAL FOR INCURABLES,"8,664.00",PHY LTS 18-64,NURSING PLACEMENTS FEES,2103854381,1001606
25.04.2024,Children and Adults,MEGGS COSTOYA ATTFIELD LTD,"8,661.12",C&AS SOFTWARE APPS,SOFTWARE,5902633639,1000021574
04.04.2024,Finance,BNP PARIBAS REAL ESTATE ADVISORY & PROPERTY MANAGEMENT,"8,657.25",7 HOLYROOD STREET,PROFESSIONAL FEES,5902630382,1000053153
08.04.2024,Children and Adults,BRANDON TRUST,"8,647.00",LD LTS 18-64,SUPPORTED LIVING,2103853996,1000042417
12.04.2024,Children and Adults,PUDDLEDUCK NURSERY,"8,636.40",NURSERY ED GRANT 3 AND 4 YR OLDS,GRANTS,2103856365,11210722
18.04.2024,Corporate,GRANGE PRIMARY SCHOOL,"8,629.71",EDUCATION VAT INPUTS,VAT CONTROL ACCOUNT,2103858343,5001000029
24.04.2024,Children and Adults,ENGLISH MARTYRS RC PRIMARY SCHOOL,"8,623.00",LBS MAINSTREAM,HIGH NEEDS - TOP UP FUNDING,5902633465,5001000030
10.04.2024,Children and Adults,INTERPRETING DIRECT CO (UK) LTD,"8,620.20",CENTRAL SUPPORT,INTERPRETING SERVICES,5902631666,1000070133
08.04.2024,Children and Adults,NCYPE,"8,620.00",PHY LTS 18-64,RESIDENTIAL CARE,2103854011,1264546
08.04.2024,Children and Adults,SAFFRONLAND HOMES (HESTIA),"8,612.20",LD LTS 18-64,RESIDENTIAL CARE,2103854075,1000021616
24.04.2024,Children and Adults,GRANGE PRIMARY SCHOOL,"8,612.00",LBS MAINSTREAM,HIGH NEEDS - TOP UP FUNDING,5902633464,5001000029
30.04.2024,Finance,DSI BILLING SERVICES LTD,"8,605.50",ADMINISTRATIVE SUPPORT,POSTAGES,5902634272,1000058640
18.04.2024,Corporate,OLIVER GOLDSMITH PRIMARY SCHOOL,"8,604.32",EDUCATION VAT INPUTS,VAT CONTROL ACCOUNT,2103858334,5001000051
12.04.2024,Children and Adults,LITTLE PIPS PRESCHOOL,"8,583.30",NURSERY ED GRANT 3 AND 4 YR OLDS,GRANTS,2103856351,1000079580
18.04.2024,Corporate,ST FRANCIS'S RC PRIMARY SCHOOL,"8,581.04",EDUCATION VAT INPUTS,VAT CONTROL ACCOUNT,2103858389,5001000067
30.04.2024,Finance,FARRELLS (LONDON) LLP,"8,577.50",OKR MASTER PLANNING,PROFESSIONAL FEES,5902634264,1000083336
12.04.2024,Children and Adults,ROTHERHITHE PRIMARY SCHOOL,"8,557.91",AC & FREE - MSTREAM,STATEMENTED FEES,2103856506,1000089862
12.04.2024,Children and Adults,ROTHERHITHE PRIMARY SCHOOL,"8,557.91",AC & FREE - MSTREAM,STATEMENTED FEES,2103856509,1000089862
12.04.2024,Children and Adults,ROTHERHITHE PRIMARY SCHOOL,"8,557.91",AC & FREE - MSTREAM,STATEMENTED FEES,2103856510,1000089862
12.04.2024,Children and Adults,ROTHERHITHE PRIMARY SCHOOL,"8,557.91",AC & FREE - MSTREAM,STATEMENTED FEES,2103856511,1000089862
12.04.2024,Children and Adults,ROTHERHITHE PRIMARY SCHOOL,"8,557.91",AC & FREE - MSTREAM,STATEMENTED FEES,2103856513,1000089862
12.04.2024,Children and Adults,ROTHERHITHE PRIMARY SCHOOL,"8,557.91",AC & FREE - MSTREAM,STATEMENTED FEES,2103856515,1000089862
12.04.2024,Children and Adults,DOG KENNEL HILL PRIMARY SCHOOL,"8,557.91",AC & FREE - MSTREAM,STATEMENTED FEES,2103856563,1000089861
08.04.2024,Children and Adults,GROVE CARE PARTNERSHIP LIMITED,"8,553.08",LD LTS 18-64,RESIDENTIAL CARE,2103809600,1000052893
08.04.2024,Children and Adults,GROVE CARE PARTNERSHIP LIMITED,"8,553.08",LD LTS 18-64,RESIDENTIAL CARE,2103822655,1000052893
08.04.2024,Children and Adults,GROVE CARE PARTNERSHIP LIMITED,"8,553.08",LD LTS 18-64,RESIDENTIAL CARE,2103837731,1000052893
16.04.2024,Housing,HMRC STAMP TAXES ONLY SDLT,"8,540.00",CAPITAL PS (HRA),LAND & BUILDINGS ACQUISITION FEES,5902632551,1000052141
18.04.2024,Corporate,ST JOSEPHS CATHOLIC INFANTS SCHOOL,"8,536.14",EDUCATION VAT INPUTS,VAT CONTROL ACCOUNT,2103858431,5001000018
04.04.2024,Children and Adults,UNIVERSITY ENGINEERING ACADEMY,"8,535.74",AC & FREE - MSTREAM,STATEMENTED FEES,2103850322,1000074104
04.04.2024,Children and Adults,HABERDASHERS' ASKE'S BOROUGH ACADEMY,"8,535.74",AC & FREE - MSTREAM,STATEMENTED FEES,2103850368,1000083830
04.04.2024,Children and Adults,HABERDASHERS' ASKE'S BOROUGH ACADEMY,"8,535.74",AC & FREE - MSTREAM,STATEMENTED FEES,2103850369,1000083830
04.04.2024,Children and Adults,HABERDASHERS' ASKE'S BOROUGH ACADEMY,"8,535.74",AC & FREE - MSTREAM,STATEMENTED FEES,2103850374,1000083830
04.04.2024,Children and Adults,GALLEYWALL PRIMARY SCHOOL,"8,535.74",AC & FREE - MSTREAM,STATEMENTED FEES,2103850381,1000078128
04.04.2024,Children and Adults,GALLEYWALL PRIMARY SCHOOL,"8,535.74",AC & FREE - MSTREAM,STATEMENTED FEES,2103850382,1000078128
04.04.2024,Children and Adults,GALLEYWALL PRIMARY SCHOOL,"8,535.74",AC & FREE - MSTREAM,STATEMENTED FEES,2103850383,1000078128
04.04.2024,Children and Adults,GALLEYWALL PRIMARY SCHOOL,"8,535.74",AC & FREE - MSTREAM,STATEMENTED FEES,2103850385,1000078128
04.04.2024,Children and Adults,GALLEYWALL PRIMARY SCHOOL,"8,535.74",AC & FREE - MSTREAM,STATEMENTED FEES,2103850389,1000078128
04.04.2024,Children and Adults,GALLEYWALL PRIMARY SCHOOL,"8,535.74",AC & FREE - MSTREAM,STATEMENTED FEES,2103850390,1000078128
04.04.2024,Children and Adults,GALLEYWALL PRIMARY SCHOOL,"8,535.74",AC & FREE - MSTREAM,STATEMENTED FEES,2103850394,1000078128
04.04.2024,Children and Adults,HARRIS BOYS ACADEMY EAST DULWICH,"8,535.74",AC & FREE - MSTREAM,STATEMENTED FEES,2103850487,1000079700
04.04.2024,Children and Adults,HARRIS BOYS ACADEMY EAST DULWICH,"8,535.74",AC & FREE - MSTREAM,STATEMENTED FEES,2103850490,1000079700
04.04.2024,Children and Adults,HARRIS BOYS ACADEMY EAST DULWICH,"8,535.74",AC & FREE - MSTREAM,STATEMENTED FEES,2103850491,1000079700
17.04.2024,Children and Adults,THE ACADEMY @ PECKHAM,"8,535.74",AC & FREE - MSTREAM,STATEMENTED FEES,2103858066,1000041433
17.04.2024,Children and Adults,THE ACADEMY @ PECKHAM,"8,535.73",AC & FREE - MSTREAM,STATEMENTED FEES,2103858072,1000041433
17.04.2024,Children and Adults,THE ACADEMY @ PECKHAM,"8,535.73",AC & FREE - MSTREAM,STATEMENTED FEES,2103858073,1000041433
16.04.2024,Children and Adults,DEPTFORD GREEN SCHOOL,"8,531.00",OTHER LA MAINSTREAM,STATEMENTED FEES,2103856954,1000073657
16.04.2024,Children and Adults,HARRIS PRIMARY ACADEMY PECKHAM PARK,"8,531.00",AC & FREE - MSTREAM,STATEMENTED FEES,2103856963,1000068029
16.04.2024,Children and Adults,HARRIS PRIMARY ACADEMY PECKHAM PARK,"8,531.00",AC & FREE - MSTREAM,STATEMENTED FEES,2103856964,1000068029
16.04.2024,Children and Adults,HARRIS PRIMARY ACADEMY PECKHAM PARK,"8,531.00",AC & FREE - MSTREAM,STATEMENTED FEES,2103856965,1000068029
16.04.2024,Children and Adults,HARRIS PRIMARY ACADEMY PECKHAM PARK,"8,531.00",AC & FREE - MSTREAM,STATEMENTED FEES,2103856967,1000068029
16.04.2024,Children and Adults,THE LONDON ORATORY SCHOOL,"8,531.00",AC & FREE - MSTREAM,STATEMENTED FEES,2103857010,1000071398
10.04.2024,Housing,CALFORD SEADEN LLP,"8,517.04",CAPITAL PS (HRA),CONSTRUCTION FEES - EMPLOYERS AGENT,5902631709,1061592
08.04.2024,Children and Adults,BOUGHTON GREEN ROAD LIMITED,"8,505.00",PHY LTS 18-64,NURSING PLACEMENTS FEES,2103853949,1000089115
10.04.2024,Finance,REDACTED PERSONAL DATA,"8,500.00",BUSINESS UNIT MANAGER & SUPPORT COSTS,LEGAL FEES & COURT COSTS,2103855433,1000080763
19.04.2024,Housing,BRESLIN CONSTRUCTION LTD,"8,500.00",COMMERCIAL PROPERTIES,BUILDING R&M,2103858568,3000001948
04.04.2024,Children and Adults,HARRIS BOYS ACADEMY EAST DULWICH,"8,498.98",AC & FREE - MSTREAM,STATEMENTED FEES,2103850485,1000079700
30.04.2024,Housing,PROPERTY FACILITIES GROUP PLC,"8,490.41",DISREPAIR,BUILDING R&M,2103863060,3000001420
05.04.2024,Children and Adults,PEOPLE PLUS GROUP LTD (INDEPENDENT LIVING SERVICES),"8,486.69",PHY LTS 18-64,PAYMENTS TO CLIENTS (DIRECT PAYMENTS),2103852511,1000061886
08.04.2024,Children and Adults,L & Q LIVING,"8,485.00",LD LTS 18-64,SUPPORTED LIVING,2103854287,1000057917
08.04.2024,Children and Adults,COUNTRY COURT CARE HOMES 2 LTD,"8,448.95",DISCHARGE TO ACCESS,NURSING PLACEMENTS FEES,2103854388,1000080172
08.04.2024,Children and Adults,GARLAND LODGE LTD,"8,444.80",LD LTS 18-64,SUPPORTED LIVING,2103854575,1000084016
08.04.2024,Children and Adults,OPTIMA CARE (SHINE) LONDON LTD,"8,433.00",LD LTS 18-64,SUPPORTED LIVING,2103854570,1000079614
18.04.2024,Corporate,BRUNSWICK PARK PRIMARY SCHOOL,"8,432.63",EDUCATION VAT INPUTS,VAT CONTROL ACCOUNT,2103858395,5001000013
18.04.2024,Corporate,IVYDALE PRIMARY SCHOOL,"8,415.22",EDUCATION VAT INPUTS,VAT CONTROL ACCOUNT,2103858438,5001000038
12.04.2024,Children and Adults,LONDON GRID FOR LEARNING TRUST,"8,414.00",ADMISSIONS,SUBSCRIPTIONS,5902631600,1000066669
17.04.2024,Children and Adults,KINTORE WAY CHILDRENS CENTRE,"8,405.00",EY SENDIF,STATEMENTED FEES,2103858057,5001000047
08.04.2024,Children and Adults,SALUTEM SHARED SERVICES III LTD,"8,400.00",PHY LTS 65+,RESIDENTIAL CARE,2103854111,1000088099
11.04.2024,Children and Adults,RAYMOND MEDICAL LIMITED,"8,400.00",COVID-19 CONTROL OUTBREAK MGMNT.FUND,EXTERNAL AGENCIES AND BODIES,5902630961,1000089204
12.04.2024,Children and Adults,GERMAN KINDERGARTEN LTD,"8,383.50",NURSERY ED GRANT 3 AND 4 YR OLDS,GRANTS,2103856328,1000058090
08.04.2024,Children and Adults,SAFFRONLAND HOMES (MINEHEAD),"8,377.68",LD LTS 18-64,RESIDENTIAL CARE,2103854799,1000072152
08.04.2024,Children and Adults,ACHIEVERS CARE SOLUTIONS LIMITED,"8,370.56",SPECIALIST CARE,SECTION 17 PAYMENTS TO AGENCIES/CARERS,2103853816,1000086268
08.04.2024,Children and Adults,SAFFRONLAND HOMES (MINEHEAD),"8,352.12",LD LTS 18-64,RESIDENTIAL CARE,2103854525,1000072152
08.04.2024,Children and Adults,P.A.K.S,"8,348.00",PHY LTS 18-64,RESIDENTIAL CARE,2103854002,1000078011
22.04.2024,Housing,ASPEN BUILD (EAST ANGLIA) LTD,"8,345.05",CAPITAL PS (HRA),CONSTRUCTION MAIN CONTRACT -CERTIFICATED,2103858694,3000002075
08.04.2024,Children and Adults,BEECHCROFT SUPPORT LIMITED,"8,344.00",LD LTS 18-64,SUPPORTED LIVING,2103853962,1000085412
24.04.2024,Housing,OSBORNES SOLICITORS,"8,333.33",DISREPAIR,PAYMENTS FOR LEGAL SERVICES,2103859194,1000052598
04.04.2024,Children and Adults,MIME CONSULTING LTD,"8,333.33",ALC MANAGEMENT AND SUPPORT,PROFESSIONAL FEES,5902630849,1000057079
04.04.2024,Children and Adults,MIME CONSULTING LTD,"8,333.33",ALC MANAGEMENT AND SUPPORT,PROFESSIONAL FEES,5902630877,1000057079
08.04.2024,Children and Adults,KARE HEALTHCARE LTD,"8,320.00",PHY LTS 65+,SUPPORTED LIVING,2103854146,1000089212
08.04.2024,Children and Adults,ASHMEAD HEALTHCARE LTD,"8,278.24",LD LTS 18-64,RESIDENTIAL CARE,2103854832,1000077917
04.04.2024,Environment Neighbourhoods and Growth,WALWORTH HOMES LTD,"8,276.61",CAPITAL PS (REGEN),CONSTRUCTION FEES,5902630842,1000079197
08.04.2024,Children and Adults,FORESHAW BUILDING SERVICES LTD,"8,275.00",SERVICE DEVELOPMENT UNIT,BUILDING R&M,5902631308,1000066943
30.04.2024,Finance,HIAM ALI LTD,"8,264.50",CORONER'S,PROFESSIONAL FEES,5902634084,1000084044
04.04.2024,Children and Adults,ROBERT BROWNING PRIMARY SCHOOL,"8,264.02",FREE HEALTHY SCHOOL MEALS,SCHOOLS CAPITATION,2103851827,5001000057
04.04.2024,Children and Adults,RYE OAK PRIMARY SCHOOL,"8,264.02",FREE HEALTHY SCHOOL MEALS,SCHOOLS CAPITATION,2103851828,5001000059
11.04.2024,Strategy and Communities,LONDON WILDLIFE TRUST,"8,260.05",VCS GRANTS,GRANTS,5902632076,1832374
04.04.2024,Children and Adults,HABERDASHERS' ASKE'S BOROUGH ACADEMY,"8,255.00",AC & FREE - MSTREAM,STATEMENTED FEES,2103850376,1000083830
08.04.2024,Children and Adults,GLENPAT HOMES,"8,239.12",LD LTS 18-64,RESIDENTIAL CARE,2103854770,1000059312
12.04.2024,Children and Adults,NOTRE DAME GIRLS - ACADEMY,"8,233.33",AC & FREE - MSTREAM,STATEMENTED FEES,2103856533,1000089292
23.04.2024,DSO,E & E BUILDING SERVICES LTD,"8,221.74",NUNHEAD DD,OTHER CONTRACTORS,2103859138,3000001176
04.04.2024,Environment Neighbourhoods and Growth,KENT COUNTY COUNCIL - LASER,"8,203.97",SOUTHWARK AREA TEAM,ELECTRICITY,5902630858,1000012926
04.04.2024,Children and Adults,WANDSWORTH COUNCIL,"8,203.81",OTHER LA SPECIAL,STATEMENTED FEES,2103851795,1000020692
04.04.2024,Children and Adults,GALLEYWALL PRIMARY SCHOOL,"8,199.69",AC & FREE - MSTREAM,STATEMENTED FEES,2103850395,1000078128
08.04.2024,Children and Adults,ALWAYS INCLUSIVE LTD,"8,199.36",LD LTS 18-64,SUPPORTED LIVING,2103854898,1000088268
08.04.2024,Children and Adults,GREEN CARE AND SUPPORT LIMITED,"8,195.20",LD LTS 18-64,SUPPORTED LIVING,2103854580,1000087661
01.04.2024,Finance,FEREDAY POLLARD ARCHITECTS LIMITED,"8,193.00",MASTER PLAN - H/WAY & TRANS INTERCHANGE,PROFESSIONAL FEES,5902630002,1000087240
08.04.2024,Environment Neighbourhoods and Growth,STRUCTURA UK LTD,"8,184.00",CAPITAL PS (REGEN),CONSTRUCTION MAIN CONTRACT,2103853753,3000002156
08.04.2024,Children and Adults,CHOICE SUPPORT,"8,168.84",LD LTS 18-64,SUPPORTED LIVING,2103854856,1104183
24.04.2024,Housing,ANTONY HODARI  SOLICITORS,"8,166.67",DISREPAIR,PAYMENTS FOR LEGAL SERVICES,2103859192,1000031040
08.04.2024,Children and Adults,BEECHCROFT SUPPORT LIMITED,"8,161.36",LD LTS 18-64,SUPPORTED LIVING,2103854896,1000085412
05.04.2024,Housing,REDACTED PERSONAL DATA,"8,150.00",COMMERCIAL PROPERTIES,RENTS,2103852209,1000090873
04.04.2024,Finance,BRITISH GAS,"8,147.02",CPHA SURPLUS,GAS,5902630796,1000054825
18.04.2024,Children and Adults,ACORN HOMES (UK) LTD,"8,142.90",CHILDREN�S RESID,RESIDENTIAL CARE,2103858231,1000080423
08.04.2024,Children and Adults,GLEN CARE GROUP,"8,141.12",LD LTS 18-64,RESIDENTIAL CARE,2103854270,1000050223
15.04.2024,Environment Neighbourhoods and Growth,STUDIO DANMOLE LIMITED,"8,130.00",CAPITAL PS (REGEN),CONSTRUCTION FEES  - EXTERNAL,5902629721,1000090235
11.04.2024,Strategy and Communities,PECAN LTD,"8,122.35",VCS GRANTS,GRANTS,5902632081,11263114
08.04.2024,Children and Adults,CHOICE CARE GROUP,"8,118.80",LD LTS 18-64,RESIDENTIAL CARE,2103854794,1572506
04.04.2024,Children and Adults,HOLLYDALE PRIMARY SCHOOL,"8,113.77",FREE HEALTHY SCHOOL MEALS,SCHOOLS CAPITATION,2103851818,5001000036
18.04.2024,Corporate,ALFRED SALTER PRIMARY SCHOOL,"8,111.88",EDUCATION VAT INPUTS,VAT CONTROL ACCOUNT,2103858349,5001000005
25.04.2024,Children and Adults,SOUTHWARK INCLUSIVE LEARNING SERVICE,"8,098.87",LBS PRU,SCHOOLS CAPITATION,2103859139,5001000105
12.04.2024,Housing,DUCTCLEAN (UK) LTD,"8,079.29",DUCTCLEAN,I-WORLD CONTRACTORS HOLDING ACCOUNT,2103856395,3000001635
22.04.2024,Housing,THEORI HOUSING MANAGEMENT SERVICES,"8,076.74",NIGHTLY TA (NSC),EXTERNAL AGENCIES AND BODIES,5902633222,1000079264
08.04.2024,Children and Adults,ALWAYS INCLUSIVE LTD,"8,064.00",LD LTS 18-64,SUPPORTED LIVING,2103854609,1000088268
18.04.2024,Environment Neighbourhoods and Growth,RS REAL ESTATE LTD,"8,060.00",NO RECOURSE TO PUBLIC FUNDS,ACCOMMODATION CHARGES,5902632925,1000072485
08.04.2024,Children and Adults,LEONARD CHESHIRE (THICKET ROAD),"8,004.84",LD LTS 18-64,RESIDENTIAL CARE,2103854176,1000049761
17.04.2024,Housing,QUINN NOBLE SOLICITORS,"8,003.08",DISREPAIR,PAYMENTS FOR LEGAL SERVICES,2103857945,1000083954
08.04.2024,Children and Adults,THE LONDON CARE GROUP,"8,000.00",LD LTS 18-64,SUPPORTED LIVING,2103854013,1000090111
12.04.2024,Finance,EUROPEAN ADMINISTRATION LIMITED,"8,000.00",CORONER'S,PROFESSIONAL FEES,5902631912,1000086416
25.04.2024,Housing,VIGILANT SECURITY SERVICES UK,"7,996.80",JOE RICHARDS HOSTEL,SECURITY SERVICES,5902633750,1000090073
08.04.2024,Children and Adults,ACHIEVE TOGETHER SERVICES LIMITED,"7,988.00",LD LTS 18-64,RESIDENTIAL CARE,2103854322,1000089975
08.04.2024,Children and Adults,DOLPHIN HOMES LTD,"7,970.84",PHY LTS 18-64,RESIDENTIAL CARE,2103854009,1000079959
08.04.2024,Children and Adults,HIGH VIEW CARE SERVICES LTD,"7,957.88",MEM LTS 18-64,NURSING PLACEMENTS FEES,2103854849,1000053562
04.04.2024,Children and Adults,UNLOCKING LANGUAGE LTD,"7,956.00",SALT,CONSULTANTS SERVICES,2103850311,1000081107
24.04.2024,Children and Adults,DULWICH VILLAGE CE INFANTS SCHOOL,"7,949.00",LBS MAINSTREAM,HIGH NEEDS - TOP UP FUNDING,5902633463,5001000027
18.04.2024,Corporate,ST JOHNS & ST CLEMENTS CE SCHOOL,"7,941.95",EDUCATION VAT INPUTS,VAT CONTROL ACCOUNT,2103858370,5001000073
24.04.2024,Children and Adults,HOMERTON UNIVERSITY HOSPITAL NHS FOUNDATION TRUST,"7,937.11",SEXUAL HEALTH - STI,MEDICAL / HEALTH & SAFETY SERVICES,5902633437,1000075435
08.04.2024,Children and Adults,REESON CARE HOMES LTD,"7,931.04",LD LTS 18-64,SUPPORTED LIVING,2103855132,1000084007
18.04.2024,Corporate,BETHLEM & MAUDSLEY HOSPITAL SCHOOL,"7,921.00",EDUCATION VAT INPUTS,VAT CONTROL ACCOUNT,2103858387,5001000010
12.04.2024,Children and Adults,VICTORIOUS VENTURA LIMITED,"7,910.18",NURSERY ED GRANT 3 AND 4 YR OLDS,GRANTS,2103856379,1000087823
04.04.2024,Children and Adults,THE BECKMEAD TRUST,"7,904.81",OTHER LA SPECIAL,STATEMENTED FEES,2103850450,1000082684
01.04.2024,Finance,MILLANE CONTRACT SERVICES LTD,"7,896.00","COURAGE YARD, SHAD THAMES",BUILDING R&M,2103848770,3000001131
04.04.2024,Children and Adults,CARBONE CLINIC UK LTD,"7,875.00",AP & HOSPITAL SCHLS,STATEMENTED FEES,2103850404,1000080937
18.04.2024,Corporate,COMBER GROVE PRIMARY SCHOOL,"7,873.38",EDUCATION VAT INPUTS,VAT CONTROL ACCOUNT,2103858421,5001000022
08.04.2024,Children and Adults,VOYAGE LTD (EVESLEIGH KENT),"7,859.88",PHY LTS 18-64,RESIDENTIAL CARE,2103854875,1000041320
17.04.2024,Housing,DRISCOLL KINGSTON SOLICITORS,"7,850.00",TA HOSTELS,PAYMENTS FOR LEGAL SERVICES,2103857930,1000082357
17.04.2024,Housing,CHRIS DAVIS CONSULTANCY LTD,"7,837.50",CAPITAL PS (HRA),CONSTRUCTION,5902632626,1000084202
12.04.2024,Children and Adults,CRYSTAL NURSERY (UK),"7,824.60",NURSERY ED GRANT 3 AND 4 YR OLDS,GRANTS,2103856331,1000016621
08.04.2024,Children and Adults,CHOICE SUPPORT,"7,818.80",LD LTS 18-64,SUPPORTED LIVING,2103854157,1104183
08.04.2024,Children and Adults,DISABILITIES TRUST,"7,815.40",PHY LTS 18-64,NURSING PLACEMENTS FEES,2103854452,1000043358
04.04.2024,Children and Adults,SNOWSFIELDS PRIMARY SCHOOL,"7,813.26",FREE HEALTHY SCHOOL MEALS,SCHOOLS CAPITATION,2103851829,5001000061
08.04.2024,Children and Adults,SAFFRONLAND HOMES (MINEHEAD),"7,800.00",LD LTS 18-64,RESIDENTIAL CARE,2103853898,1000072152
25.04.2024,Finance,INVUSE LIMITED,"7,800.00",CAPITAL PS (STRAT SERV),ICT ACQUISITION,5902633772,1000087372
08.04.2024,Children and Adults,SUNRISE REHABILITATION CENTRE,"7,789.60",LD LTS 18-64,SUPPORTED LIVING,2103854098,1000086998
15.04.2024,Children and Adults,THE GROVE CHILDRENS CENTRE,"7,788.00",NURSERY ED GRANT 2YR OLDS,EARLY YEARS - 2 YEAR OLD,5902632311,5001000090
16.04.2024,Children and Adults,REDACTED PERSONAL DATA,"7,770.37",AP & HOSPITAL SCHLS,STATEMENTED FEES,2103856987,1000076918
08.04.2024,Children and Adults,VALUE IN CARE LTD,"7,761.08",LD LTS 18-64,RESIDENTIAL CARE,2103854833,1000041975
18.04.2024,Corporate,ST JAMES THE GREAT RC SCHOOL,"7,728.54",EDUCATION VAT INPUTS,VAT CONTROL ACCOUNT,2103858376,5001000071
08.04.2024,Children and Adults,PLUS SERVICES,"7,721.60",LD LTS 18-64,RESIDENTIAL CARE,2103854855,1000021241
08.04.2024,Children and Adults,VOYAGE CARE (MOUNTEARL),"7,713.64",LD LTS 18-64,RESIDENTIAL CARE,2103854645,1000078173
18.04.2024,Corporate,GOODRICH PRIMARY SCHOOL,"7,709.34",EDUCATION VAT INPUTS,VAT CONTROL ACCOUNT,2103858420,5001000028
17.04.2024,Housing,DEVONSHIRES SOLICITORS LLP,"7,708.33",DISREPAIR,PAYMENTS FOR LEGAL SERVICES,2103857937,1000088402
30.04.2024,Finance,HIAM ALI LTD,"7,707.00",CORONER'S,PROFESSIONAL FEES,5902634086,1000084044
17.04.2024,Environment Neighbourhoods and Growth,CALFORD SEADEN (HEALTH & SAFETY) LTD,"7,700.00",CAPITAL PS (REGEN),CONSTRUCTION FEES  - EXTERNAL,5902632601,1097125
08.04.2024,Children and Adults,BRANDON TRUST,"7,695.64",LD LTS 18-64,SUPPORTED LIVING,2103854701,1000042417
02.04.2024,Children and Adults,ALBION PRIMARY SCHOOL,"7,690.00",NURSERY ED GRANT 3 AND 4 YR OLDS,EARLY YEARS - 3 AND 4 YEAR OLDS,2103838790,5001000000
08.04.2024,Children and Adults,CHOICE SUPPORT,"7,685.84",LD LTS 18-64,SUPPORTED LIVING,2103854559,1104183
22.04.2024,DSO,SER CONTRACTOR LTD,"7,673.90",SR - VOIDS TEAM,OTHER CONTRACTORS,2103858706,3000002234
08.04.2024,Children and Adults,ACHIEVE TOGETHER SERVICES LIMITED,"7,666.12",LD LTS 18-64,SUPPORTED LIVING,2103854594,1000089975
08.04.2024,Children and Adults,ACHIEVE TOGETHER SERVICES LIMITED,"7,662.68",LD LTS 18-64,RESIDENTIAL CARE,2103854345,1000089975
04.04.2024,Environment Neighbourhoods and Growth,WATERMAN INFRASTRUCTURE & ENVIRONMENT LTD,"7,643.50",FLOOD RISK MANAGEMENT,HIGHWAYS TERM CONTRACT,5902630671,1000060529
08.04.2024,Children and Adults,RESIDENTIAL CARE SERVICES LTD,"7,628.20",LD LTS 18-64,SUPPORTED LIVING,2103854474,1000082629
01.04.2024,Environment Neighbourhoods and Growth,HILLIER NURSERIES LTD,"7,593.60",CAPITAL PS (LEISURE),CONSTRUCTION FEES,5902629905,1000036638
08.04.2024,Children and Adults,BRANDON TRUST,"7,565.44",LD LTS 18-64,SUPPORTED LIVING,2103854231,1000042417
08.04.2024,Children and Adults,BRANDON TRUST,"7,565.44",LD LTS 18-64,SUPPORTED LIVING,2103854385,1000042417
08.04.2024,Children and Adults,BRANDON TRUST,"7,565.44",LD LTS 18-64,SUPPORTED LIVING,2103854395,1000042417
08.04.2024,Children and Adults,BRANDON TRUST,"7,565.44",LD LTS 18-64,SUPPORTED LIVING,2103854489,1000042417
08.04.2024,Children and Adults,COUNTRY COURT CARE HOMES 2 LTD,"7,563.24",PHY LTS 65+,NURSING PLACEMENTS FEES,2103853900,1000080172
08.04.2024,Children and Adults,COUNTRY COURT CARE HOMES 2 LTD,"7,563.24",PHY LTS 65+,NURSING PLACEMENTS FEES,2103854444,1000080172
24.04.2024,Children and Adults,RYE OAK PRIMARY SCHOOL,"7,563.00",LBS MAINSTREAM,HIGH NEEDS - TOP UP FUNDING,5902633494,5001000059
10.04.2024,Children and Adults,REDACTED PERSONAL DATA,"7,556.57",FOSTERING ALLOWANCES,ADDITIONAL PAYMENTS TO AGENCIES/CARERS,2103856030,1000072218
08.04.2024,Children and Adults,CHOICE SUPPORT,"7,551.88",LD LTS 18-64,SUPPORTED LIVING,2103854588,1104183
08.04.2024,Children and Adults,GARLAND LODGE LTD,"7,546.24",LD LTS 18-64,SUPPORTED LIVING,2103854476,1000084016
29.04.2024,Suspense,TRAVIS PERKINS TRADING COMPANY LTD,"7,540.20",SUSPENSE ACCOUNT (COMPANY CODE 1000),CREDITORS -GR/IR CLEARING ACCOUNT,5902634006,1514319
08.04.2024,Children and Adults,CHOICE SUPPORT,"7,535.60",LD LTS 65+,SUPPORTED LIVING,2103854869,1104183
25.04.2024,DSO,E & E BUILDING SERVICES LTD,"7,531.67",NUNHEAD DD,OTHER CONTRACTORS,2103859780,3000001176
23.04.2024,Environment Neighbourhoods and Growth,KENT COUNTY COUNCIL - LASER,"7,529.81",CREMATORIUM,ELECTRICITY,5902633309,1000012926
08.04.2024,Children and Adults,GREEN CARE AND SUPPORT LIMITED,"7,529.60",LD LTS 18-64,SUPPORTED LIVING,2103854099,1000087661
04.04.2024,Children and Adults,THE BECKMEAD TRUST,"7,528.41",OTHER LA SPECIAL,STATEMENTED FEES,2103850449,1000082684
24.04.2024,Children and Adults,PETER HILLS CE SCHOOL,"7,519.00",LBS RB / SEN UNIT,HIGH NEEDS - BASE FUNDING,5902633485,5001000053
24.04.2024,Children and Adults,ROBERT BROWNING PRIMARY SCHOOL,"7,519.00",LBS RB / SEN UNIT,HIGH NEEDS - BASE FUNDING,5902633489,5001000057
08.04.2024,Children and Adults,REDACTED PERSONAL DATA,"7,512.96",LD LTS 18-64,SUPPORTED LIVING,2103854815,1000088380
08.04.2024,Children and Adults,WELLSPRING CARE HOMES LIMITED,"7,508.00",LD LTS 18-64,SUPPORTED LIVING,2103854362,1000088216
19.04.2024,Environment Neighbourhoods and Growth,VEOLIA ES SOUTHWARK LTD,"7,506.40",WASTE PFI,PFI/PPP PAYMENTS,5902633050,1000056979
04.04.2024,Corporate,KENNEDYS LAW LLP,"7,500.00",LIABILITY RELATED INSURANCE,COMPENSATION,5902630289,1000087953
10.04.2024,Housing,EXPIDERE LTD,"7,500.00",COMPLAINTS,PROFESSIONAL FEES,5902631778,1000088861
12.04.2024,Children and Adults,JOYFUL STAR NURSERY,"7,500.00",HEALTHY WEIGHT,EXTERNAL AGENCIES AND BODIES,5902632012,1000074638
22.04.2024,Environment Neighbourhoods and Growth,PECKHAM PLATFORM LTD,"7,500.00",CAPITAL PS (LEISURE),CAPITAL GRANTS,5902633132,1000075417
27.04.2024,Children and Adults,CITIZENS UK,"7,500.00",HEALTHY WEIGHT,EXTERNAL AGENCIES AND BODIES,5902633665,1000080046
08.04.2024,Children and Adults,BEECHCROFT SUPPORT LIMITED,"7,475.52",LD LTS 18-64,SUPPORTED LIVING,2103854895,1000085412
08.04.2024,Children and Adults,LONDON CYRENIANS HOUSING LTD,"7,470.12",LD LTS 18-64,SUPPORTED LIVING,2103854286,1000078600
15.04.2024,Children and Adults,ST FRANCIS'S RC PRIMARY SCHOOL,"7,459.00",NURSERY ED GRANT 3 AND 4 YR OLDS,EARLY YEARS - 3 AND 4 YEAR OLDS,5902632296,5001000067
08.04.2024,Children and Adults,ALWAYS INCLUSIVE LTD,"7,450.56",LD LTS 18-64,SUPPORTED LIVING,2103854811,1000088268
08.04.2024,Children and Adults,LONDON CYRENIANS HOUSING LTD,"7,427.20",LD LTS 18-64,SUPPORTED LIVING,2103853888,1000078600
20.04.2024,Suspense,BEW ELECTRICAL DISTRIBUTORS LTD,"7,424.00",SUSPENSE ACCOUNT (COMPANY CODE 1000),CREDITORS -GR/IR CLEARING ACCOUNT,5902632769,1000045371
18.04.2024,Corporate,ST GEORGES RC SCHOOL,"7,414.46",EDUCATION VAT INPUTS,VAT CONTROL ACCOUNT,2103858392,5001000068
22.04.2024,Environment Neighbourhoods and Growth,BLOOM PROCUREMENT SERVICES LTD,"7,400.00",CAPITAL PS (REGEN),CONSTRUCTION FEES - ENGINEER,5902633193,1000082531
08.04.2024,Children and Adults,HIGH VIEW CARE SERVICES LTD,"7,398.72",MH LTS 18-64,RESIDENTIAL CARE,2103854800,1000065920
08.04.2024,Children and Adults,CHOICE SUPPORT,"7,395.32",LD LTS 18-64,RESIDENTIAL CARE,2103854802,1104183
08.04.2024,Children and Adults,AGINCARE (SOUTHWARK) LIMITED,"7,385.71",DISCHARGE TO ACCESS,NURSING PLACEMENTS FEES,2103854064,1000089635
19.04.2024,Environment Neighbourhoods and Growth,WATERMAN INFRASTRUCTURE & ENVIRONMENT LTD,"7,381.58",FLOOD RISK MANAGEMENT,HIGHWAYS TERM CONTRACT,5902633029,1000060529
04.04.2024,Children and Adults,JOHN KEATS PRIMARY SCHOOL,"7,362.49",FREE HEALTHY SCHOOL MEALS,SCHOOLS CAPITATION,2103851820,1000082645
08.04.2024,Children and Adults,PLUS SERVICES,"7,359.91",LD LTS 18-64,SUPPORTED LIVING,2103854051,1000021241
08.04.2024,Children and Adults,BURGESS AUTISTIC TRUST,"7,349.48",LD LTS 18-64,SUPPORTED LIVING,2103854572,1000044550
29.04.2024,Children and Adults,REDACTED PERSONAL DATA,"7,348.27",SPECIAL GUARDIANSHIP,PAYMENTS TO CARERS,2103861004,1000086077
10.04.2024,Housing,PROPERTY FACILITIES GROUP PLC,"7,343.82",DISREPAIR,BUILDING R&M,2103856117,3000001420
18.04.2024,Corporate,BETHLEM & MAUDSLEY HOSPITAL SCHOOL,"7,323.47",EDUCATION VAT INPUTS,VAT CONTROL ACCOUNT,2103858330,5001000010
24.04.2024,Finance,KEYSTREAM GROUP LIMITED,"7,315.00",TECHNOLOGY TRANSFORMATION,HARDWARE,5902633537,1000089467
24.04.2024,Children and Adults,REDACTED PERSONAL DATA,"7,310.00",PHB - SEL ICB,RECOVERABLE COSTS INCL. HEALTH,2103858539,1000091056
23.04.2024,DSO,E & E BUILDING SERVICES LTD,"7,301.67",PECKHAM & DULWICH DD,OTHER CONTRACTORS,2103859138,3000001176
08.04.2024,Children and Adults,BRANDON TRUST,"7,300.76",LD LTS 18-64,SUPPORTED LIVING,2103853937,1000042417
11.04.2024,Environment Neighbourhoods and Growth,TYCO INTEGRATED FIRE & SECURITY,"7,296.69",TOWN CENTRE CCTV,OTHER CONTRACTORS,5902631988,1000077948
18.04.2024,Environment Neighbourhoods and Growth,GOLDSTONE ESTATES LTD,"7,264.40",NO RECOURSE TO PUBLIC FUNDS,ACCOMMODATION CHARGES,5902632971,1000076548
08.04.2024,Children and Adults,INSIGHT,"7,263.28",LD LTS 18-64,RESIDENTIAL CARE,2103854680,1825618
08.04.2024,Children and Adults,ALWAYS INCLUSIVE LTD,"7,250.88",LD LTS 18-64,SUPPORTED LIVING,2103854057,1000088268
05.04.2024,Children and Adults,PEOPLE PLUS GROUP LTD (INDEPENDENT LIVING SERVICES),"7,250.80",LD LTS 18-64,PAYMENTS TO CLIENTS (DIRECT PAYMENTS),2103852492,1000061886
08.04.2024,Children and Adults,SALISBURY SUPPORT 4 AUTISM LTD,"7,235.20",LD LTS 18-64,SUPPORTED LIVING,2103854117,1000082674
18.04.2024,Corporate,ST MARY MAGDALENE CE SCHOOL,"7,232.62",EDUCATION VAT INPUTS,VAT CONTROL ACCOUNT,2103858309,5001000080
04.04.2024,Children and Adults,TOWER BRIDGE PRIMARY SCHOOL,"7,212.24",FREE HEALTHY SCHOOL MEALS,SCHOOLS CAPITATION,2103851840,5001000095
14.04.2024,Environment Neighbourhoods and Growth,PROJECT CENTRE LTD,"7,200.00",TRANSPORT PROJECTS,OTHER CONTRACTORS,5902631677,1000072621
25.04.2024,Children and Adults,REDACTED PERSONAL DATA,"7,200.00",16-17 AND CL TEAM,PROFESSIONAL FEES,5902633645,1000090087
16.04.2024,Children and Adults,TEACHER ACTIVE LIMITED,"7,198.65",AP & HOSPITAL SCHLS,STATEMENTED FEES,2103857001,1000088338
30.04.2024,Environment Neighbourhoods and Growth,FORGE LEISURE UK LIMITED,"7,188.00",CAPITAL PS (LEISURE),"PLANT, MACHINERY & EQUIPMENT ACQUISITION",5902634146,1000090019
24.04.2024,Housing,TRUSTMARQUE SOLUTIONS LTD,"7,178.73",RESIDENTS PARTICIPATION FUND,SOFTWARE,5902633577,1000035838
18.04.2024,Children and Adults,CONCEPT CARE AND SUPPORT,"7,174.28",SEMI-IND CARELEAVERS,EXTERNAL AGENCIES AND BODIES,2103858187,1000088377
10.04.2024,Housing,THAMES WATER UTILITIES LTD,"7,167.59",ILDERTON ROAD,WATER,5902631154,1630755
05.04.2024,Housing,RJM LAW  LIMITED,"7,166.67",DISREPAIR,PAYMENTS FOR LEGAL SERVICES,2103853729,1000089664
17.04.2024,Housing,ANTONY HODARI  SOLICITORS,"7,166.67",DISREPAIR,PAYMENTS FOR LEGAL SERVICES,2103857943,1000031040
11.04.2024,Strategy and Communities,PECAN LTD,"7,158.70",VCS GRANTS,GRANTS,5902632082,11263114
08.04.2024,Children and Adults,BRANDON TRUST,"7,142.20",LD LTS 18-64,SUPPORTED LIVING,2103854376,1000042417
08.04.2024,Children and Adults,BRANDON TRUST,"7,142.20",LD LTS 18-64,SUPPORTED LIVING,2103854391,1000042417
08.04.2024,Children and Adults,BRANDON TRUST,"7,142.20",LD LTS 18-64,SUPPORTED LIVING,2103854734,1000042417
08.04.2024,Children and Adults,BRANDON TRUST,"7,142.20",LD LTS 18-64,SUPPORTED LIVING,2103854747,1000042417
08.04.2024,Children and Adults,ALWAYS INCLUSIVE LTD,"7,138.56",LD LTS 18-64,SUPPORTED LIVING,2103854059,1000088268
08.04.2024,Children and Adults,ALWAYS INCLUSIVE LTD,"7,138.56",LD LTS 18-64,SUPPORTED LIVING,2103854843,1000088268
08.04.2024,Children and Adults,PLUS SERVICES,"7,138.28",LD LTS 18-64,SUPPORTED LIVING,2103854136,1000021241
26.04.2024,Children and Adults,FRAMEWORK HOUSING ASSOCIATION,"7,125.00",TIER 4 SERVICES,OTHER CONTRACTORS,5902633836,1000086098
06.04.2024,Environment Neighbourhoods and Growth,F M CONWAY LTD,"7,124.07",SOUTHWARK AREA TEAM,OTHER R&M,2103849140,4001384
24.04.2024,Children and Adults,BOUCHER C OF E PRIMARY SCHOOL,"7,123.00",LBS MAINSTREAM,HIGH NEEDS - TOP UP FUNDING,5902633455,5001000011
13.04.2024,Housing,HARROW GREEN LTD,"7,109.80",RESIDENT SERVICES BUSINESS SUPPORT,REMOVAL EXPENSES,5902631182,1000076673
15.04.2024,Children and Adults,ST GEORGES RC SCHOOL,"7,104.00",NURSERY ED GRANT 3 AND 4 YR OLDS,EARLY YEARS - 3 AND 4 YEAR OLDS,5902632297,5001000068
24.04.2024,Housing,TKC HOUSING LIMITED,"7,100.00",PSL PLACEMENTS,EXTERNAL AGENCIES AND BODIES,5902633609,1000088199
10.04.2024,Environment Neighbourhoods and Growth,WYNNE-WILLIAMS ASSOCIATES LTD,"7,077.50",CAPITAL PS (REGEN),CONSTRUCTION FEES  - EXTERNAL,5902631831,1000081419
08.04.2024,Children and Adults,GREEN CARE AND SUPPORT LIMITED,"7,072.00",LD LTS 18-64,SUPPORTED LIVING,2103854145,1000087661
07.04.2024,Governance and Assurance,PENNA PLC,"7,066.66",LEARNING & DEVELOPMENT,PAYMENTS FOR PERSONNEL MANAGEMENT SERVS,5902630925,1000050664
08.04.2024,Children and Adults,CHOICE SUPPORT,"7,064.12",LD LTS 18-64,SUPPORTED LIVING,2103854343,1104183
08.04.2024,Children and Adults,CLACTON FAMILY TRUST RESIDENTIAL HOME,"7,062.52",LD LTS 18-64,SUPPORTED LIVING,2103854056,1000086761
08.04.2024,Children and Adults,CRAEGMOOR HEALTHCARE,"7,047.92",LD LTS 18-64,RESIDENTIAL CARE,2103854462,1323845
08.04.2024,Children and Adults,GREEN CARE AND SUPPORT LIMITED,"7,040.00",LD LTS 18-64 AAD,SUPPORTED LIVING,2103853913,1000087661
10.04.2024,Children and Adults,RELA SUPPORT SERVICES LTD,"7,040.00",SEMI-IND CARELEAVERS,EXTERNAL AGENCIES AND BODIES,2103855863,1000073128
08.04.2024,Children and Adults,CHOICE SUPPORT,"7,036.76",LD LTS 18-64,SUPPORTED LIVING,2103854865,1104183
23.04.2024,Suspense,HSF HEALTH PLAN,"7,030.00",SUSPENSE ACCOUNT (COMPANY CODE 1000),PAYROLL - 3RD PARTY DEDUCTIONS,2103859007,1000053489
18.04.2024,Housing,FINEFAIR LTD,"7,026.41",PSL PLACEMENTS,EXTERNAL AGENCIES AND BODIES,5902632860,1000075570
10.04.2024,Housing,CONTAKT LTD,"7,025.00",ENG CONTRACTS,PROFESSIONAL FEES,5902631637,1000089730
05.04.2024,Children and Adults,PEOPLE PLUS GROUP LTD (INDEPENDENT LIVING SERVICES),"7,014.72",PHB - SEL ICB,RECOVERABLE COSTS INCL. HEALTH,2103852844,1000061886
18.04.2024,Corporate,HOLLYDALE PRIMARY SCHOOL,"7,002.34",EDUCATION VAT INPUTS,VAT CONTROL ACCOUNT,2103858339,5001000036
05.04.2024,Environment Neighbourhoods and Growth,JUPITER PLAY & LEISURE LTD,"7,000.00",CAPITAL PS (LEISURE),FIT-OUT,5902630117,1000083600
06.04.2024,Environment Neighbourhoods and Growth,COMMUNITY CYCLEWORKS,"7,000.00",STREETS FOR PEOPLE - CYCLING,MISCELLANEOUS RECHARGES,5902630436,1000073000
12.04.2024,Corporate,TRADITION (UK) LTD,"7,000.00",EXTERNAL INTEREST,DEBT MANAGEMENT EXPENSES,5902631009,1000081340
25.04.2024,Finance,IEG4 LIMITED,"7,000.00",ADMINISTRATIVE SUPPORT,SOFTWARE,5902633733,1000083899
23.04.2024,Children and Adults,HOUSING 21,"6,995.68",EXTRA CARE CONTRACT,RENTS,5902633314,1000037120
08.04.2024,Children and Adults,CHOICE SUPPORT,"6,988.32",LD LTS 18-64,SUPPORTED LIVING,2103854430,1104183
04.04.2024,Children and Adults,BESSEMER GRANGE PRIMARY SCHOOL,"6,967.00",FREE HEALTHY SCHOOL MEALS,SCHOOLS CAPITATION,2103852065,5001000009
17.04.2024,Children and Adults,CATHEDRAL SCHOOL OF ST SAVIOUR & MARY,"6,966.00",COVID-19 SCHOOLS GRANTS,SCHOOLS CAPITATION,2103858011,5001000088
17.04.2024,Housing,ASHFORDS LLP,"6,958.33",DISREPAIR,PAYMENTS FOR LEGAL SERVICES,2103857940,1000055865
08.04.2024,Children and Adults,GATE HOUSE,"6,957.14",MH LTS 18-64,OTHER PAYMENTS FOR CLIENTS,2103854068,1000079839
08.04.2024,Children and Adults,CHOICE SUPPORT,"6,924.68",LD LTS 18-64,SUPPORTED LIVING,2103854204,1104183
04.04.2024,Children and Adults,MEDWAY COUNCIL,"6,921.71",OTHER LA SPECIAL,STATEMENTED FEES,2103850527,1000021704
08.04.2024,Children and Adults,ARIA HEALTHCARE GROUP LTD,"6,921.16",PHY LTS 18-64,NURSING PLACEMENTS FEES,2103853831,1000090139
08.04.2024,Children and Adults,VOYAGE LTD (EVESLEIGH KENT),"6,921.12",LD LTS 18-64,RESIDENTIAL CARE,2103854725,1000041320
29.04.2024,Children and Adults,UNIQUE PERSONNEL (UK) LTD,"6,907.75",SPECIALIST CARE,SECTION 17 PAYMENTS TO AGENCIES/CARERS,2103860584,1000075451
18.04.2024,Corporate,TOWER BRIDGE PRIMARY SCHOOL,"6,901.38",EDUCATION VAT INPUTS,VAT CONTROL ACCOUNT,2103858366,5001000095
19.04.2024,Housing,BRESLIN CONSTRUCTION LTD,"6,900.00",COMMERCIAL PROPERTIES,BUILDING R&M,2103858569,3000001948
04.04.2024,Children and Adults,SHOOTERS HILL CAMPUS,"6,891.52",AC & FREE - MSTREAM,STATEMENTED FEES,2103850357,1000074183
04.04.2024,Children and Adults,SHOOTERS HILL CAMPUS,"6,891.52",AC & FREE - MSTREAM,STATEMENTED FEES,2103850360,1000074183
03.04.2024,Children and Adults,SANCTUARY CARE HOMES LTD,"6,886.42",SEMI-IND CARELEAVERS,EXTERNAL AGENCIES AND BODIES,2103850266,1000089763
16.04.2024,Children and Adults,THE VILLA SCHOOL & NURSERY LTD,"6,878.72",INDEP MAINSTREAM,STATEMENTED FEES,2103857013,1000003742
02.04.2024,Children and Adults,DULWICH WOOD CHILDRENS CENTRE,"6,874.20",NURSERY ED GRANT 2YR OLDS,EARLY YEARS - 2 YEAR OLD,2103838777,5001000099
25.04.2024,Children and Adults,INTERPRETING DIRECT CO (UK) LTD,"6,858.00",CENTRAL SUPPORT,INTERPRETING SERVICES,5902633650,1000070133
26.04.2024,Children and Adults,BRIGHT YOUNG FUTURES LTD,"6,857.10",SEMI-IND LAC 16-17,EXTERNAL AGENCIES AND BODIES,2103860029,1000083958
19.04.2024,Corporate,MARSTON GROUP LTD,"6,856.85",VAT INPUTS - ADJUSTMENTS,VAT CONTROL ACCOUNT,2103858577,1000076638
08.04.2024,Children and Adults,COUNTRY COURT CARE HOMES 2 LTD,"6,852.86",PHY LTS 65+,NURSING PLACEMENTS FEES,2103854060,1000080172
18.04.2024,Corporate,BEORMUND PRIMARY SCHOOL,"6,851.78",EDUCATION VAT INPUTS,VAT CONTROL ACCOUNT,2103858402,5001000008
08.04.2024,Children and Adults,CARE UK,"6,851.52",PHY LTS 65+,NURSING PLACEMENTS FEES,2103854707,1000063363
18.04.2024,Environment Neighbourhoods and Growth,THE PARTICIPATION PEOPLE,"6,849.50",COMMUNITY SAFETY FUND,PROFESSIONAL FEES,5902632935,1000074059
16.04.2024,Suspense,KEMICO LIMITED,"6,840.00",SUSPENSE ACCOUNT (COMPANY CODE 1000),CREDITORS -GR/IR CLEARING ACCOUNT,5902632465,1000030226
26.04.2024,Children and Adults,ASCENT FOSTERING AGENCY LTD,"6,835.80",FRIENDS & FAMILY FOSTERING,EXTERNAL AGENCIES AND BODIES,2103860394,1000074714
08.04.2024,Children and Adults,INDEPENDENCE HOMES LTD,"6,834.12",LD LTS 18-64,SUPPORTED LIVING,2103854647,1000058961
18.04.2024,Housing,MGAC LLP,"6,829.56",CAPITAL PS (HRA),CONSTRUCTION FEES - EMPLOYERS AGENT,5902632982,1000089639
04.04.2024,DSO,EXACTLY TECH LTD,"6,825.00",REORGANISATION COSTS,CONSULTANTS SERVICES,5902630732,1000083655
04.04.2024,DSO,EXACTLY TECH LTD,"6,825.00",REORGANISATION COSTS,CONSULTANTS SERVICES,5902630732,1000083655
10.04.2024,Environment Neighbourhoods and Growth,BELL PHILLIPS ARCHITECTS LTD,"6,825.00",CAPITAL PS (LEISURE),CONSTRUCTION FEES  - EXTERNAL,5902631187,1000069307
08.04.2024,Children and Adults,STEPPING STONES RESETTLEMENT UNIT,"6,810.64",LD LTS 18-64,RESIDENTIAL CARE,2103854456,1000032806
18.04.2024,Finance,BYWATERS (LEYTON) LTD,"6,798.41",TOWER WORKSHOPS,REFUSE COLLECTION CONTRACT,5902632948,1822101
04.04.2024,Suspense,N & C BUILDING MATERIALS,"6,790.80",SUSPENSE ACCOUNT (COMPANY CODE 1000),CREDITORS -GR/IR CLEARING ACCOUNT,5902630303,1005586
24.04.2024,Children and Adults,PHOENIX PRIMARY SCHOOL,"6,779.00",LBS MAINSTREAM,HIGH NEEDS - TOP UP FUNDING,5902633467,5001000032
18.04.2024,Corporate,OLIVER GOLDSMITH PRIMARY SCHOOL,"6,777.32",EDUCATION VAT INPUTS,VAT CONTROL ACCOUNT,2103858442,5001000051
24.04.2024,Housing,CITYGLEN LTD,"6,776.40",NIGHTLY TA (NSC),EXTERNAL AGENCIES AND BODIES,5902633619,1000026239
04.04.2024,Children and Adults,PILGRIM'S WAY PRIMARY SCHOOL,"6,761.47",FREE HEALTHY SCHOOL MEALS,SCHOOLS CAPITATION,2103851826,5001000054
08.04.2024,Children and Adults,HC-ONE LTD (TOWER BRIDGE CARE HOME),"6,758.41",PHY LTS 65+,NURSING PLACEMENTS FEES,2103854224,1000067670
24.04.2024,Finance,PRECISELY SOFTWARE LIMITED,"6,757.50",INCOME MANAGEMENT,SOFTWARE,5902633586,1000088954
16.04.2024,Children and Adults,OATLEIGH CARE LTD,"6,757.14",PHY LTS 65+,PLACEMENTS - RESPITE,2103856584,1000081452
18.04.2024,Corporate,CRAWFORD PRIMARY SCHOOL,"6,750.08",EDUCATION VAT INPUTS,VAT CONTROL ACCOUNT,2103858352,5001000024
24.04.2024,Housing,BELSHAW & CURTIN SOLICITORS,"6,750.00",DISREPAIR,PAYMENTS FOR LEGAL SERVICES,2103859185,1767379
18.04.2024,Finance,MAKING PLACES TOGETHER LTD.,"6,750.00",DIGITAL TRANSFORMATION TEAM,CONSULTANTS SERVICES,5902631874,1000089222
08.04.2024,Children and Adults,SAFFRONLAND HOMES,"6,737.12",LD LTS 65+,RESIDENTIAL CARE,2103854271,11172608
30.04.2024,Corporate,SAP (UK) LTD,"6,730.54",ERP PROGRAMME BUDGET,SOFTWARE,5902634001,1000002550
17.04.2024,Housing,VIGILANT SECURITY SERVICES UK,"6,720.00",DAVID BARKER HOSTEL,SECURITY SERVICES,5902632792,1000090073
08.04.2024,Children and Adults,CHOICE SUPPORT,"6,713.00",LD LTS 18-64,SUPPORTED LIVING,2103854864,1104183
24.04.2024,Children and Adults,ST JAMES THE GREAT RC SCHOOL,"6,711.00",LBS MAINSTREAM,HIGH NEEDS - TOP UP FUNDING,5902633502,5001000071
08.04.2024,Children and Adults,CHOICE SUPPORT,"6,686.84",LD LTS 18-64,SUPPORTED LIVING,2103854834,1104183
04.04.2024,Children and Adults,MEDWAY COUNCIL,"6,684.22",OTHER LA SPECIAL,STATEMENTED FEES,2103850524,1000021704
04.04.2024,Children and Adults,MEDWAY COUNCIL,"6,684.22",OTHER LA SPECIAL,STATEMENTED FEES,2103850525,1000021704
04.04.2024,Children and Adults,MEDWAY COUNCIL,"6,684.22",OTHER LA SPECIAL,STATEMENTED FEES,2103850526,1000021704
02.04.2024,Children and Adults,KEYWORTH PRIMARY SCHOOL,"6,681.00",NURSERY ED GRANT 3 AND 4 YR OLDS,EARLY YEARS - 3 AND 4 YEAR OLDS,2103838801,5001000041
15.04.2024,Children and Adults,FRIARS PRIMARY (FOUNDATION) SCHOOL,"6,680.00",NURSERY ED GRANT 3 AND 4 YR OLDS,EARLY YEARS - 3 AND 4 YEAR OLDS,5902632286,5001000033
05.04.2024,Children and Adults,PEOPLE PLUS GROUP LTD (INDEPENDENT LIVING SERVICES),"6,672.32",SOCIAL ISOLATION,PAYMENTS TO CLIENTS (DIRECT PAYMENTS),2103853342,1000061886
24.04.2024,Children and Adults,ST JOHNS & ST CLEMENTS CE SCHOOL,"6,667.00",LBS RB / SEN UNIT,HIGH NEEDS - BASE FUNDING,5902633503,5001000073
17.04.2024,Housing,NAZOKKAR LEGAL SERVICES LTD,"6,666.67",DISREPAIR,PAYMENTS FOR LEGAL SERVICES,2103857939,1000090957
17.04.2024,Housing,VERITAS  SOLICITORS,"6,666.67",DISREPAIR,PAYMENTS FOR LEGAL SERVICES,2103857960,1000088269
08.04.2024,Children and Adults,PRIORY,"6,665.48",PHY LTS 18-64,NURSING PLACEMENTS FEES,2103854759,1000015902
26.04.2024,Children and Adults,SANCTUARY CARE HOMES LTD,"6,664.30",SEMI-IND CARELEAVERS,EXTERNAL AGENCIES AND BODIES,2103859994,1000089763
17.04.2024,Housing,QUINN NOBLE SOLICITORS,"6,659.00",DISREPAIR,PAYMENTS FOR LEGAL SERVICES,2103857954,1000083954
05.04.2024,Children and Adults,UNICEF,"6,650.00",FAMILY HUBS GRANT,EXTERNAL AGENCIES AND BODIES,5902630531,1000034247
12.04.2024,Finance,HIAM ALI LTD,"6,647.50",CORONER'S,PROFESSIONAL FEES,5902632102,1000084044
05.04.2024,Children and Adults,REDACTED PERSONAL DATA,"6,644.40",LD LTS 18-64,PAYMENTS TO CLIENTS (DIRECT PAYMENTS),2103853190,1000060258
23.04.2024,Environment Neighbourhoods and Growth,CONSTELLIA PUBLIC LIMITED,"6,630.21",TREES TERM CONTRACT,TREE MAINTENANCE,5902633136,1000088137
22.04.2024,Housing,ARMINA LTD,"6,628.97",DISREPAIR,BUILDING R&M,2103858614,3000002121
18.04.2024,Corporate,ST JOHNS RC PRIMARY SCHOOL,"6,626.91",EDUCATION VAT INPUTS,VAT CONTROL ACCOUNT,2103858378,5001000075
08.04.2024,Children and Adults,PLUS SERVICES,"6,619.56",LD LTS 65+,SUPPORTED LIVING,2103854283,1000021241
12.04.2024,Children and Adults,ST PAULS C OF E PRIMARY SCHOOL,"6,613.65",NURSERY ED GRANT 3 AND 4 YR OLDS,GRANTS,2103856382,1000082314
10.04.2024,Environment Neighbourhoods and Growth,KENT COUNTY COUNCIL - LASER,"6,609.91",JOHN HARVARD LIBRARY,ELECTRICITY,5902631648,1000012926
24.04.2024,Children and Adults,ILDERTON PRIMARY SCHOOL,"6,608.00",LBS MAINSTREAM,HIGH NEEDS - TOP UP FUNDING,5902633470,5001000037
04.04.2024,DSO,RTS WASTE MANAGEMENT LTD,"6,605.87",VOIDS OVERHEADS,WASTE DISPOSAL CONTRACT,5902630779,1000061248
24.04.2024,Children and Adults,FRIARS PRIMARY (FOUNDATION) SCHOOL,"6,604.00",LBS MAINSTREAM,HIGH NEEDS - TOP UP FUNDING,5902633468,5001000033
15.04.2024,Children and Adults,ROBERT BROWNING PRIMARY SCHOOL,"6,603.00",NURSERY ED GRANT 3 AND 4 YR OLDS,EARLY YEARS - 3 AND 4 YEAR OLDS,5902632294,5001000057
30.04.2024,Housing,PROPERTY FACILITIES GROUP PLC,"6,582.23",DISREPAIR,BUILDING R&M,2103862128,3000001420
18.04.2024,Corporate,BESSEMER GRANGE PRIMARY SCHOOL,"6,572.57",EDUCATION VAT INPUTS,VAT CONTROL ACCOUNT,2103858427,5001000009
29.04.2024,Housing,OLIVER LANDON LTD,"6,572.00",NIGHTLY TA (NSC),EXTERNAL AGENCIES AND BODIES,5902633936,1000082788
10.04.2024,Housing,THAMES WATER UTILITIES LTD,"6,559.66",ILDERTON ROAD,WATER,5902631152,1630755
08.04.2024,Children and Adults,COUNTRY COURT CARE HOMES 2 LTD,"6,555.26",MH LTS 18-64,NURSING PLACEMENTS FEES,2103854637,1000080172
07.04.2024,Environment Neighbourhoods and Growth,HILLIER NURSERIES LTD,"6,543.00",CAPITAL PS (LEISURE),CONSTRUCTION FEES,5902630866,1000036638
06.04.2024,Environment Neighbourhoods and Growth,QUADRON SERVICES LIMITED,"6,540.00",DULWICH AREA TEAM,OTHER R&M,5902630811,1000066528
14.04.2024,Housing,BDO LLP,"6,525.00",TENANT MGT INITITIVES,CONSULTANTS SERVICES,5902631646,1000057898
23.04.2024,DSO,SER CONTRACTOR LTD,"6,511.02",SR COMMUNAL - DELIVERY TEAM,OTHER CONTRACTORS,2103858723,3000002234
